{"text_format":"1","workbook":"xlsx","n_sheets":28,"sheets":["INDICE de CONTENIDOS","Formulas","Teoria de Funciones","FUNCIONES NUMERICAS","Promedio","Max","Min","Moda","Contar","Contar.Si","Sumar.Si","Contar.Si.Conjunto","Sumar.Si.Conjunto","Aleatorio","Aleatorio.Entre","FUNCIONES LOGICAS","Fn Y - Fn O","SI","FUNCIONES DE BUSQUEDA","CONSULTAV","COINCIDIR","INDICE","FUNCIONES DE FECHA Y HORA","SIFECHA","DIASEM","DIALAB","DIASLAB","FUNCIONES DE BASE DE DATOS"],"not_rendered":{"charts":0,"images":3,"macros":1,"external_links":1,"defined_names":35,"comments":1,"pivot_tables":0},"unopened":[],"bounds":{"document_bytes":16777216,"sheet_cells":100000,"rows_first":2000,"rows_last":500,"rows_between":2000,"halvings":0,"cell_chars":16384,"cell_head_chars":4096},"cells_cut":0,"cells_raw":0,"read":"whole","date_system":"1900"}

{"sheet":"INDICE de CONTENIDOS","index":0,"n_rows":17,"n_cols":4,"rows_kept":17,"cut":false,"hidden":false,"merged":[]}
["Microsoft Excel",null,null,2023]
[]
["HERRAMIENTAS INFORMATICAS II"]
[]
["Prof. Adj. Ing. Norma Cañizares"]
[]
["Formulas y Funciones",null,null,"Unidad 2"]
[]
["INDICE de CONTENIDOS"]
["Formulas"]
["Teoría de Funciones"]
["Funciones Numéricas"]
["Funciones Lógicas"]
["Funciones de Búsqueda"]
["Funciones de Fecha y Hora"]
["Funciones de Base de Datos"]
["Final Índice de Contenidos"]

{"sheet":"Formulas","index":1,"n_rows":368,"n_cols":27,"rows_kept":368,"cut":false,"hidden":false,"merged":[[2,1,2,3],[195,3,197,3],[324,2,324,8]]}
[null,"Volver al INDICE GENERAL"]
[]
[null,"Formulas"]
[]
[null,"INDICE de CONTENIDOS"]
[null,"Formulas"]
[null,"     Ejemplo de Formulas"]
[null,"Operadores"]
[null,"     Operadores  Aritméticos"]
[null,"     Operadores de Comparación"]
[null,"     Operadores de Texto"]
[null,"     Operadores de Referencia"]
[null,"Orden de evaluación de operadores (prioridad):"]
[null,"     Uso de paréntesis (Para cambiar el orden de evaluación )"]
[null,"Referencias a Celdas"]
[null,"Tipos de Referencias"]
[null,"     Referencias Relativas "]
[null,"     Referencias Absolutas"]
[null,"     Referencias Mixtas"]
[null,"Ejercicio 1: Utilizar referencias relativas y/o absolutas para efectuar los cálculos."]
[null,"Ejercicio 2: Tabla De Multiplicar"]
[null,"Final Índice de Contenidos"]
[]
[]
["*","Formulas"]
[]
[null,"Las Formulas en Excel son expresiones que se utilizan para realizar cálculos, produciendo un valor "]
[null,"que será asignado a la celda en la cual se introduce dicha formula."]
[null,"Comienzan por un signo igual (=)"]
[null,"Componentes de una Formula."]
[null,null,"Las Formulas pueden contener:"]
[null,"*","Constantes: Valores escritos directamente en la formula (33, “Aprobado”, …)"]
[null,"*","Operadores: Aritméticos (^,…), comparaciones (<,<=,…), de referencia (A2:B8), de texto."]
[null,"*","Referencias: Devuelven el valor de la celda (A2, …)"]
[null,"*","Nombres: nombres de celdas, nombres de rangos."]
[null,"*","Funciones: Matemáticas, trigonométricas, estadísticas, financieras, …"]
[]
[null,"Volver al Principio"]
[]
["=>","Ejemplo de Formulas"]
[]
[null,null,"Formula insertada","Resultado","Observación"]
[null,"Ejemplo 1:",{"$f":"[1]!ForTexto(D43)","v":"=((E50+E51)*(F50/F51))*F53"},{"$f":"((E50+E51)*(F50/F51))*F53","v":10.666666666666666},"Formula que combina: Referencias Relativas y Operadores Aritméticos.",null,null,null,null,null,null,null,null,null,null,null,null,null,null,null,null,null,null,null,null,null,{"$f":"((E50+E51)*(F50/F51))*F53","v":10.666666666666666}]
[null,"Ejemplo 2:",{"$f":"[1]!ForTexto(D44)","v":"=PI()*E50 ^ 2+2"},{"$f":"PI()*E50 ^ 2+2","v":5.1415926535897931},"Formula que combina: Funciones, Referencias Relativas, Operadores Aritméticos y Constantes.",null,"Cual es el resultado de la Operación???",null,null,null,null,null,null,null,null,null,null,null,null,null,null,null,null,null,null,null,{"$f":"PI()*E50 ^ 2+2","v":5.1415926535897931}]
[null,"Ejemplo 3:",{"$f":"[1]!ForTexto(D45)","v":"=SUMA(Datos1)"},{"$f":"SUM(Datos1)","v":10},"Formula que combina: Funciones con Argumentos definidos como nombres de celdas o rangos.",null,null,null,null,null,null,null,null,null,null,null,null,null,null,null,null,null,null,null,null,null,{"$f":"SUM(Datos1)","v":10}]
[]
[]
[null,null,null,{"$f":"CHAR(COLUMN()+64)","v":"D"},{"$f":"CHAR(COLUMN()+64)","v":"E"},"F","G","H","I"]
[null,null,{"$f":"ROW()","v":49}]
[null,null,{"$f":"ROW()","v":50},null,1,4]
[null,null,{"$f":"ROW()","v":51},null,3,3]
[null,null,{"$f":"ROW()","v":52},null,4,3]
[null,null,{"$f":"ROW()","v":53},null,2,2]
[null,null,{"$f":"ROW()","v":54}]
[null,null,{"$f":"ROW()","v":55}]
[null,null,{"$f":"ROW()","v":56}]
[null,null,{"$f":"ROW()","v":57}]
[]
[]
[]
[null,"Volver al Principio"]
[]
["*","Operadores"]
[]
[null,"Los operadores especifican el tipo de cálculo que se desea realizar con los elementos de una fórmula. "]
[null,"Microsoft Excel incluye cuatro tipos diferentes de operadores de cálculo: "]
[null,"*","Operadores Aritméticos, "]
[null,"*","Operadores de Comparación, "]
[null,"*","Operadores de Texto,"]
[null,"*","Operadores de Referencia."]
[]
[null,"Volver al Principio"]
[]
["=>","Operadores  Aritméticos"]
[]
[null,"Los Operadores aritméticos permiten Realizar operaciones matemáticas básicas."]
[]
[null,null," +","Suma"]
[null,null,"- ","Resta (o negativo si coloca delante del número, como en –7)  "]
[null,null,"*","Multiplicación"]
[null,null,"/","División"]
[null,null,"%","Porcentaje"]
[null,null,"^","Potencia"]
[null,"Ejemplos:"]
[]
[null,null,"Cuales son los resultados de las Expresiones???"]
[]
[null,null,"Función insertada","Resultado","Observación"]
[null,"Ejemplo 1:","=7+8-2",null,"Formula que combina: Constantes y Operadores Aritméticos."]
[null,"Ejemplo 2:","=15/5*2",null,"Formula que combina: Constantes y Operadores Aritméticos."]
[null,"Ejemplo 3:","=200*18%",null,"Formula que combina: Constantes y Operadores Aritméticos."]
[null,"Ejemplo 4:","=2^3",null,"Formula que combina: Constantes y Operadores Aritméticos."]
[null,"Ejemplo 5:","=C66-D4",null,"Formula que combina: Constantes, ubicadas en la referencia a otras celdas, y Operadores Aritméticos."]
[]
[null,"Volver al Principio"]
[]
["=>","Operadores de Comparación"]
[]
[null,"Los Operadores de comparación permiten comparar dos valores produciendo un valor lógico, Verdadero o Falso, como resultado."]
[]
[null,null,"=","Igual"]
[null,null,">","Mayor que"]
[null,null,"<","Menor que"]
[null,null,">=","Mayor o igual que"]
[null,null,"<=","Menor o igual que"]
[null,null,"<> ","Distinto , diferente"]
[null,"Ejemplos:"]
[]
[null,null,"Cuales son los resultados de las Expresiones???"]
[]
[null,null,"Función insertada","Resultado","Observación"]
[null,"Ejemplo 1:","=5>4",null,"Formula que combina: Constantes y Operadores de Comparación."]
[null,"Ejemplo 2:","=5<4",null,"Formula que combina: Constantes y Operadores de Comparación."]
[null,"Ejemplo 3:","=5>=5",null,"Formula que combina: Constantes y Operadores de Comparación."]
[null,"Ejemplo 4:","=5<=4",null,"Formula que combina: Constantes y Operadores de Comparación."]
[null,"Ejemplo 5:","=C80<E85",null,"Formula que combina: Constantes, ubicadas en la referencia a otras celdas, y Operadores de Comparación."]
[]
[null,"Volver al Principio"]
[]
["=>","Operadores de Texto"]
[]
[]
[null,"Permiten unir dos o más valores de texto."]
[]
[null,null,"&","Unir, concatenar",null,null,null,null,null,null,null,null,null,null,null,null,null,null,null,null,null,null,null,null,null,null,{"$f":"D134&G131","v":"HolaExcel"}]
[]
[null,null,"Ejemplo:"]
[null,null,null,"Cual seria el resultado de la concatenación???"]
[]
[null,null,null,{"$f":"CHAR(COLUMN()+64)","v":"D"},{"$f":"CHAR(COLUMN()+64)","v":"E"},"F","G","H","I"]
[null,null,{"$f":"ROW()","v":131},null,null,null,"Excel"]
[null,null,{"$f":"ROW()","v":132}]
[null,null,{"$f":"ROW()","v":133}]
[null,null,{"$f":"ROW()","v":134},"Hola"]
[null,null,{"$f":"ROW()","v":135}]
[null,null,{"$f":"ROW()","v":136},null,null,{"$f":"[1]!ForTexto(AA125)","v":"=D134&G131"}]
[null,null,{"$f":"ROW()","v":137}]
[null,null,{"$f":"ROW()","v":138}]
[null,null,{"$f":"ROW()","v":139}]
[]
[]
[null,"Volver al Principio"]
[]
["=>","Operadores de Referencia"]
[]
[null,"Los operadores de referencia permiten  combinar rangos de celdas para los cálculos con los siguientes operadores."]
[null,"*",":(dos puntos)","Operador de rango que genera una referencia a todas las"]
[null,null,null,"celdas entre dos referencias, éstas incluidas. Ej. :  B5:B15"]
[]
[null,"*","; (punto y coma)","Operador de unión que combina varias referencias en una sola. "]
[null,null,null,{"$f":"\"Ej. : \"& E153","v":"Ej. : =SUMA(F160:F163;H160:H163)"}]
[]
[null,null,null,"Ej.: Formula con operador de unión:",{"$f":"[1]!ForTexto(AA153)","v":"=SUMA(F160:F163;H160:H163)"},null,"Cual es el resultado de la Suma???",null,null,null,null,null,null,null,null,null,null,null,null,null,null,null,null,null,null,null,{"$f":"SUM(F160:F163,H160:H163)","v":21}]
[null,null,null,"Resultado"]
[]
[]
[]
[null,null,null,null,{"$f":"CHAR(COLUMN()+64)","v":"E"},{"$f":"CHAR(COLUMN()+64)","v":"F"},"G","H","I","J"]
[null,null,null,{"$f":"ROW()","v":159}]
[null,null,null,{"$f":"ROW()","v":160},null,1,null,4]
[null,null,null,{"$f":"ROW()","v":161},null,3,null,2]
[null,null,null,{"$f":"ROW()","v":162},null,4,null,3]
[null,null,null,{"$f":"ROW()","v":163},null,2,null,2]
[null,null,null,{"$f":"ROW()","v":164}]
[null,null,null,{"$f":"ROW()","v":165}]
[null,null,null,{"$f":"ROW()","v":166}]
[null,null,null,{"$f":"ROW()","v":167}]
[]
[]
[null,"*","(un espacio)","Operador de intersección, que genera una referencia a las celdas  comunes a dos referencias."]
[null,null,null,{"$f":"\"Ej. : \"& E173","v":"Ej. : =SUMA(F180:F183 E182:H182)"}]
[]
[null,null,null,"Ej.: Formula con operador de unión:",{"$f":"[1]!ForTexto(AA173)","v":"=SUMA(F180:F183 E182:H182)"},null,"Cual es el resultado de la Suma???",null,null,null,null,null,null,null,null,null,null,null,null,null,null,null,null,null,null,null,{"$f":"SUM(F180:F183 E182:H182)","v":4}]
[null,null,null,"Resultado"]
[]
[]
[]
[null,null,null,null,{"$f":"CHAR(COLUMN()+64)","v":"E"},{"$f":"CHAR(COLUMN()+64)","v":"F"},"G","H","I","J"]
[null,null,null,{"$f":"ROW()","v":179}]
[null,null,null,{"$f":"ROW()","v":180},null,1]
[null,null,null,{"$f":"ROW()","v":181},null,3]
[null,null,null,{"$f":"ROW()","v":182},2,4,5,3]
[null,null,null,{"$f":"ROW()","v":183},null,2]
[null,null,null,{"$f":"ROW()","v":184}]
[null,null,null,{"$f":"ROW()","v":185}]
[null,null,null,{"$f":"ROW()","v":186}]
[null,null,null,{"$f":"ROW()","v":187}]
[]
[]
[]
[null,"Volver al Principio"]
[]
["*","Orden de evaluación de operadores (prioridad):"]
[]
[null,null,"Operador","Descripción"]
[null,null,": (dos puntos) ","Operadores de referencia"]
[null,null,"  (un solo espacio)"]
[null,null,";(punto y coma)"]
[null,null,"-","Negación (como en -1)"]
[null,null,"%","Porcentaje"]
[null,null,"^","Exponenciación"]
[null,null,"* y /","Multiplicación y división"]
[null,null,"+ y -","Suma y resta"]
[null,null,"&","Conecta dos cadenas de texto (concatenación)"]
[null,null,"= < > <= >= <>","Comparación"]
[]
[null,"Volver al Principio"]
[]
["=>","Uso de paréntesis (Para cambiar el orden de evaluación )"]
[]
[]
[null,"Ejemplos"]
[null,null,"Cuales son los resultados de las Expresiones???"]
[]
[null,null,"Función insertada","Resultado"]
[null,"Ejemplo 1:","=5+2*3"]
[null,"Ejemplo 2:","=(5+2)*3"]
[null,"Ejemplo 3:",{"$f":"[1]!ForTexto(AA218)","v":"=((E224+E225)*(G224/G225))*G227"},null,null,null,null,null,null,null,null,null,null,null,null,null,null,null,null,null,null,null,null,null,null,null,{"$f":"((E224+E225)*(G224/G225))*G227","v":16}]
[null,"Ejemplo 4:",{"$f":"[1]!ForTexto(AA219)","v":"=E224+E225*G224/G225*G227"},null,null,null,null,null,null,null,null,null,null,null,null,null,null,null,null,null,null,null,null,null,null,null,{"$f":"E224+E225*G224/G225*G227","v":13}]
[]
[]
[null,null,null,{"$f":"CHAR(COLUMN()+64)","v":"D"},{"$f":"CHAR(COLUMN()+64)","v":"E"},"F","G","H","I"]
[null,null,{"$f":"ROW()","v":223}]
[null,null,{"$f":"ROW()","v":224},null,1,null,4]
[null,null,{"$f":"ROW()","v":225},null,3,null,2]
[null,null,{"$f":"ROW()","v":226},null,4,null,3]
[null,null,{"$f":"ROW()","v":227},null,2,null,2]
[null,null,{"$f":"ROW()","v":228}]
[null,null,{"$f":"ROW()","v":229}]
[null,null,{"$f":"ROW()","v":230}]
[null,null,{"$f":"ROW()","v":231}]
[]
[]
[null,"Volver al Principio"]
[]
["*","Referencias a Celdas"]
[]
[null,"*","Las referencias se usan para identificar una celda o un rango de celdas en una hoja de cálculo e indican  "]
[null,null,"a Excel en qué celdas debe buscar los valores o los datos que se desea utilizar en una fórmula. "]
[null,"*","Para hacer referencia a una celda, introducir la letra de columna seguida del número de fila. "]
[null,"*","Por ejemplo, D50 hace referencia a la celda en la intersección de la columna D y la fila 50. "]
[null,"*","Para hacer referencia a un rango de celdas, introducir la referencia de la celda en la esquina superior izquierda,"]
[null,null," dos puntos (:) y, a continuación, la referencia a la celda en la esquina inferior derecha del rango. "]
[]
[null,"Volver al Principio"]
[]
["*","Tipos de Referencias"]
[]
[null,"Existen tres tipos de referencias a celdas:"]
[null,"*","Referencias Relativas"]
[null,"*","Referencias Absolutas"]
[null,"*","Referencias Mixtas"]
[]
[null,"La diferencia esencial entre un tipo de referencia y otra está en cómo se copian las"]
[null," fórmulas que hacen referencias relativas, absolutas o mixtas a otras celdas "]
[]
[null,"Volver al Principio"]
[]
["=>","Referencias Relativas "]
[]
[null,"*","Es la forma de trabajar por defecto de Excel"]
[null,"*","Describen la posición de una celda en función de su distancia, en filas y columnas, con respecto a otra celda. "]
[null,"*","Una referencia relativa es equivalente a dar una dirección, como en “Cruce la calle y diríjase dos casas más abajo”. "]
[]
[null,null,"Ejemplo:"]
[]
[null,null,{"$f":"\"En la celda \"&E271&C275&\" se tiene insertada la formula \"&[1]!ForTexto(E275)","v":"En la celda E275 se tiene insertada la formula =E273+E274"}]
[null,null,{"$f":"\"Cual sera el resultado de la formula, luego de copiarla, en la celda \"&G271&C277&\" ?\"","v":"Cual sera el resultado de la formula, luego de copiarla, en la celda G277 ?"}]
[]
[]
[null,null,null,{"$f":"CHAR(COLUMN()+64)","v":"D"},{"$f":"CHAR(COLUMN()+64)","v":"E"},"F","G","H","I"]
[null,null,{"$f":"ROW()","v":272}]
[null,null,{"$f":"ROW()","v":273},null,5]
[null,null,{"$f":"ROW()","v":274},null,3]
[null,null,{"$f":"ROW()","v":275},null,{"$f":"E273+E274","v":8}]
[null,null,{"$f":"ROW()","v":276}]
[null,null,{"$f":"ROW()","v":277}]
[null,null,{"$f":"ROW()","v":278}]
[null,null,{"$f":"ROW()","v":279}]
[null,null,{"$f":"ROW()","v":280}]
[]
[]
[]
[null,"Volver al Principio"]
[]
["=>","Referencias Absolutas"]
[]
[null,"*","Son referencias que siempre se refieren  a las mismas celdas , sin tener en cuenta la posición de la fórmula. "]
[null,"*","Una referencia de celda absoluta describe una dirección de celda concreta. No importa donde se copie"]
[null,null," la fórmula con referencias absolutas, éstas siempre harán referencia a celdas específicas."]
[null,"*","Las referencias absolutas son análogas a proporcionar direcciones fijas, como en “Entregue el periódico en el nº 18 de la calle Vinaroz”. "]
[null,"*","Para crear una referencia absoluta, se debe anteponer el signo de pesos ($) delante de las partes de la referencia que no cambia. Por ej. $A$1."]
[]
[null,null,"Ejercicio: Insertar una formula para Calcular el % de retención para las Ventas1 y luego cópiela al resto de las ventas."]
[]
[null,null,"Porcentaje de Retención:",0.05]
[]
[null,null,"Venta","Monto","Retención"]
[null,null,"Venta 1",25600]
[null,null,"Venta 2",65500]
[null,null,"Venta 3",656]
[null,null,"Venta 4",1500]
[null,null,"Venta 5",12000]
[null,null,"Venta 6",4900]
[null,null,"Venta 7",2000]
[null,null,"Venta 8",54533]
[null,null,"Venta 9",343432]
[]
[null,"Volver al Principio"]
[]
["=>","Referencias Mixtas"]
[]
[null,"Son aquellas que hacen referencia absoluta a la fila y relativa a la columna (o viceversa, referencia absoluta a la columna y relativa a la fila). "]
[null,"La parte de la referencia que es absoluta va precedida del símbolo $ y la relativa no. De este modo:"]
[null,"*","Cuando vea una referencia del tipo $B$2 se trata de una referencia absoluta (la celda B2 queda fija en su fila y columna)."]
[null,"*","Cuando vea una referencia del tipo $B2 se trata de una referencia mixta. La celda B2 queda enclavada sobre la columna B y durante la copia podrá desplazarse por las filas 3, 4, 5..."]
[null,"*","Cuando vea una referencia del tipo B$2 se trata de una referencia mixta. La celda B2 queda enclavada sobre la fila 2 y durante la copia podrá desplazarse por las columnas C, D, E..."]
[]
[]
[null,"Volver al Principio"]
[]
["*","Ejercicio 1: Utilizar referencias relativas y/o absolutas para efectuar los cálculos."]
[]
[]
[null,null,"REPORTE DE VENTAS Y SUELDOS OBTENIDOS"]
[]
[null,null,"SUELDO BASE",3500,null,"PRECIO UNITARIO DEL LIBRO",450]
[null,null,"NOMBRE DEL VENDEDOR","LIBROS VENDIDOS","DINERO OBTENIDO POR LIBROS VENDIDOS","COMISION POR VENTAS (12% del dinero obtenido por libros vendidos)","SUELDO BRUTO (sueldo base + comisión)","IMPUESTO (2,5% del sueldo bruto)","SUELDO NETO (sueldo bruto - impuesto)"]
[null,null,"Benito Perez",100]
[null,null,"Josefina Ramirez",300]
[null,null,"Esther Camaño",50]
[null,null,"Rodrigo Lopez",210]
[null,null,"Mario Muñoz",240]
[null,null,"Luis Dominguez",90]
[null,null,"Miguel Camacho",79]
[]
[]
[null,"Volver al Principio"]
[]
["*","Ejercicio 2: Tabla De Multiplicar"]
[]
[null,"Crear una tabla que obtiene diferentes valores de porcentaje para diferentes cantidades. Para ello utilice el tipo de referencias mas adecuado. "]
[null,"Por ej., en la celda con relleno verde, debe mostrar el 5% de 1000. Es decir, el nro. 50."]
[]
[null,null,null,{"$f":"CHAR(COLUMN()+64)","v":"D"},{"$f":"CHAR(COLUMN()+64)","v":"E"},"F","G","H","I","J","K","L","M"]
[null,null,{"$f":"ROW()","v":346}]
[null,null,{"$f":"ROW()","v":347},null,null,1000,1500,2000,2500,3000,3500,4000]
[null,null,{"$f":"ROW()","v":348},null,0.05]
[null,null,{"$f":"ROW()","v":349},null,0.1]
[null,null,{"$f":"ROW()","v":350},null,0.15]
[null,null,{"$f":"ROW()","v":351},null,0.2]
[null,null,{"$f":"ROW()","v":352},null,0.25]
[null,null,{"$f":"ROW()","v":353},null,0.3]
[null,null,{"$f":"ROW()","v":354},null,0.35]
[null,null,{"$f":"ROW()","v":355},null,0.4]
[null,null,{"$f":"ROW()","v":356},null,0.45]
[null,null,{"$f":"ROW()","v":357},null,0.5]
[null,null,{"$f":"ROW()","v":358}]
[null,null,{"$f":"ROW()","v":359}]
[null,null,{"$f":"ROW()","v":360}]
[null,null,{"$f":"ROW()","v":361}]
[null,null,{"$f":"ROW()","v":362}]
[null,null,{"$f":"ROW()","v":363}]
[null,null,{"$f":"ROW()","v":364}]
[null,null,{"$f":"ROW()","v":365}]
[]
[]
[null,"Volver al Principio"]

{"sheet":"Teoria de Funciones","index":2,"n_rows":84,"n_cols":5,"rows_kept":84,"cut":false,"hidden":false,"merged":[]}
[null,"Volver al INDICE GENERAL"]
[]
[null,"Teoría de Funciones"]
[]
[null,"INDICE de CONTENIDOS"]
[null,"Definición de Función"]
[null,"Sintaxis de una Función "]
[null,"     Tipos de Argumentos para una Función"]
[null,"     Ejemplos de Argumentos para una Función"]
[null,"Como insertar una función?"]
[null,"Tabla: Listado de Categorías de Funciones"]
[null,"Final Índice de Contenidos"]
[]
[]
["*","Definición de Función"]
[null,"\u009bUna función es una fórmula ya preparada por Excel, que permite ahorrar tiempo y cálculos, y que produce un resultado."]
[null,"Sirven para realizar cálculos más complejos. "]
[null,"\u009bLas funciones reciben unos valores llamados parámetros o argumentos en un orden determinado o estructurado, sobre los que va a operar."]
[null,"\u009bExcel dispone de un gran número de funciones que abarcan casi todos los campos de cálculo ( trae 330 funciones predefinidas)."]
[null,"Volver al Principio"]
[]
["*","Sintaxis de una Función "]
[null,"\u009bLa sintaxis de una función se refiere a como debemos escribirla:"]
[null,"Sintaxis:"]
[null,null,"=NOMBRE_DE_LA_FUNCION(Argumento1;Argumento2:….)"]
[null,"Referencia de la sintaxis de una función:"]
[null,"1) Toda función comienza con el signo igual(=)"]
[null,"2) Luego se escribe el nombre de la función, en mayúsculas"]
[null,"3) Finalmente se escriben los argumentos de la función entre paréntesis, separados por el operador punto y coma (;)."]
[null,"Una vez ingresada la función a la celda se debe presionar la tecla ENTER para visualizar el resultado."]
[null,"Volver al Principio"]
[]
["=>","Tipos de Argumentos para una Función"]
[null,"Los argumentos pueden ser:"]
[null,"*","\u009bNúmeros, Texto (Constantes) "]
[null,"*","\u009bValores Lógicos como VERDADERO o FALSO"]
[null,"*","\u009bMatrices "]
[null,"*","\u009bReferencias a celda"]
[null,"*","\u009bFórmulas  "]
[null,"*","\u009botras funciones."]
[null,"El argumento que se designe deberá generar un valor válido para la función. "]
[null,"Volver al Principio"]
[]
["=>","Ejemplos de Argumentos para una Función"]
[null,"Los argumentos que puede recibir una Función pueden ser de distintos tipos."]
[null,"Se toma como ejemplo la función SUMA para definir el uso de distintos tipos de argumentos."]
[null,"La función SUMA, como su nombre dice, se utiliza para sumar los elementos que se pasan como  argumento para dicha función."]
[null,"En la tabla que se encuentra a continuación se definen los ejemplos."]
[]
[]
[null,"EJEMPLO","Tipo de argumento para el ejemplo","Argumento utilizado","Resultado de la función"]
[null," =SUMA(3;5)","Constantes","3 y 5","El resultado de la función SUMA depende de los valores de las constantes, en este caso el resultado es 8."]
[null,"=SUMA(A2;A4)","Referencia a celdas","A2 y A4","El resultado de la función SUMA depende de los valores contenidos en las referencias A2 y A4."]
[null," =SUMA(A2:A4)","Rango","A2:A4","El resultado de la función SUMA depende de los valores contenidos en el rango A2:A4."]
[null,"=SUMA(A1:A4 A3:A7)","Rangos combinados con el operador Intersección","A1:A4 y A3:A7","El resultado de la función SUMA depende de los valores contenidos en la intersección de los rangos  A1:A4 y A3:A7."]
[null,"=SUMA(A2:A4;$A$7;3)","Rango, Referencias Absolutas y Constante","A2:A4, $A$7 y 3","El resultado de la función SUMA depende de los valores contenidos en el rangos  A2:A4, la celda A7 y la constante 3."]
[]
[null,"Volver al Principio"]
[]
["*","Como insertar una función?"]
[null,"Tenemos varias alternativas para insertar una función en una celda, por lo tanto lo primero que debemos hacer es posicionarse en la celda en la que deseamos insertarla. En todos los casos Excel nos muestra un cuadro de dialogo, donde se presentan las  funciones para cada categoría disponible."]
[null,"Alternativas para insertar una función."]
[null,"PRIMERA ALTERNATIVA:"]
[null,"Ingresar a la Ficha Formulas/ Grupo Biblioteca de Funciones. En este grupo se encuentran distintos comandos para acceder a las distintas categoría de funciones disponibles en Excel."]
[null,"SEGUNDA ALTERNATIVA:"]
[null,"Accediendo al botón fx de  la barra de formulas, ubicada en la parte inferior de la cinta de opciones."]
[null,"TERCERA ALTERNATIVA:"]
[null,"Presionando la combinación de teclas SHIF + F3"]
[null,"Volver al Principio"]
[]
["*","Tabla: Listado de Categorías de Funciones"]
[null,"Las funciones de hojas de cálculo se categorizan según su funcionalidad."]
[null,"A continuación se muestra una tabla, con una breve referencia a algunas  categorías de funciones, en especial las referidas a funciones sobre las que se trabajaran en este curso."]
[]
[]
[null,"Nombre de la Categoría","Descripción","Ejemplos de Funciones pertenecientes a la Categoría"]
[null,"Funciones Numéricas.","Las funciones numéricas operan sobre valores numéricos. Dentro de las funciones numéricas se encuentran las categorías: Matemáticas y Trigonométricas y las Estadísticas. Las funciones matemáticas de Excel son utilizadas para ejecutar varias operaciones aritméticas como la suma y el producto de dos números. Las funciones estadísticas de permiten realizar un análisis estadístico de tus datos.","PROMEDIO; MAX; MIN; MODA; CONTAR; CONTAR.SI; SUMAR.SI;  CONTAR.SI.CONJUNTO; SUMAR.SI.CONJUNTO; ALEATORIO; ALEATORIO.ENTRE"]
[null,"Funciones Lógicas.","Las funciones lógicas en Excel se utilizan en la toma de decisiones. En base al resultado de una función decidiremos si ejecutar o no cierta acción requerida.","SI; Y; O"]
[null,"Funciones de Búsqueda","Las funciones de búsqueda y referencia en Excel nos permiten encontrar valores dentro de nuestra hoja de acuerdo a los criterios establecidos en la búsqueda. También nos ayudan a obtener información de referencia de las celdas.","BUSCARV o CONSULTARV; BUSCARH o CONSULTARH; COINCIDIR; INDICE"]
[null,"Funciones de Fecha","Las funciones de fecha y hora de Microsoft Excel son utilizadas para buscar fechas específicas, para conocer la hora actual, para encontrar la diferencia en días laborales entre dos fechas y muchas cosas más que serán de gran utilidad al momento de estar trabajando con este tipo de datos.","\u009bAHORA; \u009bHOY; \u009bAÑO; \u009bMES; \u009bDIA; \u009bDIASEM; \u009bDIA.LAB; \u009bDIAS.LAB; \u009bFECHA"]
[null,"Funciones de Base de Datos","Las funciones de base de datos en Excel facilitan nuestro trabajo con información que está organizada como una bases de datos, es decir, que se encuentra en un rango de celdas donde la primera fila tiene los títulos de cada columna. Estas funciones nos permiten contar, sumar, multiplicar los valores de una columna que cumplen con los criterios especificados e inclusive podremos extraer un registro que cumpla con ciertas condiciones.","BDCONTAR; BDCONTARA; BDEXTRAER; BDMAX; BDMIN; BDPRODUCTO; BDPROMEDIO; BDSUMA"]
[]
[]
[null,"Volver al Principio"]

{"sheet":"FUNCIONES NUMERICAS","index":3,"n_rows":49,"n_cols":5,"rows_kept":49,"cut":false,"hidden":false,"merged":[[2,1,2,2]]}
[null,"Volver al INDICE GENERAL"]
[]
[null,"Funciones Numéricas"]
[]
[null,"INDICE de CONTENIDOS"]
[null,"Introducción"]
[null,"Tabla: Listado de Funciones Numéricas"]
[null,"     PROMEDIO"]
[null,"     MAX"]
[null,"     MIN"]
[null,"     MODA"]
[null,"     CONTAR"]
[null,"     CONTAR.SI "]
[null,"     SUMAR.SI"]
[null,"     CONTAR.SI.CONJUNTO"]
[null,"     SUMAR.SI.CONJUNTO"]
[null,"     ALEATORIO"]
[null,"     ALEATORIO.ENTRE"]
[null,"Final Índice de Contenidos"]
[]
[]
["*","Introducción"]
[null,"Las funciones numéricas operan sobre valores numéricos."]
[null,"Dentro de las funciones numéricas se encuentran las categorías: Matemáticas y Trigonométricas y las Estadísticas"]
[null,"Ejemplos:"]
[null,"\u009bFunciones Matemáticas y trigonométricas: SUMA(), PRODUCTO(), TRUNCAR(), POTENCIA(), COS(), SUMAR.SI(),  ALEATORIO(), ALEATORIO.ENTRE(), SUMAR.SI.CONJUNTO(),…"]
[null,"\u009bEstadísticas: PROMEDIO(), MAX(), MIN(), CONTAR(), CONTAR.SI(), CONTAR.SI.CONJUNTO(),  PROMEDIO.SI(), PROMEDIO.SI.CONJUNTO(),…"]
[null,"Volver al Principio"]
[]
["*","Tabla: Listado de Funciones Numéricas"]
[null,"En la tabla que se encuentra a continuación se muestran los campos:  Nombre de la Función, Sintaxis, Descripción y Categoría de la Función"]
[null,"En la tabla se muestra una breve referencia a una serie de funciones de tipo numéricas."]
[]
[]
[null,"NOMBRE DE LA FUNCIÓN","SINTAXIS","DESCRIPCION","CATEGORIA DE LA FUNCIÓN"]
["=>","PROMEDIO","PROMEDIO(Número1;Número2;......) ","Devuelve el promedio (media aritmética) de los argumentos, los cuales pueden ser números, nombres, matrices o referencias que contengan números.","Estadística"]
["=>","MAX","MAX(número1, [número2], …)","Devuelve el valor máximo de una lista de valores. Omite los valores lógicos y texto.","Estadística"]
["=>","MIN","MIN(número1, [número2], …)","Devuelve el valor mínimo de una lista de valores. Omite los valores lógicos y texto.","Estadística"]
["=>","MODA","MODA(número1, [número2], …)","Devuelve el valor más frecuente o que más se repite en una matriz o rango de datos.","Estadística"]
["=>","CONTAR","CONTAR(valor1, [valor2], …)","Cuenta la cantidad de celdas que contienen números.","Estadística"]
["=>","CONTAR.SI ","CONTAR.SI(rango,criterio)","Cuenta las celdas de un rango que cumplen con el criterio.","Estadística"]
["=>","SUMAR.SI","SUMAR.SI( rango ; criterio ; rango_suma)","Suma las celdas en el rango que coinciden con el argumento criterio.","Matemáticas y Trigonométricas"]
["=>","CONTAR.SI.CONJUNTO","CONTAR.SI.CONJUNTO(rango_criterios1, criterio1, [rango_criterios2], [criterio1])","Cuenta las celdas de un rango que cumplan con varios criterios especificados.","Estadística"]
["=>","SUMAR.SI.CONJUNTO","SUMAR.SI.CONJUNTO(rango_suma; rango_criterios1; criterios1; [rango_criterios2; criterios2];...) ","La función SUMAR.SI.CONJUNTO nos permite sumar los valores de un rango de celdas que cumplen con varias condiciones. A diferencia de la función SUMAR.SI que permite un solo criterio, la función SUMAR.SI.CONJUNTO permite hasta 127 criterios.","Matemáticas y Trigonométricas"]
["=>","ALEATORIO","ALEATORIO( )","Devuelve un número aleatorio mayor o igual que 0 y menor que 1, distribuido uniformemente. Cada vez que se calcula la hoja de cálculo, se devuelve un número aleatorio nuevo.","Matemáticas y Trigonométricas"]
["=>","ALEATORIO.ENTRE","ALEATORIO.ENTRE(inferior,superior)","Devuelve un número aleatorio entero entre 2 números especificados. Devuelve un nuevo número aleatorio cada vez que se calcula la hoja de cálculo.","Matemáticas y Trigonométricas"]
[]
[]
[null,"Volver al Principio"]

{"sheet":"Promedio","index":4,"n_rows":52,"n_cols":3,"rows_kept":52,"cut":false,"hidden":false,"merged":[[2,1,2,2],[20,2,20,7]]}
[null,"Volver a la Tabla: Listado de Funciones Numéricas"]
[]
[null,"Función PROMEDIO"]
[]
[null,"INDICE de CONTENIDOS"]
[null,"Descripción"]
[null,"Sintaxis"]
[null,"Ejemplo1: Uso de la Función PROMEDIO"]
[null,"Ejemplo2: Uso de la Función PROMEDIO"]
[null,"Final Índice de Contenidos"]
[]
[]
["*","Descripción"]
[null,"Devuelve el promedio (media aritmética) de los argumentos, los cuales pueden ser números, nombres, matrices o referencias que contengan números."]
[null,"Volver al Principio"]
[]
["*","Sintaxis"]
[null,null,"=PROMEDIO(Número1;Número2;......) "]
[null,"Referencias a los argumentos de la función:"]
[null,"número1 (obligatorio):"," Este parámetro puede ser un número ó también puede ser un rango de celdas que contiene el conjunto de números a promediar."]
[null,"número2 (opcional):"," A partir del segundo número los parámetros son opcionales. De igual manera puedes colocar un número u otro rango de celdas de donde la función obtendrá más valores a promediar."]
[null,"Volver al Principio"]
[]
["*","Ejemplo1: Uso de la Función PROMEDIO"]
[null,"Consigna:","Obtener el promedio de las siguientes constantes: 12; 12 y 13."]
[]
[]
[null,"Resolución:"]
[null,"Resultado",{"$f":"AVERAGE(12,12,13)","v":12.333333333333334}]
[null,"Función insertada",{"$f":"[1]!ForTexto(C29)","v":"=PROMEDIO(12;12;13)"}]
[]
[null,"Volver al Principio"]
[]
["*","Ejemplo2: Uso de la Función PROMEDIO"]
[null,"Consigna:","Obtener el promedio de los datos que se encuentran en un rango de datos."]
[]
[]
[null,"Resolución:"]
[null,"Resultado",{"$f":"AVERAGE(B44:B49)","v":5.833333333333333}]
[null,"Función insertada",{"$f":"[1]!ForTexto(C39)","v":"=PROMEDIO(B44:B49)"}]
[]
[]
[null,"DATOS"]
[null,9]
[null,3]
[null,6]
[null,8]
[null,4]
[null,5]
[]
[]
[null,"Volver al Principio"]

{"sheet":"Max","index":5,"n_rows":52,"n_cols":3,"rows_kept":52,"cut":false,"hidden":false,"merged":[[2,1,2,2]]}
[null,"Volver a la Tabla: Listado de Funciones Numéricas"]
[]
[null,"Función MAX"]
[]
[null,"INDICE de CONTENIDOS"]
[null,"Descripción"]
[null,"Sintaxis"]
[null,"Ejemplo1: Uso de la Función MAX"]
[null,"Ejemplo2: Uso de la Función MAX"]
[null,"Final Índice de Contenidos"]
[]
[]
["*","Descripción"]
[null,"Devuelve el valor máximo de una lista de valores. Omite los valores lógicos y texto."]
[null,"Volver al Principio"]
[]
["*","Sintaxis"]
[null,null,"MAX(número1, [número2], …)"]
[null,"Referencias a los argumentos de la función:"]
[null,"número1 (obligatorio):"," El primero de los valores a evaluar. También puede ser un rango."]
[null,"número2 (opcional):"," A partir del segundo número los parámetros son opcionales. De igual manera puedes colocar un número o un rango de celdas."]
[null,"Volver al Principio"]
[]
["*","Ejemplo1: Uso de la Función MAX"]
[null,"Consigna:","Obtener el máximo valor de las siguientes constantes: 12; 12 y 13."]
[]
[]
[null,"Resolución:"]
[null,"Resultado",{"$f":"MAX(12,12,13)","v":13}]
[null,"Función insertada",{"$f":"[1]!ForTexto(C29)","v":"=MAX(12;12;13)"}]
[]
[null,"Volver al Principio"]
[]
["*","Ejemplo2: Uso de la Función MAX"]
[null,"Consigna:","Obtener el valor máximo de los datos que se encuentran en un rango de datos."]
[null,"Inicio Análisis Consigna"]
[]
[null,"Resolución:"]
[null,"Resultado",{"$f":"MAX(B44:B49)","v":9}]
[null,"Función insertada",{"$f":"[1]!ForTexto(C39)","v":"=MAX(B44:B49)"}]
[]
[]
[null,"DATOS"]
[null,9]
[null,3]
[null,6]
[null,8]
[null,4]
[null,5]
[]
[]
[null,"Volver al Principio"]

{"sheet":"Min","index":6,"n_rows":53,"n_cols":3,"rows_kept":53,"cut":false,"hidden":false,"merged":[[2,1,2,2]]}
[null,"Volver a la Tabla: Listado de Funciones Numéricas"]
[]
[null,"Función MIN"]
[]
[null,"INDICE de CONTENIDOS"]
[null,"Descripción"]
[null,"Sintaxis"]
[null,"Ejemplo1: Uso de la Función MIN"]
[null,"Ejemplo2: Uso de la Función MIN"]
[null,"Final Índice de Contenidos"]
[]
[]
["*","Descripción"]
[null,"Devuelve el valor mínimo de una lista de valores. Omite los valores lógicos y texto."]
[null,"Volver al Principio"]
[]
["*","Sintaxis"]
[null,null,"MIN(número1, [número2], …)"]
[null,"Referencias a los argumentos de la función:"]
[null,"número1 (obligatorio):"," El primero de los valores a evaluar. También puede ser un rango."]
[null,"número2 (opcional):"," A partir del segundo número los parámetros son opcionales. De igual manera puedes colocar un número o un rango de celdas."]
[null,"Volver al Principio"]
[]
["*","Ejemplo1: Uso de la Función MIN"]
[null,"Consigna:","Obtener el mínimo valor de las siguientes constantes: 12; 12 y 13."]
[]
[]
[null,"Resolución:"]
[null,"Resultado",{"$f":"MIN(12,12,13)","v":12}]
[null,"Función insertada",{"$f":"[1]!ForTexto(C29)","v":"=MIN(12;12;13)"}]
[]
[null,"Volver al Principio"]
[]
["*","Ejemplo2: Uso de la Función MIN"]
[null,"Consigna:","Obtener el valor mínimo de los datos que se encuentran en un rango de datos."]
[]
[]
[null,"Resolución:"]
[null,"Resultado",{"$f":"MIN(B45:B50)","v":3}]
[null,"Función insertada",{"$f":"[1]!ForTexto(C39)","v":"=MIN(B45:B50)"}]
[]
[]
[]
[null,"DATOS"]
[null,9]
[null,3]
[null,6]
[null,8]
[null,4]
[null,5]
[]
[]
[null,"Volver al Principio"]

{"sheet":"Moda","index":7,"n_rows":53,"n_cols":3,"rows_kept":53,"cut":false,"hidden":false,"merged":[[2,1,2,2]]}
[null,"Volver a la Tabla: Listado de Funciones Numéricas"]
[]
[null,"Función MODA"]
[]
[null,"INDICE de CONTENIDOS"]
[null,"Descripción"]
[null,"Sintaxis"]
[null,"Ejemplo1: Uso de la Función MODA"]
[null,"Ejemplo2: Uso de la Función MODA"]
[null,"Final Índice de Contenidos"]
[]
[]
["*","Descripción"]
[null,"Devuelve el valor más frecuente o que más se repite en una matriz o rango de datos. Si no encuentra valores repetidos, la función devuelve error."]
[null,"Volver al Principio"]
[]
["*","Sintaxis"]
[null,null,"MODA(número1, [número2], …)"]
[null,"Referencias a los argumentos de la función:"]
[null,"número1 (obligatorio): ","El primer número a evaluar."]
[null,"número2 (opcional): ","El segundo número a evaluar y hasta 255 valores opcionales."]
[null,"Volver al Principio"]
[]
["*","Ejemplo1: Uso de la Función MODA"]
[null,"Consigna:","De las siguientes constantes: 12; 12 y 13 obtener el valor mas repetido."]
[]
[]
[null,"Resolución:"]
[null,"Resultado",{"$f":"MODE(12,12,13)","v":12}]
[null,"Función insertada",{"$f":"[1]!ForTexto(C29)","v":"=MODA(12;12;13)"}]
[]
[null,"Volver al Principio"]
[]
["*","Ejemplo2: Uso de la Función MODA"]
[null,"Consigna:","Obtener el valor mas repetido de los datos que se encuentran en un rango de datos."]
[]
[]
[null,"Resolución:"]
[null,"Resultado",{"$f":"MODE(B45:B50)","v":6}]
[null,"Función insertada",{"$f":"[1]!ForTexto(C39)","v":"=MODA(B45:B50)"}]
[]
[]
[]
[null,"DATOS"]
[null,9]
[null,3]
[null,6]
[null,8]
[null,6]
[null,5]
[]
[]
[null,"Volver al Principio"]

{"sheet":"Contar","index":8,"n_rows":53,"n_cols":3,"rows_kept":53,"cut":false,"hidden":false,"merged":[[2,1,2,2]]}
[null,"Volver a la Tabla: Listado de Funciones Numéricas"]
[]
[null,"Función CONTAR"]
[]
[null,"INDICE de CONTENIDOS"]
[null,"Descripción"]
[null,"Sintaxis"]
[null,"Ejemplo1: Uso de la Función CONTAR"]
[null,"Ejemplo2: Uso de la Función CONTAR"]
[null,"Final Índice de Contenidos"]
[]
[]
["*","Descripción"]
[null,"Cuenta la cantidad de celdas que contienen números."]
[null,"Volver al Principio"]
[]
["*","Sintaxis"]
[null,null,"CONTAR(valor1, [valor2], …)"]
[null,"Referencias a los argumentos de la función:"]
[null,"valor1 (obligatorio):"," Primer celda a considerar o el rango donde se desea contar."]
[null,"valor2 (opcional): ","Celdas o rangos adicionales a considerar. Hasta 255 elementos."]
[null,"Volver al Principio"]
[]
["*","Ejemplo1: Uso de la Función CONTAR"]
[null,"Consigna:","De las siguientes constantes: 12; 12 y 13, contar la cantidad de valores numéricos."]
[]
[]
[null,"Resolución:"]
[null,"Resultado",{"$f":"COUNT(12,12,13)","v":3}]
[null,"Función insertada",{"$f":"[1]!ForTexto(C29)","v":"=CONTAR(12;12;13)"}]
[]
[null,"Volver al Principio"]
[]
["*","Ejemplo2: Uso de la Función CONTAR"]
[null,"Consigna:","Contar la cantidad de valores numéricos que se encuentran en un rango de datos."]
[]
[]
[null,"Resolución:"]
[null,"Resultado",{"$f":"COUNT(B45:B50)","v":5}]
[null,"Función insertada",{"$f":"[1]!ForTexto(C39)","v":"=CONTAR(B45:B50)"}]
[]
[]
[null,"Inicio de Tabla de Datos"]
[null,"DATOS"]
[null,9]
[null,3]
[null,"12:00:00"]
[null,"Excel"]
[null,{"$f":"TODAY()","v":"2023-08-24"}]
[null,5]
[]
[]
[null,"Volver al Principio"]

{"sheet":"Contar.Si","index":9,"n_rows":73,"n_cols":5,"rows_kept":73,"cut":false,"hidden":false,"merged":[[2,1,2,2]]}
[null,"Volver a la Tabla: Listado de Funciones Numéricas"]
[]
[null,"Función CONTAR.SI"]
[]
[null,"INDICE de CONTENIDOS"]
[null,"Descripción"]
[null,"Sintaxis"]
[null,"Ejemplo1: Uso de la Función CONTAR.SI"]
[null,"Ejercicio"]
[null,"Final Índice de Contenidos"]
[]
[]
["*","Descripción"]
[null,"Cuenta las celdas de un rango que cumplen con el criterio."]
[null,"Volver al Principio"]
[]
["*","Sintaxis"]
[null,null,"CONTAR.SI(rango,criterio)"]
[null,"Referencias a los argumentos de la función:"]
[null,"rango (obligatorio): ","El rango de celdas a las que se le aplicará la condición para considerar su cuenta."]
[null,"criterio (obligatorio): ","La condición que se debe cumplir para ser incluido en la cuenta."]
[null,"Respecto a la definición de los criterios:"]
[null,"El criterio se puede definir en forma de número, expresión o texto."]
[null,"En la definición de los criterios como expresión, se pueden utilizar operadores de comparación, como por ejemplo: <; >; <=; etc."]
[null,"NOTA: cuando el criterio se define como una expresión o como un texto, el mismo va encerrado entre doble comillas."]
[null,"Ejemplo de un criterio definido como una expresión: \">32\""]
[null,"Ejemplo de un criterio definido como un numero: 32"]
[null,"Ejemplo de un criterio definido como un texto: \"manzanas\""]
[null,"Volver al Principio"]
[]
["*","Ejemplo1: Uso de la Función CONTAR.SI"]
[null,"Consigna:","Dado un rango de datos, contar las celdas que tienen el valor 3."]
[]
[]
[null,"Resolución:"]
[null,"Resultado",{"$f":"COUNTIF(B42:B47,3)","v":2}]
[null,"Función insertada",{"$f":"[1]!ForTexto(C36)","v":"=CONTAR.SI(B42:B47;3)"}]
[]
[]
[null,"Inicio de Tabla de Datos"]
[null,"DATOS"]
[null,9]
[null,3]
[null,6]
[null,"Excel"]
[null,3]
[null,5]
[]
[null,"Volver al Principio"]
[]
["*","Ejercicio"]
[null,"Consigna:","Dada una Tabla de datos donde se encuentra información referida a los productos almacenados en un depósito, Se pide determinar la cantidad de productos que pertenecen a la categoría A de inflamabilidad."]
[]
[]
[null,"Resolución:"]
[null,"Resultado",{"$f":"COUNTIF(E62:E70,\"A\")","v":4}]
[null,"Función insertada",{"$f":"[1]!ForTexto(C56)","v":"=CONTAR.SI(E62:E70;\"A\")"}]
[]
[]
[null,"Inicio de Tabla de Datos"]
[null,"Código","Cantidad","Precio Unit.","Inflamable (Categ.)"]
[null,"a1",12568,0.23,"A"]
[null,"a2",2356,0.25,"B"]
[null,"a3",4588,0.36,"A"]
[null,"b1",9522,0.14000000000000001,"C"]
[null,"b2",12544,0.18,"A"]
[null,"b3",1020,0.6,"C"]
[null,"c1",15402,0.27,"A"]
[null,"c2",6598,0.78,"B"]
[null,"c3",8787,1.02,"B"]
[]
[]
[null,"Volver al Principio"]

{"sheet":"Sumar.Si","index":10,"n_rows":78,"n_cols":5,"rows_kept":78,"cut":false,"hidden":false,"merged":[[2,1,2,2]]}
[null,"Volver a la Tabla: Listado de Funciones Numéricas"]
[]
[null,"Función SUMAR.SI"]
[]
[null,"INDICE de CONTENIDOS"]
[null,"Descripción"]
[null,"Sintaxis"]
[null,"Ejemplo1: Uso de la Función SUMAR.SI"]
[null,"Ejercicio"]
[null,"Final Índice de Contenidos"]
[]
[]
["*","Descripción"]
[null,"Suma las celdas en el rango que coinciden con el argumento criterio."]
[null,"Volver al Principio"]
[]
["*","Sintaxis"]
[null,null,"SUMAR.SI( rango ; criterio ; rango_suma)"]
[null,"Referencias a los argumentos de la función:"]
[null,"\u009bRango:"," es el rango de celdas que desea evaluar."]
[null,"Criterio: "," es el criterio en forma de número, expresión o texto, que determina las celdas que se van a sumar."]
[null,"\u009bRango_suma:"," son las celdas que se van a sumar."]
[null,"Observaciones de los argumentos."]
[null,"\u009bLas celdas contenidas en rango_suma se suman sólo si las celdas correspondientes del rango coinciden con el criterio."]
[null,"\u009bSi rango_suma se omite, se suman las celdas contenidas en el argumento rango."]
[null,"Respecto a la definición de los criterios:"]
[null,"El criterio se puede definir en forma de número, expresión o texto."]
[null,"En la definición de los criterios como expresión, se pueden utilizar operadores de comparación, como por ejemplo: <; >; <=; etc."]
[null,"NOTA: cuando el criterio se define como una expresión o como un texto, el mismo va encerrado entre doble comillas."]
[null,"Ejemplo de un criterio definido como una expresión: \">32\""]
[null,"Ejemplo de un criterio definido como un numero: 32"]
[null,"Ejemplo de un criterio definido como un texto: \"manzanas\""]
[null,"Volver al Principio"]
[]
["*","Ejemplo1: Uso de la Función SUMAR.SI"]
[null,"Consigna:","Dada una tabla de valores, donde se especifican los valores de propiedad con sus respectivas comisiones, \nSe pide \u009bsumar las comisiones para los valores de propiedad superiores a 160000."]
[]
[]
[null,"Resolución:"]
[null,"Resultado",{"$f":"SUMIF(B46:B52,\">160000\",C46:C52)","v":189000}]
[null,"Función insertada",{"$f":"[1]!ForTexto(C40)","v":"=SUMAR.SI(B46:B52;\">160000\";C46:C52)"}]
[]
[]
[null,"Inicio de Tabla de Datos"]
[null,"VALOR DE PROPIEDAD","COMISION"]
[null,100000,7000]
[null,200000,14000]
[null,300000,21000]
[null,400000,28000]
[null,500000,35000]
[null,600000,42000]
[null,700000,49000]
[]
[null,"Volver al Principio"]
[]
["*","Ejercicio"]
[null,"Consigna:","Dada una Tabla de datos donde se encuentra información referida a los productos almacenados en un depósito : Se pide Hallar la suma de la cantidad de productos con un precio unitario menor a 0,5."]
[]
[]
[null,"Resolución:"]
[null,"Resultado",{"$f":"SUMIF(D67:D75,\"<0,5\",C67:C75)","v":56980}]
[null,"Función insertada",{"$f":"[1]!ForTexto(C61)","v":"=SUMAR.SI(D67:D75;\"<0,5\";C67:C75)"}]
[]
[]
[]
[null,"Código","Cantidad","Precio Unit.","Inflamable (Categ.)"]
[null,"a1",12568,0.23,"A"]
[null,"a2",2356,0.25,"B"]
[null,"a3",4588,0.36,"A"]
[null,"b1",9522,0.14000000000000001,"C"]
[null,"b2",12544,0.18,"A"]
[null,"b3",1020,0.6,"C"]
[null,"c1",15402,0.27,"A"]
[null,"c2",6598,0.78,"B"]
[null,"c3",8787,1.02,"B"]
[]
[]
[null,"Volver al Principio"]

{"sheet":"Contar.Si.Conjunto","index":11,"n_rows":53,"n_cols":5,"rows_kept":53,"cut":false,"hidden":false,"merged":[[2,1,2,3]]}
[null,"Volver a la Tabla: Listado de Funciones Numéricas"]
[]
[null,"Función CONTAR.SI.CONJUNTO"]
[]
[null,"INDICE de CONTENIDOS"]
[null,"Descripción"]
[null,"Sintaxis"]
[null,"Ejemplo1: Uso de la Función CONTAR.SI.CONJUNTO"]
[null,"Final Índice de Contenidos"]
[]
[]
["*","Descripción"]
[null,"Cuenta las celdas de un rango que cumplan con varios criterios especificados."]
[null,"Volver al Principio"]
[]
["*","Sintaxis"]
[null,null,"CONTAR.SI.CONJUNTO(rango_criterios1, criterio1, [rango_criterios2], [criterio2])"]
[null,"Referencias a los argumentos de la función:"]
[null,"\u009brango_criterios1 (obligatorio): \n","El rango al que se le aplicará el primer criterio."]
[null,"\u009bcriterio1 (obligatorio):"," El criterio que se aplicará al primer rango para ser considerado en la cuenta."]
[null,"\u009brango_criterios2 (opcional): ","El segundo rango al que se le aplicará un criterio."]
[null,"\u009bcriterio2 (opcional):"," El criterio que se aplicará al segundo rango para ser considerado en la cuenta. Se permiten hasta 127 pares de rango y criterio adicionales."]
[null,"Observaciones de los argumentos."]
[null,"\u009bLas celdas contenidas en rango_criterio1 se cuentan sólo si las celdas correspondientes del rango coinciden con el criterio1."]
[null,"Respecto a la definición de los criterios:"]
[null,"El criterio se puede definir en forma de número, expresión o texto."]
[null,"En la definición de los criterios como expresión, se pueden utilizar operadores de comparación, como por ejemplo: <; >; <=; etc."]
[null,"NOTA: cuando el criterio se define como una expresión o como un texto, el mismo va encerrado entre doble comillas."]
[null,"Ejemplo de un criterio definido como una expresión: \">32\""]
[null,"Ejemplo de un criterio definido como un numero: 32"]
[null,"Ejemplo de un criterio definido como un texto: \"manzanas\""]
[null,"Volver al Principio"]
[]
["*","Ejemplo1: Uso de la Función CONTAR.SI.CONJUNTO"]
[null,"Consigna:","Dada una tabla de datos de alumnos que contiene; información de  resultados de una materia; notas de 2 parciales y el porcentaje de asistencia. Se pide obtener la cantidad de alumnos que promocionan la materia, considerando que la promoción se obtiene con el 80% de asistencia y con resultados de parciales igual o superior a 7."]
[]
[]
[null,"Resolución:"]
[null,"Resultado: Cantidad de promocionados",{"$f":"COUNTIFS(C45:C50,\">=70\",D45:D50,\">=7\",E45:E50,\">=7\")","v":3}]
[null,"Función insertada",{"$f":"[1]!ForTexto(C39)","v":"=CONTAR.SI.CONJUNTO(C45:C50;\">=70\";D45:D50;\">=7\";E45:E50;\">=7\")"}]
[]
[]
[null,"Inicio de Tabla de Datos"]
[null,"Alumno","% asistencia","1er Parcial","2do Parcial"]
[null,"Juan",70,7,7]
[null,"Pedro",85,7,8]
[null,"Maria",50,5,2]
[null,"Mario",90,6,8]
[null,"Leonardo",95,9,9]
[null,"Fatima",85,9,6]
[]
[]
[null,"Volver al Principio"]

{"sheet":"Sumar.Si.Conjunto","index":12,"n_rows":105,"n_cols":8,"rows_kept":105,"cut":false,"hidden":false,"merged":[[2,1,2,3],[68,1,68,3],[73,1,73,2]]}
[null,"Volver a la Tabla: Listado de Funciones Numéricas"]
[]
[null,"Función SUMAR.SI.CONJUNTO"]
[]
[null,"INDICE de CONTENIDOS"]
[null,"Descripción"]
[null,"Sintaxis"]
[null,"Ejemplo1: Uso de la Función SUMAR.SI.CONJUNTO"]
[null,"Ejercicio: Función Sumar.Si.Conjunto y Contar.Si.Conjunto "]
[null,"Final Índice de Contenidos"]
[]
[]
["*","Descripción"]
[null,"La función SUMAR.SI.CONJUNTO nos permite sumar los valores de un rango de celdas que cumplen con varias condiciones. "]
[null,"A diferencia de la función SUMAR.SI que permite un solo criterio, la función SUMAR.SI.CONJUNTO permite hasta 127 criterios."]
[null,"Volver al Principio"]
[]
["*","Sintaxis"]
[null,null,"SUMAR.SI.CONJUNTO(rango_suma; rango_criterios1; criterios1; [rango_criterios2; criterios2];...) "]
[null,"Referencias a los argumentos de la función:"]
[null,"\u009bRango_suma (obligatorio): ","El rango de celdas que contiene los valores a sumar."]
[null,"\u009bRango_criterios1 (obligatorio): ","El rango de celdas que será evaluado por el Criterio1."]
[null,"\u009bCriterio1 (obligatorio): ","El criterio que deben cumplir las celdas del Rango_criterios1."]
[null,"\u009bRango_criterios2 (opcional): ","El segundo rango de celdas que será evaluado por el Criterio2."]
[null,"\u009bCriterio2 (opcional): ","El criterio que deben cumplir las celdas del Rango_criterios2."]
[null,"Observaciones de los argumentos"]
[null,"Los valores de las celdas del rango_suma se sumarán solamente si cumplen con los criterios especificados. "]
[null,"Solo el Rango_criterios1 y Criterio1 son obligatorios, a partir de ellos podemos especificar múltiples combinaciones de Rango_criterio y Criterio hasta un máximo de 127."]
[null,"Respecto a la definición de los criterios:"]
[null,"El criterio se puede definir en forma de número, expresión o texto."]
[null,"En la definición de los criterios como expresión, se pueden utilizar operadores de comparación, como por ejemplo: <; >; <=; etc."]
[null,"En los criterios también se pueden utilizar caracteres comodín como el signo de interrogación (?) para indicar un solo carácter o un asterisco (*) que indicará una secuencia de caracteres."]
[null,"NOTA: cuando el criterio se define como una expresión o como un texto, el mismo va encerrado entre doble comillas."]
[null,"Ejemplo de un criterio definido como una expresión: \">32\""]
[null,"Ejemplo de un criterio definido como una expresión en donde se utiliza un carácter comodín: \"a*\", en esta definición se buscan constantes que inicien con la letra a."]
[null,"Ejemplo de un criterio definido como un numero: 32"]
[null,"Ejemplo de un criterio definido como un texto: \"manzanas\""]
[null,"Volver al Principio"]
[]
["*","Ejemplo1: Uso de la Función SUMAR.SI.CONJUNTO"]
[null,"Consigna:","En un depósito se encuentran almacenados distintos productos. Se pide obtener la suma de la cantidad de productos con un precio unitario menor a 0,5  y cuya categoría sea C."]
[]
[]
[null,"Resolución:"]
[null,"Resultado",{"$f":"SUMIFS(C51:C59, D51:D59,\"<0,5\",E51:E59,\"C\")","v":9522}]
[null,"Función insertada",{"$f":"[1]!ForTexto(C45)","v":"=SUMAR.SI.CONJUNTO(C51:C59; D51:D59;\"<0,5\";E51:E59;\"C\")"}]
[]
[]
[null,"Inicio de Tabla de Datos"]
[null,"Código","Cantidad","Precio Unit.","Inflamable (Categ.)"]
[null,"a1",12568,0.23,"A"]
[null,"a2",2356,0.25,"B"]
[null,"a3",4588,0.36,"A"]
[null,"b1",9522,0.14000000000000001,"C"]
[null,"b2",12544,0.18,"A"]
[null,"b3",1020,0.6,"C"]
[null,"c1",15402,0.27,"A"]
[null,"c2",6598,0.78,"B"]
[null,"c3",8787,1.02,"B"]
[]
[]
[null,"Volver al Principio"]
[]
["*","Ejercicio: Función Sumar.Si.Conjunto y Contar.Si.Conjunto "]
[]
[null,"Consigna:","Completar los resultados en el Formulario de Consulta de Empleados.\nSe pide: Para una Sede y Departamentos consultados mostrar la cantidad de empleados y el monto invertido para el pago de los salarios de los empleados.\nLa Sede y el Departamento son parámetros de entrada, a partir de los cuales se deben obtener los resultados."]
[]
[]
[null,"Formulario de Consulta"]
[]
[null,"Sede"]
[null,"Departamento"]
[]
[null,"Resultados de Consulta"]
[null,"Cantidad de Empleados:"]
[null,"Monto invertido para el pago de salario de los empleados:"]
[]
[]
[]
[]
[]
[null,"Código Empleado","Fecha-Ingreso","Apellido, Nombre","Sede","Categoría","Departamento","Salario"]
[null,11,"1994-04-22","Alcalde, Juan","Vigo","Directivo","Dirección",140000]
[null,20,"1994-04-14","Cauce, Gerardo","Albacete","Directivo","Dirección",140000]
[null,1,"2000-07-03","Marín, Angel","Vigo","Administrativo","Financiero",32100]
[null,3,"1999-07-03","Fernández, Fernando","Albacete","Administrativo","Financiero",35000]
[null,10,"1999-06-25","López-Gil, José","Albacete","Administrativo","Financiero",38500]
[null,15,"1994-11-15","Martínez, Segundo","Albacete","Administrativo","Financiero",35000]
[null,19,"1995-12-07","Gutiérrez, Sonsoles","Albacete","Administrativo","Financiero",32500]
[null,4,"1995-11-29","Villamanta, Asunción","Albacete","Técnico","Personal",41000]
[null,7,"2000-10-24","Alvarez, Rosa","Albacete","Técnico","Personal",40000]
[null,8,"1994-08-20","Subirats, Nuria","Albacete","Administrativo","Personal",29000]
[null,13,"1994-06-18","Arozamena, Felicidad","Vigo","Directivo","Personal",95000]
[null,18,"1994-06-10"," Alvarez, Cesar","Albacete","Administrativo","Personal",34250]
[null,2,"1997-01-15","De Miguel, José","Vigo","Comercial","Ventas",53800]
[null,5,"1998-04-09","Olabarría, Felipe","Vigo","Comercial","Ventas",56800]
[null,6,"1998-04-01","Díaz, Saúl","Albacete","Comercial","Ventas",60000]
[null,9,"1995-09-23","Segura, Enrique","Vigo","Directivo","Ventas",125000]
[null,12,"1999-07-05","Ruiz, Lorenzo","Vigo","Comercial","Ventas",58000]
[null,14,"1999-06-27","García, Reyes","Vigo","Comercial","Ventas",55000]
[null,16,"2000-12-22","Fernández, Laureano","Albacete","Comercial","Ventas",53400]
[null,17,"1999-04-02","Sotillos, Ana","Vigo","Comercial","Ventas",53400]
[]
[]
[null,"Volver al Principio"]

{"sheet":"Aleatorio","index":13,"n_rows":97,"n_cols":4,"rows_kept":97,"cut":false,"hidden":false,"merged":[[2,1,2,2]]}
[null,"Volver a la Tabla: Listado de Funciones Numéricas"]
[]
[null,"Función ALEATORIO"]
[]
[null,"INDICE de CONTENIDOS"]
[null,"Descripción"]
[null,"Sintaxis"]
[null,"Ejemplo1: Uso de la Función ALEATORIO"]
[null,"Ejemplo2: Uso de la Función ALEATORIO"]
[null,"Ejercicio"]
[null,"Final Índice de Contenidos"]
[]
[]
["*","Descripción"]
[null,"Devuelve un número aleatorio mayor o igual que 0 y menor que 1, distribuido uniformemente. "]
[null,"Es decir, genera valores reales en el rango 0-1."]
[null,"La función aleatorio no tiene parámetros."]
[null,"Cada vez que se calcula la hoja de cálculo, se devuelve un número aleatorio nuevo."]
[null,"Volver al Principio"]
[]
["*","Sintaxis"]
[null,null,"ALEATORIO( )"]
[null,"Observaciones para generar números aleatorios reales fuera del rango [0-1]"]
[null,"Para generar un número real aleatorio entre a y b, es decir números reales fuera del rango 0-1 usar: "]
[null," ALEATORIO()*(b-a)+a"]
[null,"a: es el valor mínimo"]
[null,"b: es el valor máximo."]
[null,"Volver al Principio"]
[]
["*","Ejemplo1: Uso de la Función ALEATORIO"]
[null,"Consigna:","Generar un numero aleatorio real en rango 0-1."]
[]
[]
[null,"Resolución:"]
[null,"Resultado",{"$f":"RAND()","v":0.88142654822561983}]
[null,"Función insertada",{"$f":"[1]!ForTexto(C35)","v":"=ALEATORIO()"}]
[]
[null,"Volver al Principio"]
[]
["*","Ejemplo2: Uso de la Función ALEATORIO"]
[null,"Consigna:","Se pide generar un valor aleatorio real en el rango 1 y 1000."]
[]
[null,"Formula utilizada:"," ALEATORIO()*(b-a)+a"]
[null,"Cantidad de parámetros:",2]
[null,"a (valor mínimo):",1]
[null,"b (valor máximo):",1000]
[]
[null,"Resolución 1: Con parámetros definidos como constantes dentro de la formula."]
[null,"Resultado",{"$f":"RAND()*(1000-1)+1","v":180.22313454065363}]
[null,"Formula insertada",{"$f":"[1]!ForTexto(C49)","v":"=ALEATORIO()*(1000-1)+1"}]
[]
[]
[null,"Resolución 2:  Con parámetros definidos como referencias a otras celdas donde se encuentran sus valores."]
[null,"Resultado",{"$f":"RAND()*(C46-C45)+C45","v":289.81492509334532}]
[null,"Formula insertada",{"$f":"[1]!ForTexto(C54)","v":"=ALEATORIO()*(C46-C45)+C45"}]
[]
[null,"Volver al Principio"]
[]
["*","Ejercicio"]
[null,"Consigna:","Generar notas aleatorias reales, correspondiente a 2 parciales, en el rango 1-10 para la lista de alumnos que se encuentra en Tabla de datos."]
[]
[null,"Formula utilizada:"," ALEATORIO()*(b-a)+a"]
[null,"Cantidad de parámetros:",2]
[null,"a (valor mínimo):",1]
[null,"b (valor máximo):",10]
[]
[]
[null,"Resolución:"]
[null,"Resultado",{"$f":"RAND()*($C$65-$C$64)+$C$64","v":2.0625631549089527},"Valor ejemplo de lo que devuelve la formula insertada. Para resolver la consigna, la formula debe ser insertada en el primer registro del campo2 (primer parcial) y campo3 (segundo parcial) de la tabla y luego se copia al resto de los registros.  Antes de copiar la función se debe revisar las referencias de la función, para que sean relativas, absolutas o mixtas según corresponda."]
[null,"Formula insertada",{"$f":"[1]!ForTexto(C69)","v":"=ALEATORIO()*($C$65-$C$64)+$C$64"}]
[]
[]
[]
[null,"Apellido, Nombre","1er Parcial","2do Parcial"]
[null,"Marín, Angel"]
[null,"De Miguel, José"]
[null,"Fernández, Fernando"]
[null,"Villamanta, Asunción"]
[null,"Olabarría, Felipe"]
[null,"Díaz, Saúl"]
[null,"Alvarez, Rosa"]
[null,"Subirats, Nuria"]
[null,"Segura, Enrique"]
[null,"López-Gil, José"]
[null,"Alcalde, Juan"]
[null,"Ruiz, Lorenzo"]
[null,"Arozamena, Felicidad"]
[null,"García, Reyes"]
[null,"Martínez, Segundo"]
[null,"Fernández, Laureano"]
[null,"Sotillos, Ana"]
[null," Alvarez, Cesar"]
[null,"Gutiérrez, Sonsoles"]
[null,"Cauce, Gerardo"]
[]
[]
[null,"Volver al Principio"]

{"sheet":"Aleatorio.Entre","index":14,"n_rows":80,"n_cols":4,"rows_kept":80,"cut":false,"hidden":false,"merged":[[2,1,2,3]]}
[null,"Volver a la Tabla: Listado de Funciones Numéricas"]
[]
[null,"Función ALEATORIO.ENTRE"]
[]
[null,"INDICE de CONTENIDOS"]
[null,"Descripción"]
[null,"Sintaxis"]
[null,"Ejemplo1: Uso de la Función Aleatorio.Entre"]
[null,"Ejercicio"]
[null,"Final Índice de Contenidos"]
[]
[]
["*","Descripción"]
[null,"Devuelve un número aleatorio entero entre 2 números especificados. "]
[null,"Cada vez que se actualiza la hoja de cálculo, se devuelve un número aleatorio nuevo."]
[null,"Volver al Principio"]
[]
["*","Sintaxis"]
[null,null,"ALEATORIO.ENTRE(inferior,superior)"]
[null,"Referencias a los argumentos de la función:"]
[null,"\u009bInferior :  ","es el menor número entero que la función ALEATORIO.ENTRE puede devolver."]
[null,"Superior:  ","es el mayor número entero que la función ALEATORIO.ENTRE puede devolver"]
[null,"Volver al Principio"]
[]
["*","Ejemplo1: Uso de la Función Aleatorio.Entre"]
[null,"Consigna:","Se pide generar un valor aleatorio entero en el rango 1 y 100."]
[]
[null,"Cantidad de parámetros:",2]
[null,"\u009bInferior :  ",1]
[null,"Superior:  ",100]
[]
[null,"Resolución 1: Con parámetros definidos como constantes dentro de la función."]
[null,"Resultado",{"$f":"RANDBETWEEN(1,100)","v":60}]
[null,"Función insertada",{"$f":"[1]!ForTexto(C33)","v":"=ALEATORIO.ENTRE(1;100)"}]
[]
[]
[null,"Resolución 2:  Con parámetros definidos como referencias a otras celdas donde se encuentran sus valores."]
[null,"Resultado",{"$f":"RANDBETWEEN(C29,C30)","v":94}]
[null,"Función insertada",{"$f":"[1]!ForTexto(C38)","v":"=ALEATORIO.ENTRE(C29;C30)"}]
[]
[null,"Volver al Principio"]
[]
["*","Ejercicio"]
[null,"Consigna:","Generar notas aleatorias enteras, correspondiente a 2 parciales, en el rango 1-10 para la lista de alumnos que se encuentra en Tabla de datos."]
[]
[null,"Formula utilizada:"," ALEATORIO.ENTRE"]
[null,"Cantidad de parámetros:",2]
[null,"Inferior:",1]
[null,"Superior:",10]
[]
[null,"Resolución:"]
[null,"Resultado",{"$f":"RANDBETWEEN($C$48,$C$49)","v":7},"Valor ejemplo de lo que devuelve la formula insertada. Para resolver la consigna, la formula debe ser insertada en el primer registro del campo2 (primer parcial) y campo3 (segundo parcial) de la tabla y luego se copia al resto de los registros.  Antes de copiar la función se debe revisar las referencias de la función, para que sean relativas, absolutas o mixtas según corresponda."]
[null,"Función insertada",{"$f":"[1]!ForTexto(C52)","v":"=ALEATORIO.ENTRE($C$48;$C$49)"}]
[null,"Final Resolución"]
[]
[null,"Inicio de Tabla de Datos"]
[null,"Apellido, Nombre","1er Parcial","2do Parcial"]
[null,"Marín, Angel"]
[null,"De Miguel, José"]
[null,"Fernández, Fernando"]
[null,"Villamanta, Asunción"]
[null,"Olabarría, Felipe"]
[null,"Díaz, Saúl"]
[null,"Alvarez, Rosa"]
[null,"Subirats, Nuria"]
[null,"Segura, Enrique"]
[null,"López-Gil, José"]
[null,"Alcalde, Juan"]
[null,"Ruiz, Lorenzo"]
[null,"Arozamena, Felicidad"]
[null,"García, Reyes"]
[null,"Martínez, Segundo"]
[null,"Fernández, Laureano"]
[null,"Sotillos, Ana"]
[null," Alvarez, Cesar"]
[null,"Gutiérrez, Sonsoles"]
[null,"Cauce, Gerardo"]
[]
[]
[null,"Volver al Principio"]

{"sheet":"FUNCIONES LOGICAS","index":15,"n_rows":29,"n_cols":5,"rows_kept":29,"cut":false,"hidden":false,"merged":[[2,1,2,2]]}
[null,"Volver al INDICE GENERAL"]
[]
[null,"Funciones Lógicas"]
[]
[null,"INDICE de CONTENIDOS"]
[null,"Introducción"]
[null,"Tabla: Listado de Funciones Lógicas"]
[null,"     SI"]
[null,"     Y"]
[null,"     O"]
[null,"Final Índice de Contenidos"]
[]
[]
["*","Introducción"]
[null,"Las funciones lógicas se utilizan en la toma de decisiones. "]
[null,"En base al resultado de una función decidiremos si ejecutar o no cierta acción requerida."]
[null,"Operan con argumentos de tipo lógico (VERDADERO y FALSO)"]
[null,"Volver al Principio"]
[]
["*","Tabla: Listado de Funciones Lógicas"]
[]
[]
[null,"NOMBRE DE LA FUNCION","SINTAXIS","DESCRIPCION","CATEGORIA DE LA FUNCION"]
["=>","SI","SI(condición; valor_si_verdadero; valor_si_falso)","Evalúa una condición y devuelve un valor si la condición es verdadera y otro valor si la condición es falsa.","Lógica"]
["=>","Y","Y(valor_lógico1; valor_lógico2; valor_lógico3; …)","Evalúa una serie de condiciones pasadas como argumento de la función. Regresa el valor VERDADERO si todos los parámetros son verdaderos ó regresa FALSO si alguno de los parámetros es falso.","Lógica"]
["=>","O","O(valor_lógico1; valor_lógico2; valor_lógico3; …)","Evalúa una serie de condiciones pasadas como argumento de la función. Regresa el valor VERDADERO si alguno de los parámetros es verdadero ó regresa FALSO si todos los parámetros son falsos.","Lógica"]
[]
[]
[null,"Volver al Principio"]

{"sheet":"Fn Y - Fn O","index":16,"n_rows":110,"n_cols":9,"rows_kept":110,"cut":false,"hidden":false,"merged":[[2,1,2,2]]}
[null,"Inicio Tabla: Listado de Funciones Lógicas"]
[]
[null,"Función Y() - Función O()"]
[]
[null,"INDICE de CONTENIDOS"]
[null,"Función Y()"]
[null,"     Sintaxis"]
[null,"     Ejemplo1: Uso de la Función Y()"]
[null,"Función O()"]
[null,"     Sintaxis"]
[null,"     Ejemplo1: Uso de la Función O()"]
[null,"Ejercicio: Función Y()- O()"]
[null,"Final Índice de Contenidos"]
[]
[]
["*","Función Y()"]
[null,"Evalúa una serie de condiciones y regresa el valor VERDADERO si todas son verdaderas ó regresa FALSO si alguna de ellas es falso."]
[null,"Volver al Principio"]
[]
["=>","Sintaxis"]
[null,null,"Y(valor_lógico1; valor_lógico2; valor_lógico3; …)"]
[null,"Referencias a los argumentos de la función:"]
[null,"valor_lógico1  Obligatorio."," La primera condición que desea probar se puede evaluar como VERDADERO o FALSO."]
[null,"valor_lógico2; ...  Opcional."," Las condiciones adicionales que desea probar se pueden evaluar como VERDADERO o FALSO, hasta un máximo de 255 condiciones."]
[null,"Respecto a la definición de una condición que devuelve un valor lógico:"]
[null,"La Condición se debe expresar de manera que su resultado sea un valor lógico, es decir VERDADERO o FALSO."]
[null,"Expresiones que devuelven valores lógicos:"]
[null,"Expresiones que utilizan operadores de comparación."]
[null,"Ejemplo 1: Expresión que utiliza un  operador de comparación"]
[null,"Resultado",{"$f":"3>7","v":false}]
[null,"Formula insertada",{"$f":"[1]!ForTexto(C30)","v":"=3>7"}]
[null,"Volver al Principio"]
[]
["=>","Ejemplo1: Uso de la Función Y()"]
[null,"Consigna:",{"$f":"\"Evaluar la siguiente expresion: \" & [1]!ForTexto(C39)","v":"Evaluar la siguiente expresion: =Y(C38>=7;C38<9)"}]
[null,null,{"$f":"\"¿ Para que valores de la celda  \" & CHAR(COLUMN(C38)+64) & ROW(C38) & \", el Resultado seria Verdadero?\"","v":"¿ Para que valores de la celda  C38, el Resultado seria Verdadero?"}]
[]
[null,"Ingrese un valor ===>"]
[null,"Resultado",{"$f":"AND(C38>=7,C38<9)","v":false}]
[null,"Función insertada",{"$f":"[1]!ForTexto(C39)","v":"=Y(C38>=7;C38<9)"}]
[]
[null,"Volver al Principio"]
[]
[]
["*","Función O()"]
[null,"Evalúa una serie de condiciones y regresa el valor VERDADERO si al menos una de ellas es verdadera, de lo contrario regresa FALSO."]
[null,"Volver al Principio"]
[]
["=>","Sintaxis"]
[null,null,"O(valor_lógico1; valor_lógico2; valor_lógico3; …)"]
[null,"Referencias a los argumentos de la función:"]
[null,"valor_lógico1  Obligatorio."," La primera condición que desea probar se puede evaluar como VERDADERO o FALSO."]
[null,"valor_lógico2; ...  Opcional."," Las condiciones adicionales que desea probar se pueden evaluar como VERDADERO o FALSO, hasta un máximo de 255 condiciones."]
[null,"Volver al Principio"]
[]
[]
["=>","Ejemplo1: Uso de la Función O()"]
[null,"Consigna:",{"$f":"\"Evaluar la siguiente expresion: \" & [1]!ForTexto(C62)","v":"Evaluar la siguiente expresion: =O(C61>=7;C61<9)"}]
[null,null,{"$f":"\"¿ Para que valores de la celda  \" & CHAR(COLUMN(C61)+64) & ROW(C61) & \", el Resultado seria Verdadero?\"","v":"¿ Para que valores de la celda  C61, el Resultado seria Verdadero?"}]
[]
[null,"Ingrese un valor ===>"]
[null,"Resultado",{"$f":"OR(C61>=7,C61<9)","v":true}]
[null,"Función insertada",{"$f":"[1]!ForTexto(C62)","v":"=O(C61>=7;C61<9)"}]
[]
[]
[null,"Volver al Principio"]
[]
[]
["*","Ejercicio: Función Y()- O()"]
[null,"Suponga un conjunto de artículos.  "]
[null,"El tipo de artículo (puede tomar tres valores: “electrónica”, “hogar” y “moda”) "]
[null,"La cantidad en almacén de cada uno (valores de 0 a 99) "]
[null,"El precio sin IVA "]
[null,"Suponiendo que: "]
[null,"- No se puede tener en el almacén más de 99 unidades de un mismo artículo "]
[null,"- El IVA es de un 18% "]
[]
[null,"¿Cómo expresarías con una fórmula lógica los siguientes enunciados? "]
[null,"A. Artículos de moda con un stock de 50 unidades o más. "]
[null,"B. Artículos que siendo de hogar o de moda tienen un precio sin IVA entre los 100 y los 150 $."]
[null,"C. Artículos con un precio superior a 999 $ y un stock mínimo de 40. "]
[null,"D. Artículos con más de 20 unidades en stock y con un precio (incluido el IVA) entre los 50 y los 150 $. "]
[]
[null,"Tabla de Datos"]
[null,"Código","Tipo de Producto","Stock","Precio sin IVA","A)","B)","C)","D)"]
[null,1,"Electrónica",20,45,{"$f":"AND(C86=\"moda\",D86>=50)","v":false},{"$f":"AND(OR(C86=\"moda\",C86=\"hogar\"),AND(E86>=100,E86<=150))","v":false},{"$f":"AND(E86>999,D86>=40)","v":false},{"$f":"AND(D86>20,((E86*18%)+E86)>50,((E86*18%)+E86)<150)","v":false}]
[null,2,"Moda",56,1500,{"$f":"AND(C87=\"moda\",D87>=50)","v":true},{"$f":"AND(OR(C87=\"moda\",C87=\"hogar\"),AND(E87>=100,E87<=150))","v":false},{"$f":"AND(E87>999,D87>=40)","v":true},{"$f":"AND(D87>20,((E87*18%)+E87)>50,((E87*18%)+E87)<150)","v":false}]
[null,3,"Electrónica",99,72,false,false,false,true]
[null,4,"Hogar",99,200,false,false,false,false]
[null,5,"Moda",50,30,true,false,false,false]
[null,6,"Hogar",89,20,false,false,false,false]
[null,7,"Electrónica",35,7,false,false,false,false]
[null,8,"Hogar",0,130,false,true,false,false]
[null,9,"Hogar",99,1200,false,false,true,false]
[null,10,"Electrónica",50,25,false,false,false,false]
[null,11,"Moda",15,80,false,false,false,false]
[null,12,"Moda",99,65,true,false,false,true]
[null,13,"Electrónica",42,1700,false,false,true,false]
[null,14,"Moda",99,140,true,true,false,false]
[null,15,"Hogar",0,80,false,false,false,false]
[]
[null,"Resolución:"]
[null,"Formula insertada para el Ítem A (en el 1er reg. De la tabla)",{"$f":"[1]!ForTexto(F86)","v":"=Y(C86=\"moda\";D86>=50)"}]
[null,"Formula insertada para el Ítem B (en el 1er reg. De la tabla)",{"$f":"[1]!ForTexto(G86)","v":"=Y(O(C86=\"moda\";C86=\"hogar\");Y(E86>=100;E86<=150))"}]
[null,"Formula insertada para el Ítem C  (en el 1er reg. De la tabla)",{"$f":"[1]!ForTexto(H86)","v":"=Y(E86>999;D86>=40)"}]
[null,"Formula insertada para el Ítem D  (en el 1er reg. De la tabla)",{"$f":"[1]!ForTexto(I88)","v":"=Y(D88>20;((E88*18%)+E88)>50;((E88*18%)+E88)<150)"}]
[]
[]
[]
[null,"Volver al Principio"]

{"sheet":"SI","index":17,"n_rows":110,"n_cols":7,"rows_kept":110,"cut":false,"hidden":false,"merged":[[2,1,2,2]]}
[null,"Inicio Tabla: Listado de Funciones Lógicas"]
[]
[null,"Función SI"]
[]
[null,"INDICE de CONTENIDOS"]
[null,"Descripción"]
[null,"Sintaxis"]
[null,"Ejercicio 1: Uso de la Función SI"]
[null,"Ejercicio  2: Uso de la Función SI"]
[null,"Final Índice de Contenidos"]
[]
[]
["*","Descripción"]
[null,"Evalúa una condición y devuelve un valor si la condición es verdadera y otro valor si la condición es falsa."]
[null,"Volver al Principio"]
[]
["*","Sintaxis"]
[null,null,"SI(condición; valor_si_verdadero; valor_si_falso)"]
[null,"Referencias a los argumentos de la función:"]
[null,"\u009bCondición: ","Cualquier valor o expresión que pueda evaluarse como VERDADERO o FALSO. Por ejemplo, A10=100 es una expresión lógica; si el valor de la celda A10 es igual a 100, la expresión se evalúa como VERDADERO. De lo contrario, se evaluará como FALSO. Este argumento puede utilizar cualquier operador de comparación."]
[null,"\u009bValor_si_verdadero: ","Valor que devuelve la función si la condición se evalúa a VERDADERO"]
[null,"\u009bValor_si_falso: ","Valor que devuelve la función si la condición se evalúa a FALSO"]
[null,"Respecto a la definición de la condición:"]
[null,"La Condición se debe expresar de manera que su resultado sea un valor lógico, es decir VERDADERO o FALSO."]
[null,"Expresiones que devuelven valores lógicos:"]
[null,"Expresiones que utilizan operadores de comparación, y"]
[null,"Funciones que devuelven valores lógicos."]
[null,"Ejemplo 1: Expresión que utiliza un  operador de comparación"]
[null,"Resultado",{"$f":"3>7","v":false}]
[null,"Formula insertada",{"$f":"[1]!ForTexto(C29)","v":"=3>7"}]
[null,"Ejemplo 2: Expresión que utiliza una función para devolver un valor lógico"]
[null,"Resultado",{"$f":"AND(3>7,4>=2,6<7)","v":false}]
[null,"Formula insertada",{"$f":"[1]!ForTexto(C32)","v":"=Y(3>7;4>=2;6<7)"}]
[null,"Volver al Principio"]
[]
["*","Ejercicio 1: Uso de la Función SI"]
[null,"Consigna:","Dada una tabla de datos, se pide colocar una etiqueta en el Campo Descripción, en función del valor numérico del campo Numero. La etiqueta debe ser POSITIVO para aquellos valores mayor o igual a cero, de lo contrario colocar la etiqueta NEGATIVO."]
[]
[]
[null,"Resolución:"]
[null,"Resultado",{"$f":"IF(B47>=0,\"POSITIVO\",\"NEGATIVO\")","v":"NEGATIVO"},"Valor ejemplo de lo que devuelve la función insertada. Para resolver la consigna, la formula debe ser insertada en el primer registro del campo2 (Descripción) y luego se copia al resto de los registros. La función evalúa un numero, si el mismo es mayor que 0, coloca la etiqueta POSITIVO, de lo contrario coloca NEGATIVO. Antes de copiar la función se debe revisar las referencias de la función, para que sean relativas, absolutas o mixtas según corresponda."]
[null,"Función insertada",{"$f":"[1]!ForTexto(C41)","v":"=SI(B47>=0;\"POSITIVO\";\"NEGATIVO\")"}]
[]
[]
[]
[null,"Numero","Descripción"]
[null,-22]
[null,116]
[null,211]
[null,11]
[null,216]
[null,-1]
[null,41]
[null,-12]
[]
[null,"Volver al Principio"]
[]
["*","Ejercicio  2: Uso de la Función SI"]
[null,"Enunciado:","Dada una tabla con datos referidos a los resultados obtenidos por una serie de alumnos. Se pide: \n1) En la columna Nota calcular el resultado final, el cual se obtiene como el promedio de las notas consideradas (primer y segundo parcial). \n2) En la columna Resultado colocar el resultado en forma de texto. Debe mostrar PROMOCIONADO, REGULAR, DESAPROBADO  o LIBRE según corresponda. \nCondiciones para PROMOCIONAR:  parciales con notas superior o igual a 7 y 80 % de asistencia. \nCondiciones para REGULARIZAR:  parciales con notas superior o igual a 5 y 80 % de asistencia.  \nPor ultimo: porcentajes de asistencia inferiores al 80% implica que el alumno queda LIBRE."]
[]
[null,"Funciones utilizadas:","1) PROMEDIO\n2) SI (anidado)"]
[]
[null,"Resolución Punto 1: Obtener el promedio final de las notas."]
[null,"Resultado",{"$f":"AVERAGE(C75:D75)","v":9.5},"Valor ejemplo de lo que devuelve la formula insertada. Para resolver la consigna, la formula debe ser insertada en el primer registro del Campo5 (Nota Final) de la tabla y luego se copia al resto de los registros. Antes de copiar la función se debe revisar las referencias de la función, para que sean relativas, absolutas o mixtas según corresponda."]
[null,"Formula insertada","=PROMEDIO(B94:C94)"]
[]
[]
[null,"Resolución Punto 2: Mostrar el resultado en forma de etiquetas: promocionado, regular, desaprobado o libre."]
[null,"Resultado",{"$f":"IF(E75>=80,IF(C75>=7,IF(D75>=7,\"PROMOCIONADO\",IF(D75>=5,\"REGULAR\",\"DESAPROBADO\")),IF(C75>=5,IF(D75>=5,\"REGULAR\",\"DESAPROBADO\"),\"DESAPROBADO\")),\"LIBRE\")","v":"LIBRE"},"Valor ejemplo de lo que devuelve la formula insertada. Para resolver la consigna, la formula debe ser insertada en el primer registro del campo6 (Resultado) de la tabla y luego se copia al resto de los registros. Antes de copiar la función se debe revisar las referencias de la función, para que sean relativas, absolutas o mixtas según corresponda."]
[null,"Formula insertada",{"$f":"[1]!ForTexto(C69)","v":"=SI(E75>=80;SI(C75>=7;SI(D75>=7;\"PROMOCIONADO\";SI(D75>=5;\"REGULAR\";\"DESAPROBADO\"));SI(C75>=5;SI(D75>=5;\"REGULAR\";\"DESAPROBADO\");\"DESAPROBADO\"));\"LIBRE\")"}]
[]
[]
[]
[null,"APELLIDO Y NOMBRE","1er Parcial","2do Parcial","% de Asistencia","Nota Final","Resultado"]
[null,"Marín, Angel",9,10,75]
[null,"De Miguel, José",5,6,88]
[null,"Fernández, Fernando",7,10,60]
[null,"Villamanta, Asunción",6,8,80]
[null,"Olabarría, Felipe",6,9,67]
[null,"Díaz, Saúl",3,5,97]
[null,"Alvarez, Rosa",3,3,72]
[null,"Subirats, Nuria",7,8,88]
[null,"Segura, Enrique",3,10,85]
[null,"López-Gil, José",2,6,68]
[null,"Alcalde, Juan",1,9,94]
[null,"Ruiz, Lorenzo",9,6,60]
[null,"Arozamena, Felicidad",7,6,73]
[null,"García, Reyes",1,2,85]
[null,"Martínez, Segundo",8,10,86]
[null,"Fernández, Laureano",8,3,98]
[null,"Sotillos, Ana",6,6,66]
[null," Alvarez, Cesar",7,3,60]
[null,"Gutiérrez, Sonsoles",3,2,72]
[null,"Cauce, Gerardo",5,1,100]
[]
[]
[null,"Usar Formulas y Funciones para obtener los siguientes resultados:"]
[]
[null,"Nota Máxima"]
[null,"Nota Mínima"]
[null,"Nota mas repetida"]
[null,"Mediana de notas"]
[]
[null,null,"Numero","%"]
[null,"DESAPROBADO"]
[null,"LIBRE"]
[null,"PROMOCIONADO"]
[null,"REGULAR"]
[]
[null,"Volver al Principio"]

{"sheet":"FUNCIONES DE BUSQUEDA","index":18,"n_rows":29,"n_cols":5,"rows_kept":29,"cut":false,"hidden":false,"merged":[[2,1,2,3]]}
[null,"Volver al INDICE GENERAL"]
[]
[null,"Funciones de Búsqueda"]
[]
[null,"INDICE de CONTENIDOS"]
[null,"Introducción"]
[null,"Tabla: Listado de Funciones de Búsqueda"]
[null,"     BUSCARV o CONSULTAV"]
[null,"     COINCIDIR"]
[null,"     INDICE"]
[null,"Final Índice de Contenidos"]
[]
[]
["*","Introducción"]
[null,"A esta categoría pertenecen aquellas funciones que buscan un valor en una matriz (tabla)."]
[null,"Volver al Principio"]
[]
["*","Tabla: Listado de Funciones de Búsqueda"]
[]
[]
[null,"NOMBRE DE LA FUNCION","SINTAXIS","DESCRIPCION","CATEGORIA DE LA FUNCION"]
["=>","BUSCARV o CONSULTAV","BUSCARV(valor_buscado; tabla; columna_resultado; [ordenado])","BUSCARV (Vertical): Busca el valor en la primera columna de la tabla, y devuelve el valor de la misma fila en una columna determinada.","Búsqueda"]
[null,"BUSCARH o CONSULTAH","BUSCARH(valor_buscado; tabla; fila_resultado; [ordenado])","\u009bBUSCARH (Horizontal): Busca el valor en la primera fila de la tabla y devuelve el valor de la misma columna en una fila determinada.","Búsqueda"]
["=>","COINCIDIR","COINCIDIR(valor_buscado;matriz_buscada; [tipo_de_coincidencia])","Coincidir: busca un elemento especificado en un rango de celdas y, a continuación, devuelve la posición relativa de ese elemento en el rango. ","Búsqueda"]
["=>","INDICE","INDICE(matriz; núm_fila; [núm_columna])","Índice (forma matricial): Devuelve el valor de un elemento de una tabla o matriz seleccionado por los índices de número de fila y de columna.","Búsqueda"]
[]
[]
[]
[null,"Volver al Principio"]

{"sheet":"CONSULTAV","index":19,"n_rows":145,"n_cols":8,"rows_kept":145,"cut":false,"hidden":false,"merged":[[2,1,2,2],[108,1,111,1],[114,1,114,5],[68,1,68,3],[72,1,72,2]]}
[null,"Volver  Tabla: Listado de Funciones de Búsqueda"]
[]
[null,"Función CONSULTAV"]
[]
[null,"INDICE de CONTENIDOS"]
[null,"Descripción"]
[null,"Sintaxis"]
[null,"EJEMPLO1: Uso de la Función CONSULTAV"]
[null,"EJEMPLO2: Uso de la Función CONSULTAV"]
[null,"Ejercicio1: Factura."]
[null,"EJEMPLO2: Uso de la Función CONSULTAV"]
[null,"Ejercicio1: Factura."]
[null,"Final Índice de Contenidos"]
[]
[]
["*","Descripción"]
[null,"CONSULTAV (Vertical): Busca el valor en la primera columna de la tabla, y devuelve el valor de la misma fila en una columna determinada."]
[null,"Volver al Principio"]
[]
["*","Sintaxis"]
[null,null,"CONSULTAV(valor_buscado; tabla; columna_resultado; [ordenado])"]
[null,"Referencias a los argumentos de la función:"]
[null,"\u009bValor_buscado: ","El valor ó referencia a buscar en la tabla"]
[null,"\u009bTabla:","Coordenadas superior-izda. e inferior-dcha. de la tabla"]
[null,"\u009bColumna_resultado: ","Posición de la columna que contiene los valores a devolver"]
[null,"Ordenado: [opcional)","\u009bValor lógico (VERDADERO ó FALSO) que indica si los valores de la primera columna de la tabla están ordenados. Si se omite se considera como VERDADERO."]
[null,"Observaciones de los argumentos."]
[null,"El valor_buscado SIEMPRE SE BUSCA en la PRIMER COLUMNA DE LA TABLA"]
[null,"Si el valor buscado no se encuentra en la tabla, la función devuelve error."]
[null,"Se recomienda definir el parámetro Ordenado como FALSO, ya que de este modo la función busca de modo secuencial en todos los registros, "]
[null,"de lo contrario efectúa la búsqueda aplicando el algoritmo binario. En este ultimo caso, de no estar la tabla de datos ordenada "]
[null,"por el campo de búsqueda, la función puede devolver resultados erróneos."]
[null,"Volver al Principio"]
[]
["*","EJEMPLO1: Uso de la Función CONSULTAV"]
[null,"Consigna:","Dada una tabla de meses codificados. Se pide efectuar una consulta para que al ingresar un código de mes se visualice su nombre en texto."]
[]
[]
[null,"Resolución:"]
[null,"Código de Mes consultado:",5]
[null,"Resultado: Nombre del mes.",{"$f":"VLOOKUP(C40,B47:C58,2,FALSE)","v":"Mayo"}]
[null,"Función insertada",{"$f":"[1]!ForTexto(C41)","v":"=BUSCARV(C40;B47:C58;2;FALSO)"}]
[]
[]
[]
[null,"Código de mes","Nombre de mes"]
[null,1,"Enero"]
[null,2,"Febrero"]
[null,3,"Marzo"]
[null,4,"Abril"]
[null,5,"Mayo"]
[null,6,"Junio"]
[null,7,"Julio"]
[null,8,"Agosto"]
[null,9,"Septiembre"]
[null,10,"Octubre"]
[null,11,"Noviembre"]
[null,12,"Diciembre"]
[]
[null,"Volver al Principio"]
[]
["*","EJEMPLO2: Uso de la Función CONSULTAV"]
[]
[null,"Consigna:","Completar los resultados en el Formulario de Consulta de Empleados.\nSe pide: Efectuar la consulta de los datos de un empleado a partir de Ingresar su código de Empleado."]
[]
[]
[]
[]
[null,"Formulario de Consulta"]
[]
[null,"Código de Empleado:"]
[]
[null,"Datos del Empleado"]
[null,"Fecha-Ingreso"]
[null,"Apellido, Nombre"]
[null,"Sede"]
[null,"Categoría"]
[null,"Departamento"]
[null,"Salario"]
[]
[]
[]
[]
[null,"Código Empleado","Fecha-Ingreso","Apellido, Nombre","Sede","Categoría","Departamento","Salario"]
[null,11,"1994-04-22","Alcalde, Juan","Vigo","Directivo","Dirección",140000]
[null,20,"1994-04-14","Cauce, Gerardo","Albacete","Directivo","Dirección",140000]
[null,1,"2000-07-03","Marín, Angel","Vigo","Administrativo","Financiero",32100]
[null,3,"1999-07-03","Fernández, Fernando","Albacete","Administrativo","Financiero",35000]
[null,10,"1999-06-25","López-Gil, José","Albacete","Administrativo","Financiero",38500]
[null,15,"1994-11-15","Martínez, Segundo","Albacete","Administrativo","Financiero",35000]
[null,19,"1995-12-07","Gutiérrez, Sonsoles","Albacete","Administrativo","Financiero",32500]
[null,4,"1995-11-29","Villamanta, Asunción","Albacete","Técnico","Personal",41000]
[null,7,"2000-10-24","Alvarez, Rosa","Albacete","Técnico","Personal",40000]
[null,8,"1994-08-20","Subirats, Nuria","Albacete","Administrativo","Personal",29000]
[null,13,"1994-06-18","Arozamena, Felicidad","Vigo","Directivo","Personal",95000]
[null,18,"1994-06-10"," Alvarez, Cesar","Albacete","Administrativo","Personal",34250]
[null,2,"1997-01-15","De Miguel, José","Vigo","Comercial","Ventas",53800]
[null,5,"1998-04-09","Olabarría, Felipe","Vigo","Comercial","Ventas",56800]
[null,6,"1998-04-01","Díaz, Saúl","Albacete","Comercial","Ventas",60000]
[null,9,"1995-09-23","Segura, Enrique","Vigo","Directivo","Ventas",125000]
[null,12,"1999-07-05","Ruiz, Lorenzo","Vigo","Comercial","Ventas",58000]
[null,14,"1999-06-27","García, Reyes","Vigo","Comercial","Ventas",55000]
[null,16,"2000-12-22","Fernández, Laureano","Albacete","Comercial","Ventas",53400]
[null,17,"1999-04-02","Sotillos, Ana","Vigo","Comercial","Ventas",53400]
[]
[null,"Volver al Principio"]
[]
["*","Ejercicio1: Factura."]
[null,"Consigna: Simule el funcionamiento de la carga de datos a una factura de compra. Se pide:","1) Para cada registro de la factura, para un código de producto ingresado,  se visualice su descripción y su precio unitario en los campos correspondientes. Luego, sobre el mismo registro, una vez ingresado la cantidad de dicho producto, se visualice el subtotal para el mismo."]
[null,null,"2) Calcular el Subtotal general de la factura."]
[null,null,"3) Calcular el IVA del 21% del Subtotal general."]
[null,null,"4) Calcular el total de la factura, como la suma del IVA mas el subtotal general."]
[]
[]
[null,"FACTURA"]
[]
[null,"Código","Descripción","Cantidad ","Precio Unitario","Subtotal por producto"]
[null,"a-1",null,null,null,{"$f":"D118*E118","v":0}]
[]
[]
[]
[]
[]
[]
[]
[]
[]
[null,null,null,null,"Subtotal General",{"$f":"SUM(F118:F127)","v":0}]
[null,null,null,null,"IVA 21%",{"$f":"F128*21%","v":0}]
[null,null,null,null,"TOTAL de la Factura",{"$f":"F128+F129","v":0}]
[]
[]
[null,"TABLA DE PRODUCTOS"]
[null,"Código de producto","Descripción del producto","Precio Unitario"]
[null,"A-1","Zapatos",1500]
[null,"A-2","Pañales",300]
[null,"A-3","Pijamas",450]
[null,"A-4","Biberones",70]
[null,"A-5","Talco",50]
[null,"A-6","Camisetas",230]
[null,"A-7","Sonajeros",30]
[null,"A-8","Caminadores",600]
[null,"A-9","Cunas",2500]
[]
[null,"Volver al Principio"]

{"sheet":"COINCIDIR","index":20,"n_rows":46,"n_cols":3,"rows_kept":46,"cut":false,"hidden":false,"merged":[[2,1,2,2]]}
[null,"Volver  Tabla: Listado de Funciones de Búsqueda"]
[]
[null,"Función COINCIDIR"]
[]
[null,"INDICE de CONTENIDOS"]
[null,"Descripción"]
[null,"Sintaxis"]
[null,"Ejemplo: Función Coincidir"]
[null,"Final Índice de Contenidos"]
[]
[]
["*","Descripción"]
[null,"La función COINCIDIR busca un elemento especificado en un rango de celdas y, a continuación, devuelve la posición relativa de ese elemento en el rango. "]
[null,"Se usa COINCIDIR en lugar de la función CONSULTAV, cuando se necesita conocer la posición de un elemento en un rango en lugar del elemento en sí. "]
[]
[null,"Volver al Principio"]
[]
["*","Sintaxis"]
[null,null,"COINCIDIR(valor_buscado;matriz_buscada; [tipo_de_coincidencia])"]
[null,"Referencias a los argumentos de la función:"]
[null,"\u009bValor_buscado (Obligatorio):","Valor que desea buscar en matriz_buscada. "]
[null,"Matriz_buscada (Obligatorio): ","Rango de celdas en el que se realiza la búsqueda. "]
[null,"Tipo_de_coincidencia (Opcional):"," Puede ser el número -1, 0 o 1. "]
[null,null,"1 u omitido, si no encontrara una coincidencia exacta, tomaría el valor más cercano por abajo.  Matriz_buscada debe estar ordenada ascendentemente."]
[null,null,"0, obligamos a que haya una coincidencia exacta. "]
[null,null,"-1, si no encontrara una coincidencia exacta, tomaría un valor más cercano por arriba. Matriz_buscada debe estar ordenada descendentemente."]
[]
[null,"Volver al Principio"]
[]
["*","Ejemplo: Función Coincidir"]
[null,"Consigna:","Obtener la posición de un Producto  en la tabla de datos."]
[]
[null,"Resolución:"]
[null,"Nombre de Producto:","Peras"]
[null,"Posición del Producto en la tabla de datos:",{"$f":"MATCH(C34,B39:B42,0)","v":1}]
[null,"Función insertada",{"$f":"[1]!ForTexto(C35)","v":"=COINCIDIR(C34;B39:B42;0)"}]
[]
[null,"Producto","Unidades"]
[null,"Peras",41]
[null,"Manzanas",40]
[null,"Naranjas",38]
[null,"Bananas",25]
[]
[]
[]
[null,"Volver al Principio"]

{"sheet":"INDICE","index":21,"n_rows":88,"n_cols":27,"rows_kept":88,"cut":false,"hidden":false,"merged":[[2,1,2,2],[52,1,52,3],[56,1,56,2]]}
[null,"Volver  Tabla: Listado de Funciones de Búsqueda"]
[]
[null,"Función INDICE"]
[]
[null,"INDICE de CONTENIDOS"]
[null,"Descripción"]
[null,"Sintaxis"]
[null,"Ejercicio: Función INDICE"]
[null,"Ejercicio: Función COINCIDIR e INDICE "]
[null,"Final Índice de Contenidos"]
[]
[]
["*","Descripción"]
[null,"Devuelve el valor de un elemento de una tabla o matriz seleccionado por los índices de número de fila y de columna."]
[null,"En general, esta función se usa de manera combinada con la Función Coincidir para devolver el valor buscado."]
[]
[null,"Volver al Principio"]
[]
["*","Sintaxis"]
[null,null,"INDICE(matriz; núm_fila; [núm_columna])"]
[null,"Referencias a los argumentos de la función:"]
[null,"Matriz (Obligatorio): ","Un rango de celdas o una constante de matriz. "]
[null,null,"Si matriz contiene sólo una fila o columna, el argumento núm_fila o núm_columna correspondiente es opcional."]
[null,null,"Si matriz tiene más de una fila y más de una columna y sólo utiliza núm_fila o núm_columna, INDICE devuelve una matriz con toda una fila o columna."]
[null,"Núm_fila (Obligatorio): ."," Selecciona la fila de la matriz desde la cual se devolverá un valor. Si se omite núm_fila, se requiere el argumento núm_columna. "]
[null,"Núm_columna (Opcional):"," Selecciona la columna de la matriz desde la cual se devolverá un valor. Si se omite núm_columna, se requiere el argumento núm_fila."]
[]
[]
[null,"Volver al Principio"]
[]
["*","Ejercicio: Función INDICE"]
[null,"Consigna:","¿Cuáles son los resultados para las siguientes expresiones?"]
[]
[null,"Expresiones:"]
[null,{"$f":"[1]!ForTexto(AA35)","v":"=INDICE(B39:C42;3;1)"},null,null,null,null,null,null,null,null,null,null,null,null,null,null,null,null,null,null,null,null,null,null,null,null,{"$f":"INDEX(B39:C42,3,1)","v":"Naranjas"}]
[null,{"$f":"[1]!ForTexto(AA36)","v":"=INDICE(B39:C42;4;2)"},null,null,null,null,null,null,null,null,null,null,null,null,null,null,null,null,null,null,null,null,null,null,null,null,{"$f":"INDEX(B39:C42,4,2)","v":25}]
[]
[null,"Producto","Unidades"]
[null,"Peras",41]
[null,"Manzanas",40]
[null,"Naranjas",38]
[null,"Bananas",25]
[]
[]
[null,"Volver al Principio"]
[]
["*","Ejercicio: Función COINCIDIR e INDICE "]
[]
[null,"Consigna:","Completar los resultados en el Formulario de Consulta de Empleados.\nSe pide: Efectuar la consulta de los datos de un empleado a partir de Ingresar su Apellido y Nombre."]
[]
[]
[]
[null,"Formulario de Consulta"]
[]
[null,"Nombre de Empleado:"]
[]
[null,"Datos del Empleado"]
[null,"Fecha de Ingreso:"]
[null,"Sede"]
[null,"Categoría"]
[null,"Departamento"]
[null,"Salario"]
[]
[]
[]
[null,"Código Empleado","Fecha-Ingreso","Apellido, Nombre","Sede","Categoría","Departamento","Salario"]
[null,11,"1994-04-22","Alcalde, Juan","Vigo","Directivo","Dirección",140000]
[null,20,"1994-04-14","Cauce, Gerardo","Albacete","Directivo","Dirección",140000]
[null,1,"2000-07-03","Marín, Angel","Vigo","Administrativo","Financiero",32100]
[null,3,"1999-07-03","Fernández, Fernando","Albacete","Administrativo","Financiero",35000]
[null,10,"1999-06-25","López-Gil, José","Albacete","Administrativo","Financiero",38500]
[null,15,"1994-11-15","Martínez, Segundo","Albacete","Administrativo","Financiero",35000]
[null,19,"1995-12-07","Gutiérrez, Sonsoles","Albacete","Administrativo","Financiero",32500]
[null,4,"1995-11-29","Villamanta, Asunción","Albacete","Técnico","Personal",41000]
[null,7,"2000-10-24","Alvarez, Rosa","Albacete","Técnico","Personal",40000]
[null,8,"1994-08-20","Subirats, Nuria","Albacete","Administrativo","Personal",29000]
[null,13,"1994-06-18","Arozamena, Felicidad","Vigo","Directivo","Personal",95000]
[null,18,"1994-06-10"," Alvarez, Cesar","Albacete","Administrativo","Personal",34250]
[null,2,"1997-01-15","De Miguel, José","Vigo","Comercial","Ventas",53800]
[null,5,"1998-04-09","Olabarría, Felipe","Vigo","Comercial","Ventas",56800]
[null,6,"1998-04-01","Díaz, Saúl","Albacete","Comercial","Ventas",60000]
[null,9,"1995-09-23","Segura, Enrique","Vigo","Directivo","Ventas",125000]
[null,12,"1999-07-05","Ruiz, Lorenzo","Vigo","Comercial","Ventas",58000]
[null,14,"1999-06-27","García, Reyes","Vigo","Comercial","Ventas",55000]
[null,16,"2000-12-22","Fernández, Laureano","Albacete","Comercial","Ventas",53400]
[null,17,"1999-04-02","Sotillos, Ana","Vigo","Comercial","Ventas",53400]
[]
[null,"Volver al Principio"]

{"sheet":"FUNCIONES DE FECHA Y HORA","index":22,"n_rows":55,"n_cols":7,"rows_kept":55,"cut":false,"hidden":false,"merged":[[2,1,2,3],[41,4,41,5]]}
[null,"Volver al INDICE GENERAL"]
[]
[null,"Funciones de Fecha y Hora"]
[]
[null,"INDICE de CONTENIDOS"]
[null,"Introducción"]
[null,"Con respecto al parámetro num_de_serie de algunas funciones de tipo fecha:"]
[null,"Tabla: Listado de Funciones de Fecha y Hora"]
[null,"     \u009bAHORA"]
[null,"     \u009bHOY"]
[null,"     \u009bAÑO"]
[null,"     \u009bMES"]
[null,"     \u009bDIA"]
[null,"     \u009bDIASEM"]
[null,"     \u009bDIA.LAB"]
[null,"     \u009bDIAS.LAB"]
[null,"     \u009bFECHA"]
[null,"     SI\u009bFECHA"]
[null,"Final Índice de Contenidos"]
[]
[]
["*","Introducción"]
[null,"Las funciones de fecha y hora son utilizadas, por ejemplo: "]
[null,"*","Para buscar fechas específicas, "]
[null,"*","Para conocer la hora actual, "]
[null,"*","Para encontrar la diferencia en días laborales entre dos fechas,…."]
[null,"Volver al Principio"]
[]
["*","Con respecto al parámetro num_de_serie de algunas funciones de tipo fecha:"]
[null,"Excel llama número de serie al número de días transcurridos desde el 1 de enero de 1900 hasta la fecha introducida, "]
[null,"es decir toma la fecha inicial del sistema como el día 1/1/1900 y a partir de ahí empieza a contar, 1 de enero de 1990 es uno, 2 de enero de 1900 es dos y así sucesivamente."]
[null,"Por lo tanto, el numero de serie, es simplemente un entero positivo que representa el numero días entre una fecha dada y el 1 de enero de 1900. "]
[null,"Ambas fechas, la seleccionada y el 1 de enero de 1900 son incluidas en la cuenta."]
[null,"\u009bEn consecuencia en las funciones que tengan núm_de_serie como argumento, podremos poner un número o bien la referencia de una celda que contenga una fecha."]
[null,"Ejemplo de numero de serie con formato de fecha y con formato numérico."]
[null,"Fecha actual:",{"$f":"TODAY()","v":"2023-08-24"},"Fecha en formato dd/mm/aaaa"]
[null,"Numero de serie de la Fecha actual",{"$f":"C36","v":45162},"Fecha con formato numérico"]
[null,"Volver al Principio"]
[]
["*","Tabla: Listado de Funciones de Fecha y Hora"]
[]
[null,null,null,null,"Ejemplo"]
[null,"NOMBRE DE LA FUNCION","SINTAXIS","DESCRIPCION","FORMULA INSERTADA","RESULTADO","CATEGORIA DE LA FUNCION"]
["=>","\u009bAHORA","AHORA ( )","Devuelve el número de serie correspondiente a la fecha y hora actuales del sistema. La función no tiene parámetros.",{"$f":"[1]!ForTexto(F44)","v":"=AHORA()"},{"$f":"NOW()","v":"2023-08-24T19:20:08.400"},"Fecha y Hora"]
["=>","\u009bHOY","\u009bHOY()","Devuelve el número de serie correspondiente a la fecha actual. La función no tiene parámetros.","=HOY()",{"$f":"TODAY()","v":"2023-08-24"},"Fecha y Hora"]
["=>","\u009bAÑO","AÑO (núm_de_serie)","Convierte un número de serie en un valor de año.","=AÑO(HOY())",{"$f":"YEAR(TODAY())","v":2023},"Fecha y Hora"]
["=>","\u009bMES","MES (núm_de_serie)","Devuelve el número del mes del numero de serie pasado como paramento. El numero devuelto se encuentra en el rango del 1 (enero) al 12 (diciembre).","=MES(HOY())",{"$f":"MONTH(TODAY())","v":8},"Fecha y Hora"]
["=>","\u009bDIA","DIA (núm_de _serie)","Devuelve el numero del día del mes del numero de serie pasado como parámetro.","=DIA(HOY())",{"$f":"DAY(TODAY())","v":24},"Fecha y Hora"]
["=>","\u009bDIASEM","DIASEM (núm_de_serie;tipo)","Determina el día de la semana. Es decir, devuelve un número del 1 al 7.","=DIASEM(HOY();2)",{"$f":"WEEKDAY(TODAY(),2)","v":4},"Fecha y Hora"]
["=>","\u009bDIA.LAB","DIA.LAB(fecha_inicial; días_lab; [festivos])","Devuelve el número de serie de la fecha que tiene lugar antes o después de un número determinado de días laborables.",null,null,"Fecha y Hora"]
["=>","\u009bDIAS.LAB","DIAS.LAB(fecha_inicial; fecha_final; [festivos])","Devuelve el número de días laborables entre fecha_inicial y fecha_final. Los días laborables no incluyen los fines de semana ni otras fechas que se identifiquen en el argumento festivos.",null,null,"Fecha y Hora"]
["=>","\u009bFECHA","FECHA(año,mes,día)","Devuelve el número de serie correspondiente a una fecha determinada. Devuelve la fecha en formato fecha, esta función sirve sobre todo por si queremos que nos indique la fecha completa utilizando celdas donde tengamos los datos del día, mes y año por separado. ",{"$f":"[1]!ForTexto(F52)","v":"=FECHA(F46;F47;F48)"},{"$f":"DATE(F46,F47,F48)","v":"2023-08-24"},"Fecha y Hora"]
["=>","SI\u009bFECHA","SIFECHA(fecha_inicial;fecha_final;unidad)","Calcula el número de días, meses o años entre dos fechas. ",null,null,"Fecha y Hora"]
[]
[null,"Volver al Principio"]

{"sheet":"SIFECHA","index":23,"n_rows":77,"n_cols":5,"rows_kept":77,"cut":false,"hidden":false,"merged":[[2,1,2,2]]}
[null,"Volver a  Tabla: Listado de Funciones de Fecha y Hora"]
[]
[null,"Función SIFECHA"]
[]
[null,"INDICE de CONTENIDOS"]
[null,"Descripción"]
[null,"Sintaxis"]
[null,"Ejemplo 1: Función SiFecha"]
[null,"Ejercicio: "]
[null,"Final Índice de Contenidos"]
[]
[]
["*","Descripción"]
[null,"Calcula el número de días, meses o años entre dos fechas. "]
[null,"La función SIFECHA no está documentada pero existe en Excel 2013 (también en versiones anteriores). "]
[null,"Nos permite hacer cálculos entre fechas como obtener la edad de una persona o la antigüedad de una deuda de una manera fácil e intuitiva."]
[null,"Volver al Principio"]
[]
["*","Sintaxis"]
[null,null,"SIFECHA(fecha_inicial;fecha_final;unidad)"]
[null,"Referencias a los argumentos de la función:"]
[null,"Fecha_inicial:"," Una fecha que representa la primera fecha del período o la fecha inicial."]
[null,"Fecha_final:"," Una fecha que representa la última del período o al fecha de finalización."]
[null,"Unidad:"," El tipo de información que desea obtener:"]
[null,null,"“Y”  – años completos"]
[null,null,"M” – meses completos"]
[null,null,"“D” – días completos"]
[null,null,"“YM” – descarta los meses cumplidos entre años seleccionados"]
[null,null,"“MD” – descartas los días de meses cumplidos entre las dos fechas seleccionadas"]
[null,null,"“YD” – descarta los días cumplidos entre los años de las dos fechas seleccionadas"]
[null,"Volver al Principio"]
[]
["*","Ejemplo 1: Función SiFecha"]
[null,"Consigna:","Calcular la edad de una persona que haya nacido el 05/10/2007. "]
[]
[]
[null,"Resolución:"]
[null,"Fecha de Nacimiento","2007-10-05"]
[null,"Fecha Actual",{"$f":"TODAY()","v":"2023-08-24"}]
[null,"Resultado",{"$f":"DATEDIF(C38,C39,\"y\")","v":15}]
[null,"Función insertada",{"$f":"[1]!ForTexto(C40)","v":"=SIFECHA(C38;C39;\"y\")"}]
[]
[null,"NOTA: Si se calculara la diferencia entre ambos años, NO ESTARIAMOS OBTENIENDO LA EDAD CORRECTA!!!!!!"]
[null,"Calculo ERRONEO: (como la diferencia entre ambos años, el del nacimiento y el actual)"]
[null,"EDAD:",{"$f":"YEAR(C39)-YEAR(C38)","v":16},"Resultado incorrecto si el día y mes del nacimiento son posteriores al día y mes de la fecha actual"]
[null,"Función insertada",{"$f":"[1]!ForTexto(C45)","v":"=AÑO(C39)-AÑO(C38)"}]
[]
[]
[null,"Volver al Principio"]
[]
["*","Ejercicio: "]
[null,"Consigna:","Realizar los siguientes cálculos con fechas"]
[]
[]
[]
[]
[]
[]
[]
[null,"Nombres","Fecha Nacimiento","Edad en años","Edad en meses"]
[null,"Walter","1974-08-29"]
[null,"Clever","1964-09-22"]
[null,"Patricia","1982-12-05"]
[null,"María","1987-03-17"]
[null,"Richard","1979-02-28"]
[null,"Jessica","1996-02-16"]
[]
[]
[null,"Responda lo siguiente:"]
[null,"Cual es la diferencia de edad entre Walter y Clever"]
[null,"Cuántos años tendrá Jessica el ",{"$f":"(TODAY()+100)","v":"2023-12-02"}]
[null,"Por cuantos años Richard es mayor que María"]
[null,"Cuántos días faltan para el Día de la Raza"]
[null,"Cuántos días han pasado desde la ultima Navidad"]
[]
[]
[null,"Volver al Principio"]

{"sheet":"DIASEM","index":24,"n_rows":68,"n_cols":4,"rows_kept":68,"cut":false,"hidden":false,"merged":[[2,1,2,2],[20,2,20,6]]}
[null,"Volver a  Tabla: Listado de Funciones de Fecha y Hora"]
[]
[null,"Función DIASEM"]
[]
[null,"INDICE de CONTENIDOS"]
[null,"Descripción"]
[null,"Sintaxis"]
[null,"Ejemplo1: Uso de la Función DIASEM"]
[null,"Ejemplo2: Uso de la Función DIASEM y BUSCARV para devolver el nombre del día de la semana."]
[null,"Ejemplo3: Aplicando formato personalizado para devolver el nombre del día de la semana."]
[null,"Final Índice de Contenidos"]
[]
[]
["*","Descripción"]
[null,"Devuelve el día de la semana correspondiente al argumento núm_de_serie. El día se devuelve como un número entero entre 1 (domingo) y 7 (sábado)."]
[null,"Volver al Principio"]
[]
["*","Sintaxis"]
[null,null,"DIASEM(núm_de_serie;[tipo])"]
[null,"Referencias a los argumentos de la función:"]
[null,"Núm_de_serie  Obligatorio. ","Un número secuencial que representa la fecha del día que intenta buscar. Las fechas deben especificarse mediante la función FECHA o como resultado de otras fórmulas o funciones. Por ejemplo, use FECHA(2008;5;23) para el día 23 de mayo de 2008. Pueden producirse problemas si las fechas se escriben como texto."]
[null,"Tipo  Opcional. ","Un número que determina el tipo de valor que debe devolverse. Usar 1: para domingo=1 a sábado=7; Usar 2: para lunes=1 a domingo=7; Usar 3: para lunes=0 a domingo=6."]
[null,"Volver al Principio"]
[]
["*","Ejemplo1: Uso de la Función DIASEM"]
[null,"Consigna:","Dada una fecha, obtener el día de la semana."]
[]
[]
[null,"Resolución:"]
[null,"Fecha ingresada:",{"$f":"TODAY()","v":"2023-08-24"}]
[null,"Resultado",{"$f":"WEEKDAY(C30,2)","v":4},"La función devuelve el día de la semana de la fecha ingresada, en este caso se toma como parámetro de tipo el numero 2. Con esta definición se considera como primer día de la semana el lunes."]
[null,"Función insertada",{"$f":"[1]!ForTexto(C31)","v":"=DIASEM(C30;2)"}]
[]
[null,"Volver al Principio"]
[]
["*","Ejemplo2: Uso de la Función DIASEM y BUSCARV para devolver el nombre del día de la semana."]
[null,"Consigna:","Dada una fecha, obtener el nombre del día de la semana."]
[]
[]
[null,"Resolución:"]
[null,"Fecha ingresada:",{"$f":"TODAY()","v":"2023-08-24"}]
[null,"Resultado",{"$f":"VLOOKUP(WEEKDAY(C41,2),B48:C54,2,FALSE)","v":"Jueves"},"La función devuelve el nombre de día de la semana de la fecha ingresada, en este caso se toma como parámetro de tipo el numero 2. Con esta definición se considera como primer día de la semana el lunes. Para mostrar el nombre del día de la semana se utiliza la función BUSCARV, en la cual se utiliza como valor de búsqueda el devuelto por la función DIASEM."]
[null,"Función insertada",{"$f":"[1]!ForTexto(C42)","v":"=BUSCARV(DIASEM(C41;2);B48:C54;2;FALSO)"}]
[]
[]
[null,"Inicio de Tabla de Datos"]
[null,"Código día de la semana.","Nombre día de la semana"]
[null,1,"Lunes"]
[null,2,"Martes"]
[null,3,"Miércoles"]
[null,4,"Jueves"]
[null,5,"Viernes"]
[null,6,"Sábado"]
[null,7,"Domingo"]
[]
[null,"Volver al Principio"]
[]
["*","Ejemplo3: Aplicando formato personalizado para devolver el nombre del día de la semana."]
[null,"Consigna:","Dada una fecha, obtener el nombre del día de la semana."]
[]
[]
[null,"Resolución:"]
[null,"Fecha ingresada:",{"$f":"TODAY()","v":"2023-08-24"}]
[null,"Resultado",{"$f":"C63","v":"2023-08-24"},"Se obtiene el nombre del día de la semana aplicando el Formato Personalizado dddd a la celda que contiene la fecha."]
[null,"Formato aplicado a la celda que contiene la fecha:","dddd"]
[]
[]
[null,"Volver al Principio"]

{"sheet":"DIALAB","index":25,"n_rows":104,"n_cols":26,"rows_kept":104,"cut":false,"hidden":false,"merged":[[22,1,23,1],[24,1,25,1],[2,1,2,2]]}
[null,"Volver a  Tabla: Listado de Funciones de Fecha y Hora"]
[]
[null,"Función DIA.LAB"]
[]
[null,"INDICE de CONTENIDOS"]
[null,"Descripción"]
[null,"Sintaxis"]
[null,"Ejemplo1: Fecha de regreso  considerando que los días de vacaciones son días corridos."]
[null,"Ejemplo2: Fecha de regreso, teniendo en cuenta que los días de vacaciones no consideran los fin de semana, ni los feriados."]
[null,"Ejemplo3: Fecha de inicio de vacaciones, teniendo en cuenta que no se  consideran los fin de semana, ni los feriados."]
[null,"Final Índice de Contenidos"]
[]
[]
["*","Descripción"]
[null,"Devuelve un número que representa una fecha que es el número de días laborables antes o después de una fecha (la fecha inicial). "]
[null,"Los días laborables excluyen los días de fin de semana y cualquier fecha identificada en el argumento festivos."]
[null,"Volver al Principio"]
[]
["*","Sintaxis"]
[null,null,"DIA.LAB(fecha_inicial; días_lab; [vacaciones])"]
[null,"Referencias a los argumentos de la función:"]
[null,"Fecha_inicial  Obligatorio. ","Una fecha que representa la fecha inicial."]
[null,"Días_lab  Obligatorio. ","El número de días laborables (días que no sean fines de semana ni días festivos) anteriores o posteriores al argumento fecha_inicial. "]
[null,null,"Un valor positivo para el argumento días_lab produce una fecha futura; un número negativo produce una fecha pasada."]
[null,"Vacaciones  Opcional. ","Una lista opcional de una o varias fechas que deben excluirse del calendario laboral, como los días festivos nacionales y locales. "]
[null,null,"La lista puede ser un rango de celdas que contengan las fechas o una constante matricial de los números de serie que representen las fechas."]
[null,"Volver al Principio"]
[]
["*","Ejemplo1: Fecha de regreso  considerando que los días de vacaciones son días corridos."]
[null,"Consigna:",{"$f":"\"Un trabajador tiene derecho a disfrutar de 20 días hábiles de vacaciones. Si comienza el \" & DAY(C34) & \" de Octubre de \" & YEAR(C34) & \", que día debe incorporarse al trabajo?.\"","v":"Un trabajador tiene derecho a disfrutar de 20 días hábiles de vacaciones. Si comienza el 2 de Octubre de 2023, que día debe incorporarse al trabajo?."}]
[]
[null,null,null,null,null,null,null,null,null,null,null,null,null,null,null,null,null,{"$f":"DATE(YEAR(TODAY()),10,1)","v":"2023-10-01"},{"$f":"R32","v":"2023-10-01"}]
[null,"Resolución:"]
[null,"Fecha inicio de vacaciones:",{"$f":"PrimerLUNESdeCadaMes(R32)","v":"02/10/2023"}]
[null,"Cantidad de días de vacaciones",20]
[null,"Resultado: Fecha de regreso",{"$f":"C34+C35","v":"2023-10-22"},"La formula muestra la fecha de regreso, como una suma de la fecha de inicio mas los 20 días de vacaciones."]
[null,"Función insertada",{"$f":"[1]!ForTexto(C36)","v":"=C34+C35"}]
[]
[null,"Volver al Principio"]
[]
["*","Ejemplo2: Fecha de regreso, teniendo en cuenta que los días de vacaciones no consideran los fin de semana, ni los feriados."]
[null,"Consigna:",{"$f":"\"Un trabajador tiene derecho a disfrutar de 20 días hábiles de vacaciones. Si comienza el \" & DAY(C46) & \" de Octubre de \" & YEAR(C46) & \", que día debe incorporarse al trabajo?.\"","v":"Un trabajador tiene derecho a disfrutar de 20 días hábiles de vacaciones. Si comienza el 2 de Octubre de 2023, que día debe incorporarse al trabajo?."}]
[]
[]
[null,"Resolución:"]
[null,"Fecha inicio de vacaciones:",{"$f":"PrimerLUNESdeCadaMes(R32)","v":"02/10/2023"}]
[null,"Cantidad de días de vacaciones",20]
[null,"Resultado: Fecha de regreso",{"$f":"WORKDAY(C46,C47,B54:B69)","v":"2023-10-31"},"La función muestra la fecha de regreso, sin considerar los fin de semanas ni los feriados."]
[null,"Función insertada",{"$f":"[1]!ForTexto(C48)","v":"=DIA.LAB(C46;C47;B54:B69)"}]
[]
[]
[null,{"$f":"YEAR(TODAY())","v":2023}]
[null,"Fecha Feriado","Descripción"]
[null,{"$f":"DATE(B52,1,1)","v":"2023-01-01"},"AÑO NUEVO"]
[null,{"$f":"[1]!LunesCarnaval(B52)","v":"20/02/2023"},"CARNAVAL"]
[null,{"$f":"B55+1","v":"2023-02-21"},"CARNAVAL"]
[null,{"$f":"DATE(B52,3,24)","v":"2023-03-24"},"DIA POR LA MEMORIA POR LA VERDAD Y LA JUSTICIA"]
[null,{"$f":"DATE(B52,4,2)","v":"2023-04-02"},"DIA DEL VETERANO Y DE LOS CAIDOS EN LA GUERRA DE MALVINAS"]
[null,{"$f":"[1]!JuevesSanto(B52)","v":"06/04/2023"},"JUEVES SANTO"]
[null,{"$f":"B59+1","v":"2023-04-07"},"VIERNES SANTO"]
[null,{"$f":"DATE(B52,5,1)","v":"2023-05-01"},"DIA DEL TRABAJADOR"]
[null,{"$f":"DATE(B52,5,25)","v":"2023-05-25"},"25 DE MAYO"]
[null,{"$f":"DATE(B52,5,20)","v":"2023-05-20"},"DIA DE LA BANDERA"]
[null,{"$f":"DATE(B52,7,9)","v":"2023-07-09"},"DIA DE LA INDEPENDENCIA"]
[null,{"$f":"DATE(B52,8,17)","v":"2023-08-17"},"CONMEMORACIÓN A SAN MARTIN"]
[null,{"$f":"DATE(B52,8,23)","v":"2023-08-23"},"23 DE AGOSTO"]
[null,{"$f":"DATE(B52,10,12)","v":"2023-10-12"},"DIA POR LA DIVERSIDAD CULTURAL"]
[null,{"$f":"DATE(B52,12,8)","v":"2023-12-08"},"INMACULADA CONCEPCION DE MARIA"]
[null,{"$f":"DATE(B52,12,25)","v":"2023-12-25"},"NAVIDAD"]
[]
[null,"Volver al Principio"]
[]
["*","Ejemplo3: Fecha de inicio de vacaciones, teniendo en cuenta que no se  consideran los fin de semana, ni los feriados."]
[null,"Consigna:",{"$f":"\"Suponga que un trabajador regresa de sus vacaciones el \" & DAY(C78) & \" de agosto de \" & YEAR(C78) & \", sabiendo que sus vacaciones son de 20 días. En que fecha han iniciado sus vacaciones?\"","v":"Suponga que un trabajador regresa de sus vacaciones el 28 de agosto de 2023, sabiendo que sus vacaciones son de 20 días. En que fecha han iniciado sus vacaciones?"}]
[null,null,null,null,null,null,null,null,null,null,null,null,null,null,null,null,null,null,null,null,null,null,null,{"$f":"DATE(YEAR(TODAY()),9,1)","v":"2023-09-01"}]
[null,null,null,null,null,null,null,null,null,null,null,null,null,null,null,null,null,null,null,null,null,null,null,{"$f":"PrimerLUNESdeCadaMes(X75)","v":"04/09/2023"},7]
[null,"Resolución:",null,null,null,null,null,null,null,null,null,null,null,null,null,null,null,null,null,null,null,null,null,{"$f":"X76-Y76","v":"2023-08-28"},null,{"$f":"X77","v":"2023-08-28"}]
[null,"Fecha final de vacaciones:",{"$f":"X77","v":"2023-08-28"}]
[null,"Cantidad de días de vacaciones",-20]
[null,"Resultado: Fecha de inicio de vacaciones",{"$f":"WORKDAY(C78,C79,B86:B101)","v":"2023-07-27"},"La función muestra la fecha de inicio de vacaciones sin considerar los fin de semanas ni los feriados. En este caso el parámetro Cantidad de días de vacaciones, se debe pasar como un valor negativo para que la función devuelva una fecha anterior a la fecha de inicio."]
[null,"Función insertada",{"$f":"[1]!ForTexto(C80)","v":"=DIA.LAB(C78;C79;B86:B101)"}]
[]
[]
[null,{"$f":"YEAR(TODAY())","v":2023}]
[null,"Fecha Feriado","Descripción"]
[null,{"$f":"DATE(B84,1,1)","v":"2023-01-01"},"AÑO NUEVO"]
[null,{"$f":"[1]!LunesCarnaval(B84)","v":"20/02/2023"},"CARNAVAL"]
[null,{"$f":"B87+1","v":"2023-02-21"},"CARNAVAL"]
[null,{"$f":"DATE(B84,3,24)","v":"2023-03-24"},"DIA POR LA MEMORIA POR LA VERDAD Y LA JUSTICIA"]
[null,{"$f":"DATE(B84,4,2)","v":"2023-04-02"},"DIA DEL VETERANO Y DE LOS CAIDOS EN LA GUERRA DE MALVINAS"]
[null,{"$f":"[1]!JuevesSanto(B84)","v":"06/04/2023"},"JUEVES SANTO"]
[null,{"$f":"B91+1","v":"2023-04-07"},"VIERNES SANTO"]
[null,{"$f":"DATE(B84,5,1)","v":"2023-05-01"},"DIA DEL TRABAJADOR"]
[null,{"$f":"DATE(B84,5,25)","v":"2023-05-25"},"25 DE MAYO"]
[null,{"$f":"DATE(B84,5,20)","v":"2023-05-20"},"DIA DE LA BANDERA"]
[null,{"$f":"DATE(B84,7,9)","v":"2023-07-09"},"DIA DE LA INDEPENDENCIA"]
[null,{"$f":"DATE(B84,8,17)","v":"2023-08-17"},"CONMEMORACIÓN A SAN MARTIN"]
[null,{"$f":"DATE(B84,8,23)","v":"2023-08-23"},"23 DE AGOSTO"]
[null,{"$f":"DATE(B84,10,12)","v":"2023-10-12"},"DIA POR LA DIVERSIDAD CULTURAL"]
[null,{"$f":"DATE(B84,12,8)","v":"2023-12-08"},"INMACULADA CONCEPCION DE MARIA"]
[null,{"$f":"DATE(B84,12,25)","v":"2023-12-25"},"NAVIDAD"]
[]
[]
[null,"Volver al Principio"]

{"sheet":"DIASLAB","index":26,"n_rows":57,"n_cols":20,"rows_kept":57,"cut":false,"hidden":false,"merged":[[21,1,22,1],[2,1,2,2]]}
[null,"Volver a  Tabla: Listado de Funciones de Fecha y Hora"]
[]
[null,"Función DIAS.LAB"]
[]
[null,"INDICE de CONTENIDOS"]
[null,"Descripción"]
[null,"Sintaxis"]
[null,"Ejemplo 1: Uso de la Función DIAS.LAB"]
[null,"Final Índice de Contenidos"]
[]
[]
["*","Descripción"]
[null,"Devuelve el número de días laborables entre fecha_inicial y fecha_final. "]
[null,"Los días laborables no incluyen los fines de semana ni otras fechas que se identifiquen en el argumento festivos."]
[null,"Volver al Principio"]
[]
["*","Sintaxis"]
[null,null,"DIAS.LAB(fecha_inicial; fecha_final; [festivos])"]
[null,"Referencias a los argumentos de la función:"]
[null,"Fecha_inicial  Obligatorio. ","Una fecha que representa la fecha inicial."]
[null,"Fecha_final  Obligatorio. ","Una fecha que representa la fecha final."]
[null,"Festivos  Opcional. ","Un rango opcional de una o varias fechas que deben excluirse del calendario laboral, como los días festivos nacionales y locales. "]
[null,null,"La lista puede ser un rango de celdas que contengan las fechas o una constante matricial  de los números de serie que representen las fechas."]
[null,"Volver al Principio"]
[]
["*","Ejemplo 1: Uso de la Función DIAS.LAB"]
[null,"Consigna:",{"$f":"\"Suponga que un proyecto ha iniciado el \" & C31 & \"  y se tiene previsto que termine el \" & TEXT(C32,\"dd/mm/yyyy\")  & \". Se pide, que obtenga la duración, en días, del proyecto. Para el calculo no se debe considerar los fin de semanas ni los feriados.\"","v":"Suponga que un proyecto ha iniciado el 03/10/2022  y se tiene previsto que termine el 15/09/2023. Se pide, que obtenga la duración, en días, del proyecto. Para el calculo no se debe considerar los fin de semanas ni los feriados."}]
[null,"Inicio Análisis Consigna"]
[]
[null,"Resolución:"]
[null,"Fecha inicial del proyecto",{"$f":"Q32","v":"03/10/2022"},null,null,null,null,null,null,null,null,null,null,null,null,null,{"$f":"DATE(B37,10,1)","v":"2022-10-01"},null,{"$f":"DATE(C37,9,1)","v":"2023-09-01"}]
[null,"Fecha final del proyecto",{"$f":"T32","v":"2023-09-15"},null,null,null,null,null,null,null,null,null,null,null,null,null,{"$f":"PrimerLUNESdeCadaMes(Q31)","v":"03/10/2022"},null,{"$f":"PrimerLUNESdeCadaMes(S31)","v":"04/09/2023"},{"$f":"S32+11","v":"2023-09-15"}]
[null,"Resultado: Duración del proyecto en días.",{"$f":"NETWORKDAYS(C31,C32,B39:C54)","v":239},"La función muestra el Número de días laborables entre las fechas inicial y final, excluidos todos los días festivos."]
[null,"Función insertada",{"$f":"[1]!ForTexto(C33)","v":"=DIAS.LAB(C31;C32;B39:C54)"}]
[]
[]
[null,{"$f":"C37-1","v":2022},{"$f":"YEAR(TODAY())","v":2023}]
[null,"Fecha Feriado","Fecha Feriado","Descripción"]
[null,{"$f":"DATE(B37,1,1)","v":"2022-01-01"},{"$f":"DATE(C37,1,1)","v":"2023-01-01"},"AÑO NUEVO"]
[null,{"$f":"[1]!LunesCarnaval(B37)","v":"28/02/2022"},{"$f":"[1]!LunesCarnaval(C37)","v":"20/02/2023"},"CARNAVAL"]
[null,{"$f":"B40+1","v":"2022-03-01"},{"$f":"C40+1","v":"2023-02-21"},"CARNAVAL"]
[null,{"$f":"DATE(B37,3,24)","v":"2022-03-24"},{"$f":"DATE(C37,3,24)","v":"2023-03-24"},"DIA POR LA MEMORIA POR LA VERDAD Y LA JUSTICIA"]
[null,{"$f":"DATE(B37,4,2)","v":"2022-04-02"},{"$f":"DATE(C37,4,2)","v":"2023-04-02"},"DIA DEL VETERANO Y DE LOS CAIDOS EN LA GUERRA DE MALVINAS"]
[null,{"$f":"[1]!JuevesSanto(B37)","v":"14/04/2022"},{"$f":"[1]!JuevesSanto(C37)","v":"06/04/2023"},"JUEVES SANTO"]
[null,{"$f":"B44+1","v":"2022-04-15"},{"$f":"C44+1","v":"2023-04-07"},"VIERNES SANTO"]
[null,{"$f":"DATE(B37,5,1)","v":"2022-05-01"},{"$f":"DATE(C37,5,1)","v":"2023-05-01"},"DIA DEL TRABAJADOR"]
[null,{"$f":"DATE(B37,5,25)","v":"2022-05-25"},{"$f":"DATE(C37,5,25)","v":"2023-05-25"},"25 DE MAYO"]
[null,{"$f":"DATE(B37,5,20)","v":"2022-05-20"},{"$f":"DATE(C37,5,20)","v":"2023-05-20"},"DIA DE LA BANDERA"]
[null,{"$f":"DATE(B37,7,9)","v":"2022-07-09"},{"$f":"DATE(C37,7,9)","v":"2023-07-09"},"DIA DE LA INDEPENDENCIA"]
[null,{"$f":"DATE(B37,8,17)","v":"2022-08-17"},{"$f":"DATE(C37,8,17)","v":"2023-08-17"},"CONMEMORACIÓN A SAN MARTIN"]
[null,{"$f":"DATE(B37,8,23)","v":"2022-08-23"},{"$f":"DATE(C37,8,23)","v":"2023-08-23"},"23 DE AGOSTO"]
[null,{"$f":"DATE(B37,10,12)","v":"2022-10-12"},{"$f":"DATE(C37,10,12)","v":"2023-10-12"},"DIA POR LA DIVERSIDAD CULTURAL"]
[null,{"$f":"DATE(B37,12,8)","v":"2022-12-08"},{"$f":"DATE(C37,12,8)","v":"2023-12-08"},"INMACULADA CONCEPCION DE MARIA"]
[null,{"$f":"DATE(B37,12,25)","v":"2022-12-25"},{"$f":"DATE(C37,12,25)","v":"2023-12-25"},"NAVIDAD"]
[]
[]
[null,"Volver al Principio"]

{"sheet":"FUNCIONES DE BASE DE DATOS","index":27,"n_rows":672,"n_cols":11,"rows_kept":672,"cut":false,"hidden":false,"merged":[[2,1,2,3],[453,1,454,1],[505,1,505,3],[514,2,514,5],[60,2,60,3],[59,2,59,3],[48,1,48,3]]}
[null,"Volver al INDICE GENERAL"]
[]
[null,"Funciones de Base de Datos"]
[]
[null,"INDICE de CONTENIDOS"]
[null,"Introducción"]
[null,"Sintaxis General de las Funciones de Base de Datos."]
[null,"     Definición de Criterios para las Funciones de Base de Datos"]
[null,"Aspectos generales para la definición de las condiciones para los criterios de consulta."]
[null,"Casos de definición de Condiciones (Expresiones) para criterios de consulta."]
[null,"     CASO 1: Criterios que impliquen la búsqueda de Valores Exactos: Texto o Numero."]
[null,"     CASO 2: Criterios  que impliquen el uso de comodines, * o ?, para buscar un Texto dentro de una Cadena."]
[null,"     CASO 3: Criterios  que impliquen el uso de operadores de comparación."]
[null,"     CASO 4: \u009bCriterios que impliquen la búsqueda de Valores, numero o texto, ubicados en la Referencia de una Celda."]
[null,"     CASO 5: Criterios siguiendo la lógica booleana (O)."]
[null,"     CASO 6: Criterios siguiendo la lógica booleana (Y)."]
[null,"     CASO 7: Definir criterios utilizando una fórmula."]
[null,"Tabla: Listado de Funciones de Base de Datos"]
[null,"EJERCICIO: USO DE FUNCIONES DE BASE DE DATOS"]
[null,"Final Índice de Contenidos"]
[]
[]
["*","Introducción"]
[null,"Excel dispone de un conjunto de funciones que comienzan con las iniciales BD y que sirven para trabajar con bases de datos, "]
[null,"es decir, con información que se encuentra en un rango de celdas donde la primera fila tiene los títulos de cada columna."]
[null,"Estas funciones nos permiten contar, sumar, multiplicar los valores de una columna que cumplen con los criterios especificados "]
[null,"e inclusive podremos extraer un registro que cumpla con ciertas condiciones."]
[null,"Todas las funciones de la categoría de base de datos tienen la misma sintaxis."]
[null,"Volver al Principio"]
[]
["*","Sintaxis General de las Funciones de Base de Datos."]
[null,null,"FUNCIÓN_BD(Base_de_Datos;Nombre_de_Campo;Criterios)"]
[null,"Referencias a los argumentos de la función:"]
[null,"Base_de_Datos: ","Es la tabla o base de datos."]
[null,"Nombre_de_Campo:","Es el nombre (o numero) de la columna de la tabla sobre la que se va a realizar el cálculo."]
[null,"Criterios:","Es el rango de celdas que contiene las condiciones que se van a utilizar en el cálculo."]
[null,"Volver al Principio"]
[]
["=>","Definición de Criterios para las Funciones de Base de Datos"]
[null,"Respecto a la definición del Criterio:"]
[null,"El criterio es el rango  donde se especifican las condiciones para efectuar el calculo. "]
[null,"El rango de criterios puede colocarse en cualquier lugar pero, para permitir la adición de nuevos datos, se desaconseja situarlo debajo de la tabla."]
[null,"Este rango consiste en repetir los nombre de los campos  que nos interesan, de la tabla de datos sobre la que se efecturá la búsqueda,  y en la fila siguiente "]
[null,"establecemos las condiciones empleando, por ejemplo, los operadores de comparación."]
[null,"Volver al Principio"]
[]
["*","Aspectos generales para la definición de las condiciones para los criterios de consulta."]
[null,"Las expresiones para la definición de las condiciones para los criterios  pueden ser de distinta índole. Por ejemplo:"]
[null,"\u009b1) Criterios definidos como valores exactos, por ejemplo: Texto, número y fecha. En este caso se define la sintaxis general para su introducción como  criterio:\nSintaxis.\n=''= entrada ''"]
[null,"2) \u009bCriterios definidos Usando comodines (?,*)"]
[null,"\u009b3) \u009bCriterios definidos Usando operadores de comparación, por ejemplo >=19"]
[null,"\u009b4) \u009bCriterios calculado por fórmulas"]
[null,"A continuación se muestran casos de ejemplos para la definición de expresiones para los criterios de consulta."]
["*","Casos de definición de Condiciones (Expresiones) para criterios de consulta."]
[]
["=>","CASO 1: Criterios que impliquen la búsqueda de Valores Exactos: Texto o Numero."]
[]
[null,"Sintaxis:"]
[]
[null,"\u009bExpresión de la Sintaxis:","=''= entrada ''"]
[null,"Referencia a la Sintaxis:","La sintaxis inicia con el signo = y a continuación encerrado entre dobles comillas se escribe =entrada.\nEntrada: corresponde al valor que se desea buscar  ya sea como texto o como numero. Además, si bien \nen la celda se escribe como ( =''= entrada ''), \nen la celda se muestra como (=entrada)\ny se analiza como: Campo1=entrada"]
[]
[]
[null,"Ejemplo 1:"]
[]
[null,"Consigna:","Registros donde el valor del Campo1 sea \"Davolio\""]
[null,"En la celda se escribe como:",{"$f":"[1]!ForTexto(B73)","v":"=''= Davolio''"}]
[null,"En la celda se muestra como:","=Davolio"]
[null,"Se analiza como:","Campo1=\"Davolio\""]
[]
[null,"Rango Criterio"]
[null,"Campo1"]
[null,"=''= Davolio''"]
[]
[]
[null,"Ejemplo 2:"]
[]
[null,"Consigna:","Registros cuyo tipo de producto es \"Ropa\"."]
[null,"En la celda se escribe como:",{"$f":"[1]!ForTexto(B85)","v":"=\"=Ropa\""}]
[null,"En la celda se muestra como:",{"$f":"B85","v":"=Ropa"}]
[null,"Se analiza como:",{"$f":"E88&B85","v":"Tipo=Ropa"}]
[]
[null,"Rango Criterio"]
[null,"Tipo"]
[null,{"$f":"\"=Ropa\"","v":"=Ropa"}]
[]
[null,"Tabla de datos"]
[null,"FECHA","Ciudad","Vendedor","Tipo","Unidades","P.Unit.","P.Costo","IVA","P.Venta"]
[null,"2016-01-05","Arica","Ibacache, Gonzalo Andres","Alimentos",1184,553,654752,130950.40000000001,831535.04]
[null,"2016-02-16","Valparaiso","Barrios, Jaime Americo","Juguetes",845,397,335465,67093,426040.55]
[null,"2016-04-03","Arica","Ibacache, Gonzalo Andres","Ropa",720,948,682560,136512,866851.2]
[null,"2016-05-17","Pelarco","Villarroel, Jorge Alberto","Ropa invierno",44,780,34320,6864,43586.400000000001]
[null,"2016-05-28","Pto.Varas","Catalan, Carlos Elias","Juguetes",1098,708,777384,155476.80000000002,987277.68]
[null,"2016-06-07","Pelarco","Villarroel, Jorge Alberto","Ropa",949,106,100594,20118.800000000003,127754.38]
[null,"2016-06-22","Arica","Morales, Francisco Esteban","Alimentos",375,301,112875,22575,143351.25]
[null,"2016-07-07","Iquique","Bravo, Jorge Luis","Ropa invierno",244,839,204716,40943.200000000004,259989.32]
[null,"2016-07-10","Curico","Ahumada, Claudio","Ropa invierno",329,81,26649,5329.8,33844.229999999996]
[null,"2016-09-25","Arica","Ibacache, Gonzalo Andres","Ropa invierno",972,303,294516,58903.200000000004,374035.32]
[null,"2016-11-25","Curico","Valdes, Jorge Alejandro","Ropa",385,619,238315,47663,302660.05]
[]
[null,"Volver al Principio"]
[]
["=>","CASO 2: Criterios  que impliquen el uso de comodines, * o ?, para buscar un Texto dentro de una Cadena."]
[]
[null,"Ejemplo 1:"]
[null,"Consigna:","Registros cuyo Tipo de producto empiece con el texto \"Ropa\"."]
[]
[null,"Solución 1:"]
[null,"En la celda se escribe como:",{"$f":"[1]!ForTexto(B115)","v":"Ropa"}]
[null,"En la celda se muestra como:",{"$f":"B115","v":"Ropa"}]
[null,"Se analiza como:","Todos los registros cuyo Tipo empiecen con el texto Ropa"]
[]
[null,"Rango Criterio"]
[null,"Tipo"]
[null,"Ropa"]
[]
[]
[null,"Solución 2:"]
[null,"En la celda se escribe como:",{"$f":"[1]!ForTexto(B125)","v":"Ropa*"}]
[null,"En la celda se muestra como:",{"$f":"B125","v":"Ropa*"}]
[null,"Se analiza como:","Todos los registros cuyo Tipo empiecen con el texto Ropa."]
[]
[null,"Rango Criterio"]
[null,"Tipo"]
[null,"Ropa*"]
[]
[null,"Tabla de datos"]
[null,"FECHA","Ciudad","Vendedor","Tipo","Unidades","P.Unit.","P.Costo","IVA","P.Venta"]
[null,"2016-01-05","Arica","Ibacache, Gonzalo Andres","Alimentos",1184,553,654752,130950.40000000001,831535.04]
[null,"2016-02-16","Valparaiso","Barrios, Jaime Americo","Juguetes",845,397,335465,67093,426040.55]
[null,"2016-04-03","Arica","Ibacache, Gonzalo Andres","Ropa",720,948,682560,136512,866851.2]
[null,"2016-05-17","Pelarco","Villarroel, Jorge Alberto","Ropa invierno",44,780,34320,6864,43586.400000000001]
[null,"2016-05-28","Pto.Varas","Catalan, Carlos Elias","Juguetes",1098,708,777384,155476.80000000002,987277.68]
[null,"2016-06-07","Pelarco","Villarroel, Jorge Alberto","Ropa",949,106,100594,20118.800000000003,127754.38]
[null,"2016-06-22","Arica","Morales, Francisco Esteban","Alimentos",375,301,112875,22575,143351.25]
[null,"2016-07-07","Iquique","Bravo, Jorge Luis","Ropa invierno",244,839,204716,40943.200000000004,259989.32]
[null,"2016-07-10","Curico","Ahumada, Claudio","Ropa invierno",329,81,26649,5329.8,33844.229999999996]
[null,"2016-09-25","Arica","Ibacache, Gonzalo Andres","Ropa invierno",972,303,294516,58903.200000000004,374035.32]
[null,"2016-11-25","Curico","Valdes, Jorge Alejandro","Ropa",385,619,238315,47663,302660.05]
[]
[]
[null,"Ejemplo 2:"]
[null,"Consigna:","Registros cuya 2da letra de la Descripción del Producto sea una \"a\"."]
[null,"En la celda se escribe como:",{"$f":"[1]!ForTexto(B149)","v":"?a*"}]
[null,"En la celda se muestra como:",{"$f":"B149","v":"?a*"}]
[]
[null,"Rango Criterio"]
[null,"Descripción del producto"]
[null,"?a*"]
[]
[null,"Tabla de datos"]
[null,"Código de producto","Descripción del producto","Precio Unitario"]
[null,"A-1","Zapatos",1500]
[null,"A-2","Pañales",300]
[null,"A-3","Pijamas",450]
[null,"A-4","Biberones",70]
[null,"A-5","Sonajeros",30]
[null,"A-6","Caminadores",600]
[null,"A-7","Cunas",2500]
[]
[null,"Volver al Principio"]
[]
["=>","CASO 3: Criterios  que impliquen el uso de operadores de comparación."]
[]
[null,"Ejemplo:"]
[null,"Consigna:","Registros cuya Fecha de venta sean posteriores al 1 de junio de 2016."]
[null,"En la celda se escribe como:",{"$f":"[1]!ForTexto(B173)","v":">01/06/2016"}]
[null,"En la celda se muestra como:",{"$f":"B173","v":">01/06/2016"}]
[null,"Se analiza como:","(Fecha>01/06/2016)"]
[]
[null,"Rango Criterio"]
[null,"Fecha"]
[null,">01/06/2016"]
[]
[null,"Tabla de datos"]
[null,"FECHA","Ciudad","Vendedor","Tipo","Unidades","P.Unit.","P.Costo","IVA","P.Venta"]
[null,"2016-01-05","Arica","Ibacache, Gonzalo Andres","Alimentos",1184,553,654752,130950.40000000001,831535.04]
[null,"2016-02-16","Valparaiso","Barrios, Jaime Americo","Juguetes",845,397,335465,67093,426040.55]
[null,"2016-04-03","Arica","Ibacache, Gonzalo Andres","Ropa",720,948,682560,136512,866851.2]
[null,"2016-05-17","Pelarco","Villarroel, Jorge Alberto","Ropa invierno",44,780,34320,6864,43586.400000000001]
[null,"2016-05-28","Pto.Varas","Catalan, Carlos Elias","Juguetes",1098,708,777384,155476.80000000002,987277.68]
[null,"2016-06-07","Pelarco","Villarroel, Jorge Alberto","Ropa",949,106,100594,20118.800000000003,127754.38]
[null,"2016-06-22","Arica","Morales, Francisco Esteban","Alimentos",375,301,112875,22575,143351.25]
[null,"2016-07-07","Iquique","Bravo, Jorge Luis","Ropa invierno",244,839,204716,40943.200000000004,259989.32]
[null,"2016-07-10","Curico","Ahumada, Claudio","Ropa invierno",329,81,26649,5329.8,33844.229999999996]
[null,"2016-09-25","Arica","Ibacache, Gonzalo Andres","Ropa invierno",972,303,294516,58903.200000000004,374035.32]
[null,"2016-11-25","Curico","Valdes, Jorge Alejandro","Ropa",385,619,238315,47663,302660.05]
[]
[null,"Volver al Principio"]
[]
["=>","CASO 4: \u009bCriterios que impliquen la búsqueda de Valores, numero o texto, ubicados en la Referencia de una Celda."]
[]
[null,"Sintaxis:"]
[null,"=\"Operador de comparación\"&Referencia a celda"]
[null,"Referencia a la Sintaxis:"]
[null,"La expresión de la sintaxis se analiza como la concatenación del Operador de comparación (encerrado entre comillas dobles) con la referencia a la celda donde se encuentra un valor. "]
[null,"Es decir se utiliza el operador &, para efectuar la concatenación."]
[null,"Ejemplo de Sintaxis:"]
[null,"Consigna:","Registros donde el Campo1 sea mayor que el valor que se encuentra en la celda \"A1\"."]
[null,"Se analiza como:","(Campo1>A1), Campo1 mayor que el contenido de la celda A1."]
[]
[null,"Rango Criterio"]
[null,"Campo1"]
[null,"=''>''&A1"]
[]
[]
[null,"Ejemplo: "]
[null,"Consigna:","Registros cuya fecha de venta sean posterior al 1 de junio de 2016. En este caso la Fecha se encuentra almacenada en la referencia a una celda."]
[null,"En la celda se escribe como:",{"$f":"[1]!ForTexto(B215)","v":"=\">\"&D214"}]
[null,"En la celda se muestra como:",{"$f":"B215","v":">42522"}]
[null,"Se analiza como:","(Fecha>01/06/2016)"]
[]
[null,"Rango Criterio"]
[null,"Fecha",null,"2016-06-01"]
[null,{"$f":"\">\"&D214","v":">42522"}]
[]
[null,"Tabla de datos"]
[null,"FECHA","Ciudad","Vendedor","Tipo","Unidades","P.Unit.","P.Costo","IVA","P.Venta"]
[null,"2016-01-05","Arica","Ibacache, Gonzalo Andres","Alimentos",1184,553,654752,130950.40000000001,831535.04]
[null,"2016-02-16","Valparaiso","Barrios, Jaime Americo","Juguetes",845,397,335465,67093,426040.55]
[null,"2016-04-03","Arica","Ibacache, Gonzalo Andres","Ropa",720,948,682560,136512,866851.2]
[null,"2016-05-17","Pelarco","Villarroel, Jorge Alberto","Ropa invierno",44,780,34320,6864,43586.400000000001]
[null,"2016-05-28","Pto.Varas","Catalan, Carlos Elias","Juguetes",1098,708,777384,155476.80000000002,987277.68]
[null,"2016-06-07","Pelarco","Villarroel, Jorge Alberto","Ropa",949,106,100594,20118.800000000003,127754.38]
[null,"2016-06-22","Arica","Morales, Francisco Esteban","Alimentos",375,301,112875,22575,143351.25]
[null,"2016-07-07","Iquique","Bravo, Jorge Luis","Ropa invierno",244,839,204716,40943.200000000004,259989.32]
[null,"2016-07-10","Curico","Ahumada, Claudio","Ropa invierno",329,81,26649,5329.8,33844.229999999996]
[null,"2016-09-25","Arica","Ibacache, Gonzalo Andres","Ropa invierno",972,303,294516,58903.200000000004,374035.32]
[null,"2016-11-25","Curico","Valdes, Jorge Alejandro","Ropa",385,619,238315,47663,302660.05]
[]
[null,"Volver al Principio"]
[]
["=>","CASO 5: Criterios siguiendo la lógica booleana (O)."]
[]
[null,"Sintaxis 1: Distintas Condiciones para un Mismo Campo."]
[null,"Consigna:","Registros donde el Campo1 sea igual a la condicion1 O sea igual a la Condicion2."]
[null,"Se analiza como:","(Campo1 = Condicion1) O (Campo1 = Condicion2)"]
[]
[null,"Rango Criterio"]
[null,"Campo1"]
[null,"Condicion1"]
[null,"Condicion2"]
[]
[]
[null,"Ejemplo 1: Distintas Condiciones para un Mismo Campo\n"]
[null,"Consigna:","Registros cuya Ciudad sea Iquique o Arica."]
[null,"Se analiza como:","(Ciudad=Iquique) O (Ciudad=Arica)"]
[]
[null,"Rango Criterio"]
[null,"Ciudad"]
[null,{"$f":"\"=Iquique\"","v":"=Iquique"}]
[null,{"$f":"\"=Arica\"","v":"=Arica"}]
[]
[null,"Tabla de datos"]
[null,"FECHA","Ciudad","Vendedor","Tipo","Unidades","P.Unit.","P.Costo","IVA","P.Venta"]
[null,"2016-01-05","Arica","Ibacache, Gonzalo Andres","Alimentos",1184,553,654752,130950.40000000001,831535.04]
[null,"2016-02-16","Valparaiso","Barrios, Jaime Americo","Juguetes",845,397,335465,67093,426040.55]
[null,"2016-04-03","Arica","Ibacache, Gonzalo Andres","Ropa",720,948,682560,136512,866851.2]
[null,"2016-05-17","Pelarco","Villarroel, Jorge Alberto","Ropa invierno",44,780,34320,6864,43586.400000000001]
[null,"2016-05-28","Pto.Varas","Catalan, Carlos Elias","Juguetes",1098,708,777384,155476.80000000002,987277.68]
[null,"2016-06-07","Pelarco","Villarroel, Jorge Alberto","Ropa",949,106,100594,20118.800000000003,127754.38]
[null,"2016-06-22","Arica","Morales, Francisco Esteban","Alimentos",375,301,112875,22575,143351.25]
[null,"2016-07-07","Iquique","Bravo, Jorge Luis","Ropa invierno",244,839,204716,40943.200000000004,259989.32]
[null,"2016-07-10","Curico","Ahumada, Claudio","Ropa invierno",329,81,26649,5329.8,33844.229999999996]
[null,"2016-09-25","Arica","Ibacache, Gonzalo Andres","Ropa invierno",972,303,294516,58903.200000000004,374035.32]
[null,"2016-11-25","Curico","Valdes, Jorge Alejandro","Ropa",385,619,238315,47663,302660.05]
[null,"2016-12-11","Coquimbo","Vera, Ariel Hernan","Alimentos",916,284,260144,52028.800000000003,330382.88]
[]
[null,"Sintaxis 2: Distintas condiciones para varios campos."]
[null,"Consigna:","Registros donde el Campo1 sea igual a condicion1 O el  Campo2 sea igual a Condicion2."]
[null,"Se analiza como:","(Campo1 = Condicion1) O (Campo2 = Condicion2)"]
[]
[]
[null,"Rango Criterio"]
[null,"Campo1","Campo2"]
[null,"Condicion1"]
[null,null,"Condicion2"]
[]
[null,"Ejemplo 2: Distintas condiciones para varios campos.\n"]
[null,"Consigna:","Registros cuya Ciudad sea Arica o  cuyo tipo de producto  sea Juguetes."]
[null,"Se analiza como:","(Ciudad=Arica) O (Tipo=Juguetes)"]
[]
[null,"Rango Criterio"]
[null,"Ciudad","Tipo"]
[null,{"$f":"\"=Arica\"","v":"=Arica"}]
[null,null,{"$f":"\"=Juguetes\"","v":"=Juguetes"}]
[]
[null,"Tabla de datos"]
[null,"FECHA","Ciudad","Vendedor","Tipo","Unidades","P.Unit.","P.Costo","IVA","P.Venta"]
[null,"2016-01-05","Arica","Ibacache, Gonzalo Andres","Alimentos",1184,553,654752,130950.40000000001,831535.04]
[null,"2016-02-16","Valparaiso","Barrios, Jaime Americo","Juguetes",845,397,335465,67093,426040.55]
[null,"2016-04-03","Arica","Ibacache, Gonzalo Andres","Ropa",720,948,682560,136512,866851.2]
[null,"2016-05-17","Pelarco","Villarroel, Jorge Alberto","Ropa invierno",44,780,34320,6864,43586.400000000001]
[null,"2016-05-28","Pto.Varas","Catalan, Carlos Elias","Juguetes",1098,708,777384,155476.80000000002,987277.68]
[null,"2016-06-07","Pelarco","Villarroel, Jorge Alberto","Ropa",949,106,100594,20118.800000000003,127754.38]
[null,"2016-06-22","Arica","Morales, Francisco Esteban","Alimentos",375,301,112875,22575,143351.25]
[null,"2016-07-07","Iquique","Bravo, Jorge Luis","Ropa invierno",244,839,204716,40943.200000000004,259989.32]
[null,"2016-07-10","Curico","Ahumada, Claudio","Ropa invierno",329,81,26649,5329.8,33844.229999999996]
[null,"2016-09-25","Arica","Ibacache, Gonzalo Andres","Ropa invierno",972,303,294516,58903.200000000004,374035.32]
[null,"2016-11-25","Curico","Valdes, Jorge Alejandro","Ropa",385,619,238315,47663,302660.05]
[null,"2016-12-11","Coquimbo","Vera, Ariel Hernan","Alimentos",916,284,260144,52028.800000000003,330382.88]
[]
[null,"Volver al Principio"]
[]
[]
["=>","CASO 6: Criterios siguiendo la lógica booleana (Y)."]
[]
[null,"Sintaxis 1: Distintas condiciones para Varios Campos."]
[null,"Consigna:","Registros donde el Campo1 sea igual a condicion1 Y Campo2 sea igual a Condicion2."]
[null,"Se analiza como:","(Campo1 = Condicion1) Y (Campo2 = Condicion2)"]
[]
[null,"Rango Criterio"]
[null,"Campo1","Campo2"]
[null,"Condicion1","Condicion2"]
[]
[null,"Ejemplo 1: Distintas condiciones para Varios Campos."]
[null,"Consigna:","Registros cuya Ciudad sea \"Arica\" y cuyo Tipo de producto sea \"Alimentos\"."]
[null,"Se analiza como:","(Ciudad=Arica) Y (Tipo=Alimentos)"]
[]
[null,"Rango Criterio"]
[null,"Ciudad","Tipo"]
[null,{"$f":"\"=Arica\"","v":"=Arica"},{"$f":"\"=Alimentos\"","v":"=Alimentos"}]
[]
[null,"Tabla de datos"]
[null,"FECHA","Ciudad","Vendedor","Tipo","Unidades","P.Unit.","P.Costo","IVA","P.Venta"]
[null,"2016-01-05","Arica","Ibacache, Gonzalo Andres","Alimentos",1184,553,654752,130950.40000000001,831535.04]
[null,"2016-02-16","Valparaiso","Barrios, Jaime Americo","Juguetes",845,397,335465,67093,426040.55]
[null,"2016-04-03","Arica","Ibacache, Gonzalo Andres","Ropa",720,948,682560,136512,866851.2]
[null,"2016-05-17","Pelarco","Villarroel, Jorge Alberto","Ropa invierno",44,780,34320,6864,43586.400000000001]
[null,"2016-05-28","Pto.Varas","Catalan, Carlos Elias","Juguetes",1098,708,777384,155476.80000000002,987277.68]
[null,"2016-06-07","Pelarco","Villarroel, Jorge Alberto","Ropa",949,106,100594,20118.800000000003,127754.38]
[null,"2016-06-22","Arica","Morales, Francisco Esteban","Alimentos",375,301,112875,22575,143351.25]
[null,"2016-07-07","Iquique","Bravo, Jorge Luis","Ropa invierno",244,839,204716,40943.200000000004,259989.32]
[null,"2016-07-10","Curico","Ahumada, Claudio","Ropa invierno",329,81,26649,5329.8,33844.229999999996]
[null,"2016-09-25","Arica","Ibacache, Gonzalo Andres","Ropa invierno",972,303,294516,58903.200000000004,374035.32]
[null,"2016-11-25","Curico","Valdes, Jorge Alejandro","Ropa",385,619,238315,47663,302660.05]
[]
[]
[null,"Sintaxis 2: Distintas condiciones para un mismo Campo."]
[null,"Consigna:","Registros donde el Campo1 sea igual a condicion1 Y Campo1 sea igual a Condicion2."]
[null,"Se analiza como:","(Campo1 = Condicion1) Y (Campo1 = Condicion2)"]
[]
[null,"Rango Criterio"]
[null,"Campo1","Campo1"]
[null,"Condicion1","Condicion2"]
[]
[null,"Ejemplo 2: Distintas condiciones para un mismo Campo."]
[null,"Consigna:","Registros cuya Fecha de Venta sean del mes de mayo de 2016."]
[null,"Se analiza como:","01/05/2016<=Fecha<=31/05/2016"]
[]
[null,"Rango Criterio"]
[null,"FECHA","FECHA"]
[null,">=01/05/2016","<=31/05/2016"]
[]
[null,"Tabla de datos"]
[null,"FECHA","Ciudad","Vendedor","Tipo","Unidades","P.Unit.","P.Costo","IVA","P.Venta"]
[null,"2016-01-05","Arica","Ibacache, Gonzalo Andres","Alimentos",1184,553,654752,130950.40000000001,831535.04]
[null,"2016-02-16","Valparaiso","Barrios, Jaime Americo","Juguetes",845,397,335465,67093,426040.55]
[null,"2016-04-03","Arica","Ibacache, Gonzalo Andres","Ropa",720,948,682560,136512,866851.2]
[null,"2016-05-17","Pelarco","Villarroel, Jorge Alberto","Ropa invierno",44,780,34320,6864,43586.400000000001]
[null,"2016-05-28","Pto.Varas","Catalan, Carlos Elias","Juguetes",1098,708,777384,155476.80000000002,987277.68]
[null,"2016-06-07","Pelarco","Villarroel, Jorge Alberto","Ropa",949,106,100594,20118.800000000003,127754.38]
[null,"2016-06-22","Arica","Morales, Francisco Esteban","Alimentos",375,301,112875,22575,143351.25]
[null,"2016-07-07","Iquique","Bravo, Jorge Luis","Ropa invierno",244,839,204716,40943.200000000004,259989.32]
[null,"2016-07-10","Curico","Ahumada, Claudio","Ropa invierno",329,81,26649,5329.8,33844.229999999996]
[null,"2016-09-25","Arica","Ibacache, Gonzalo Andres","Ropa invierno",972,303,294516,58903.200000000004,374035.32]
[null,"2016-11-25","Curico","Valdes, Jorge Alejandro","Ropa",385,619,238315,47663,302660.05]
[]
[]
[null,"Sintaxis 3: Criterio combinando la lógica booleana Y y O."]
[null,"Consigna:","Registros donde el Campo1 sea igual a condicion1 Y Campo2 sea igual a Condicion2 O Campo2 sea igual a Condicion3."]
[null,"Se analiza como:","((Campo1 = Condicion1) Y (Campo2 = Condicion2)) O (Campo2 = Condicion3)"]
[]
[null,"Rango Criterio"]
[null,"Campo1","Campo2"]
[null,"Condicion1","Condicion2"]
[null,null,"Condicion3"]
[]
[null,"Ejemplo 3: Criterio combinando la lógica booleana Y y O."]
[null,"Consigna:","Registros cuya Ciudad sea Arica y cuyo tipo de producto sea Alimentos o Juguetes."]
[null,"Se analiza como:","((Ciudad=Arica) Y (Tipo=Alimentos)) O ((Ciudad=Arica) Y (Tipo=Juguetes)) "]
[]
[null,"Rango Criterio"]
[null,"Ciudad","Tipo"]
[null,"=Arica","=Alimentos"]
[null,"=Arica","=Juguetes"]
[]
[null,"Tabla de datos"]
[null,"FECHA","Ciudad","Vendedor","Tipo","Unidades","P.Unit.","P.Costo","IVA","P.Venta"]
[null,"2016-01-05","Arica","Ibacache, Gonzalo Andres","Alimentos",1184,553,654752,130950.40000000001,831535.04]
[null,"2016-02-16","Valparaiso","Barrios, Jaime Americo","Juguetes",845,397,335465,67093,426040.55]
[null,"2016-04-03","Arica","Ibacache, Gonzalo Andres","Ropa",720,948,682560,136512,866851.2]
[null,"2016-05-17","Pelarco","Villarroel, Jorge Alberto","Ropa invierno",44,780,34320,6864,43586.400000000001]
[null,"2016-05-28","Pto.Varas","Catalan, Carlos Elias","Juguetes",1098,708,777384,155476.80000000002,987277.68]
[null,"2016-06-07","Pelarco","Villarroel, Jorge Alberto","Ropa",949,106,100594,20118.800000000003,127754.38]
[null,"2016-06-22","Arica","Morales, Francisco Esteban","Alimentos",375,301,112875,22575,143351.25]
[null,"2016-07-07","Iquique","Bravo, Jorge Luis","Ropa invierno",244,839,204716,40943.200000000004,259989.32]
[null,"2016-07-10","Curico","Ahumada, Claudio","Ropa invierno",329,81,26649,5329.8,33844.229999999996]
[null,"2016-09-25","Arica","Ibacache, Gonzalo Andres","Ropa invierno",972,303,294516,58903.200000000004,374035.32]
[null,"2016-11-25","Curico","Valdes, Jorge Alejandro","Ropa",385,619,238315,47663,302660.05]
[]
[null,"Volver al Principio"]
[]
["=>","CASO 7: Definir criterios utilizando una fórmula."]
[null,"Sintaxis:"]
[null,"=Formula"]
[null,"Referencia a la Sintaxis:"]
[null,"La expresión de la sintaxis Inicia con el signo = y a continuación se escribe la formula de la manera habitual."]
[null,"En todos los casos el resultado de la formula debe ser una valor lógico (VERDADERO o FALSO), por lo tanto, en la expresión se puede utilizar operadores de comparación o funciones que devuelvan valores lógicos."]
[null,"El Nombre del Campo, definido en el Rango Criterio, para la formula debe ser diferente a los nombres de campos de la tabla de datos."]
[null,"Se debe revisar las referencias, a celdas, empleadas en la formula."]
[null,"Sintaxis definida en el rango criterio:"]
[]
[null,"Campo_Formula"]
[null,"=Formula"]
[]
[]
[null,"EJEMPLO 1: Registros cuyas ventas se hayan realizado en el mes de agosto."]
[null,"Consigna:","Registros cuyas ventas se hayan realizado en el mes de agosto de 2007."]
[null,"Formula insertada en el criterio",{"$f":"[1]!ForTexto(B425)","v":"=MES(B429)=8"}]
[null,"Se analiza como:","Comparación del valor 8 (correspondiente a agosto) con el mes de la fecha de cada registro de la tabla."]
[]
[null,"Rango Criterio"]
[null,"Fecha Agosto"]
[null,{"$f":"MONTH(B429)=8","v":true}]
[]
[null,"Tabla de datos"]
[null,"Fecha","Tipo","Vendedor","Unidades Vendidas","Ventas"]
[null,"2007-08-04","Bebidas","Suyama",64,5122]
[null,"2007-08-04","Carnes","Davolio",4,450]
[null,"2007-11-30","Alimentos","Buchanan",115,6328]
[null,"2007-10-25","Alimentos","Davolio",119,6544]
[]
[]
[null,"EJEMPLO 2: Registros cuyas ventas sean  mayores que su promedio."]
[null,"Consigna:","Registros cuyas ventas sean  mayores que su promedio."]
[null,"Formula insertada en el criterio",{"$f":"[1]!ForTexto(B442)","v":"=F446>PROMEDIO($F$446:$F$449)"}]
[null,"Se analiza como:","Comparación del Promedio de  ventas con cada registro de venta de la tabla."]
[]
[null,"Rango Criterio"]
[null,"Promedio Ventas"]
[null,{"$f":"F446>AVERAGE($F$446:$F$449)","v":true}]
[]
[null,"Tabla de datos"]
[null,"Fecha","Tipo","Vendedor","Unidades Vendidas","Ventas"]
[null,"2007-08-04","Bebidas","Suyama",64,5122]
[null,"2007-08-04","Carnes","Davolio",4,450]
[null,"2007-11-30","Alimentos","Buchanan",115,6328]
[null,"2007-10-25","Alimentos","Davolio",119,6544]
[]
[]
[null,"EJEMPLO 3: Registros cuyas ventas sean  mayores que su promedio y las unidades vendidas sean pares."]
[null,"Consigna:","Registros cuyas ventas sean  mayores que su promedio y las unidades vendidas sean pares."]
[null,"Formula insertada en el criterio",{"$f":"[1]!ForTexto(B461)","v":"=F465>PROMEDIO($F$465:$F$468)"}]
[null,null,{"$f":"[1]!ForTexto(C461)","v":"=ES.PAR(E465)"}]
[null,"Se analiza como:","Comparación del Promedio de  ventas y evaluación de las unidades vendidas como valores pares de cada registro de venta de la tabla."]
[]
[]
[null,"Rango Criterio"]
[null,"Promedio Ventas","Unidades Pares"]
[null,{"$f":"F465>AVERAGE($F$465:$F$468)","v":true},{"$f":"ISEVEN(E465)","v":true}]
[]
[null,"Tabla de datos"]
[null,"Fecha","Tipo","Vendedor","Unidades Vendidas","Ventas"]
[null,"2007-08-04","Bebidas","Suyama",64,5122]
[null,"2007-08-04","Carnes","Davolio",4,450]
[null,"2007-11-30","Alimentos","Buchanan",115,6328]
[null,"2007-10-25","Alimentos","Davolio",119,6544]
[]
[null,"Volver al Principio"]
[]
["*","Tabla: Listado de Funciones de Base de Datos"]
[]
[]
[null,"NOMBRE DE LA FUNCION","DESCRIPCION"]
[null,"BDCONTAR","Cuenta las celdas que contienen números en el campo (columna), de los registros de la base de datos, que cumplen las condiciones especificadas"]
[null,"BDCONTARA","Cuenta el número de celdas que no están en blanco en el campo (columna), de los registros de la base de datos, que cumplen las condiciones especificadas"]
[null,"BDEXTRAER","Extrae de una base de datos un único registro que coincide con las condiciones especificadas"]
[null,"BDMAX","Devuelve el número máximo en el campo (columna), de los registros de la base de datos, que coinciden con las condiciones especificadas"]
[null,"BDMIN","Devuelve el número menor del campo (columna), de los registros de la base de datos, que coinciden con las condiciones especificadas"]
[null,"BDPRODUCTO","Multiplica los valores del campo (columna), de los registros en la base de datos, que coinciden con las condiciones especificadas"]
[null,"BDPROMEDIO","Obtiene el promedio de los valores de una columna, lista o base de datos que cumplen las condiciones especificadas"]
[null,"BDSUMA","Suma los números en el campo (columna), de los registros, que coinciden con las condiciones especificadas"]
[]
[null,"Volver al Principio"]
[]
["*","EJERCICIO: USO DE FUNCIONES DE BASE DE DATOS"]
[null,"Consigna:","Dada la tabla de datos “Registro de llamadas telefónicas –2014”, realizar una consulta para obtener: \u009bLa fecha en la que se ha realizado la llamada telefónica con mayor cantidad de segundos para el Tipo de Plan de Abono Fijo en el mes de Agosto."]
[]
[null,"Modo de Resolver la Consigna:","Resolución a modo de consulta en el Formulario de Consulta. La resolución cuenta con 2 pasos:\n1) Obtener el registro con la llamada telefónica con mayor cantidad de segundos para el Tipo de Plan Abono Fijo y para el mes de Agosto, y\n2) La fecha en la que se ha realizado dicha llamada telefónica."]
[]
[null,"Resolución Paso 1: Obtener el registro con la llamada telefónica con mayor cantidad de segundos para el Tipo de Plan Abono Fijo y para el mes de Agosto."]
[null,"Consigna:","Llamada con mayor cant de segundos para el Tipo de Plan Abono Fijo y para el mes de Agosto."]
[null,"Resultado:",{"$f":"C508","v":634}]
[null,"Función insertada",{"$f":"[1]!ForTexto(C508)","v":"=BDMAX(B517:K669;3;F506:G507)"}]
[]
[]
[null,"Resolución Paso 2: Obtener la fecha en la que se ha realizado la llamada telefónica con mayor cantidad de segundos para el  Tipo de Plan de Abono Fijo en el mes de Agosto."]
[null,"Consigna:","Obtener la fecha en la que se ha realizado la llamada telefónica con mayor cantidad de segundos para el  Tipo de Plan de Abono Fijo en el mes de Agosto."]
[null,"Resultado:",{"$f":"C510","v":"2014-08-18"}]
[null,"Función insertada",{"$f":"[1]!ForTexto(C510)","v":"=BDEXTRAER(B517:K669;1;F506:H507)"}]
[]
[]
[]
[null,null,null,null,null,"Rango Criterio"]
[null,"Consulta \"Fecha de la Llamadas Telefónicas con mayor duración\"",null,null,null," Tipo de Plan","Mes"," Tiempo Llamadas realizadas (segundos)"]
[null,null,null,null,null,"Abono Fijo",{"$f":"MONTH(B518)=8","v":false},{"$f":"C508","v":634}]
[null,"Tiempo de la Llamada Telefónica con mayor duración:",{"$f":"DMAX(B517:K669,3,F506:G507)","v":634}]
[]
[null,"Fecha de la llamada telefónica:",{"$f":"DGET(B517:K669,1,F506:H507)","v":"2014-08-18"}]
[]
[]
[]
[]
[null,null,"“TABLA de DATOS de Registro de llamadas telefónicas –2014”"]
[]
[null,"Fecha","Número de Teléfono"," Tiempo Llamadas realizadas (segundos)"," Tipo de Plan"," Costo de Llamada por segundo ($) ","Costo Total de Llamada($)"," Datos descargados (MB)","Costo Datos descargados por MB ($)","Costo Total Datos descargados ($)","Total ($)"]
[null,"2014-09-20",154611467,993,"Abono Fijo",2.8799999999999999E-2,28.598399999999998,466,5.0000000000000001E-3,2.33,30.928399999999996]
[null,"2014-11-16",156233327,991,"Tarjeta",1.7000000000000001E-2,16.847000000000001,229,1.1999999999999999E-3,0.27479999999999999,17.1218]
[null,"2014-11-14",155140648,984,"Abono Fijo",1.4E-2,13.776,71,8.9999999999999993E-3,0.6389999999999999,14.414999999999999]
[null,"2014-10-03",156278319,981,"Tarjeta",2.8799999999999999E-2,28.252800000000001,100,1.4999999999999999E-2,1.5,29.752800000000001]
[null,"2014-10-17",156349550,975,"Tarjeta",1.4E-2,13.65,468,5.0000000000000001E-3,2.34,15.99]
[null,"2014-08-04",156172144,968,"Factura",1.7000000000000001E-2,16.456,460,5.0000000000000001E-3,2.3000000000000003,18.756]
[null,"2014-09-05",156038733,967,"Abono Fijo",2.8799999999999999E-2,27.849599999999999,425,5.0000000000000001E-3,2.125,29.974599999999999]
[null,"2014-10-31",155467985,964,"Tarjeta",1.7000000000000001E-2,16.388000000000002,154,1.1999999999999999E-3,0.18479999999999999,16.572800000000001]
[null,"2014-09-01",156801770,957,"Abono Fijo",2.8799999999999999E-2,27.561599999999999,160,1.4999999999999999E-2,2.4,29.961599999999997]
[null,"2014-12-01",154701644,947,"Tarjeta",1.4E-2,13.258000000000001,277,8.9999999999999993E-3,2.4929999999999999,15.751000000000001]
[null,"2014-12-17",155196264,947,"Tarjeta",1.7000000000000001E-2,16.099,182,1.1999999999999999E-3,0.21839999999999998,16.317399999999999]
[null,"2014-10-30",156770806,945,"Tarjeta",1.7000000000000001E-2,16.065000000000001,381,5.0000000000000001E-3,1.905,17.970000000000002]
[null,"2014-11-03",156290879,940,"Factura",1.4E-2,13.16,284,8.9999999999999993E-3,2.5559999999999996,15.715999999999999]
[null,"2014-08-21",156816622,935,"Factura",1.4E-2,13.09,323,5.0000000000000001E-3,1.615,14.705]
[null,"2014-10-14",154493714,934,"Abono Fijo",1.4E-2,13.076000000000001,94,8.9999999999999993E-3,0.84599999999999997,13.922000000000001]
[null,"2014-12-15",156600852,916,"Factura",2.8799999999999999E-2,26.380800000000001,174,1.4999999999999999E-2,2.61,28.9908]
[null,"2014-08-27",154758514,912,"Tarjeta",1.4E-2,12.768000000000001,122,8.9999999999999993E-3,1.0979999999999999,13.866]
[null,"2014-12-07",154393639,910,"Factura",1.4E-2,12.74,158,8.9999999999999993E-3,1.4219999999999999,14.162000000000001]
[null,"2014-12-29",155599276,893,"Tarjeta",1.4E-2,12.502000000000001,119,8.9999999999999993E-3,1.071,13.573]
[null,"2014-11-05",156986994,880,"Tarjeta",2.8799999999999999E-2,25.343999999999998,274,5.0000000000000001E-3,1.37,26.713999999999999]
[null,"2014-10-06",155856501,872,"Abono Fijo",1.7000000000000001E-2,14.824000000000002,290,1.1999999999999999E-3,0.34799999999999998,15.172000000000002]
[null,"2014-11-28",154906945,867,"Tarjeta",1.7000000000000001E-2,14.739000000000001,353,5.0000000000000001E-3,1.7650000000000001,16.504000000000001]
[null,"2014-08-13",154829888,859,"Tarjeta",1.4E-2,12.026,355,5.0000000000000001E-3,1.7750000000000001,13.801]
[null,"2014-08-05",156690979,851,"Factura",1.7000000000000001E-2,14.467000000000001,439,5.0000000000000001E-3,2.1949999999999998,16.661999999999999]
[null,"2014-11-08",154638848,850,"Tarjeta",1.7000000000000001E-2,14.450000000000001,364,5.0000000000000001E-3,1.82,16.27]
[null,"2014-11-07",156783518,841,"Abono Fijo",1.7000000000000001E-2,14.297000000000001,301,5.0000000000000001E-3,1.5050000000000001,15.802000000000001]
[null,"2014-09-09",154798295,840,"Tarjeta",2.8799999999999999E-2,24.192,315,5.0000000000000001E-3,1.575,25.766999999999999]
[null,"2014-10-18",155072479,837,"Tarjeta",1.4E-2,11.718,294,8.9999999999999993E-3,2.6459999999999999,14.364000000000001]
[null,"2014-09-06",155295609,826,"Factura",1.4E-2,11.564,362,5.0000000000000001E-3,1.81,13.374000000000001]
[null,"2014-09-14",154661935,824,"Abono Fijo",2.8799999999999999E-2,23.731199999999998,367,5.0000000000000001E-3,1.835,25.566199999999998]
[null,"2014-10-11",154143998,822,"Abono Fijo",1.4E-2,11.508000000000001,78,8.9999999999999993E-3,0.70199999999999996,12.21]
[null,"2014-12-25",156232564,822,"Factura",2.8799999999999999E-2,23.6736,398,5.0000000000000001E-3,1.99,25.663599999999999]
[null,"2014-10-05",154913441,814,"Tarjeta",2.8799999999999999E-2,23.443200000000001,272,5.0000000000000001E-3,1.36,24.8032]
[null,"2014-09-26",155726067,793,"Tarjeta",1.4E-2,11.102,170,8.9999999999999993E-3,1.5299999999999998,12.632]
[null,"2014-11-30",156859701,793,"Abono Fijo",1.7000000000000001E-2,13.481000000000002,335,5.0000000000000001E-3,1.675,15.156000000000002]
[null,"2014-08-29",155653968,789,"Factura",1.7000000000000001E-2,13.413,263,1.1999999999999999E-3,0.31559999999999999,13.7286]
[null,"2014-09-21",154554935,783,"Abono Fijo",1.4E-2,10.962,472,5.0000000000000001E-3,2.36,13.321999999999999]
[null,"2014-11-01",155639443,782,"Abono Fijo",1.7000000000000001E-2,13.294,202,1.1999999999999999E-3,0.24239999999999998,13.5364]
[null,"2014-12-06",156240201,766,"Tarjeta",1.7000000000000001E-2,13.022,490,5.0000000000000001E-3,2.4500000000000002,15.472000000000001]
[null,"2014-10-10",154351524,765,"Abono Fijo",1.7000000000000001E-2,13.005000000000001,144,1.1999999999999999E-3,0.17279999999999998,13.177800000000001]
[null,"2014-09-10",156614719,758,"Factura",1.7000000000000001E-2,12.886000000000001,448,5.0000000000000001E-3,2.2400000000000002,15.126000000000001]
[null,"2014-08-20",156581422,754,"Tarjeta",2.8799999999999999E-2,21.715199999999999,202,5.0000000000000001E-3,1.01,22.725200000000001]
[null,"2014-11-27",155257306,750,"Abono Fijo",1.4E-2,10.5,272,8.9999999999999993E-3,2.448,12.948]
[null,"2014-10-15",156066871,743,"Factura",1.4E-2,10.402000000000001,319,5.0000000000000001E-3,1.595,11.997000000000002]
[null,"2014-10-22",154431895,741,"Tarjeta",2.8799999999999999E-2,21.340799999999998,294,5.0000000000000001E-3,1.47,22.810799999999997]
[null,"2014-12-12",155690913,736,"Abono Fijo",1.4E-2,10.304,90,8.9999999999999993E-3,0.80999999999999994,11.114000000000001]
[null,"2014-09-25",154580133,732,"Abono Fijo",2.8799999999999999E-2,21.081599999999998,86,1.4999999999999999E-2,1.29,22.371599999999997]
[null,"2014-11-20",155317864,731,"Factura",2.8799999999999999E-2,21.052799999999998,495,5.0000000000000001E-3,2.4750000000000001,23.527799999999999]
[null,"2014-11-10",155469155,730,"Tarjeta",1.4E-2,10.220000000000001,400,5.0000000000000001E-3,2,12.22]
[null,"2014-12-27",155122448,726,"Factura",2.8799999999999999E-2,20.908799999999999,98,1.4999999999999999E-2,1.47,22.378799999999998]
[null,"2014-08-06",155252548,721,"Factura",1.4E-2,10.093999999999999,109,8.9999999999999993E-3,0.98099999999999987,11.074999999999999]
[null,"2014-09-02",154002328,712,"Abono Fijo",1.4E-2,9.968,198,8.9999999999999993E-3,1.7819999999999998,11.75]
[null,"2014-09-24",156879767,676,"Tarjeta",1.4E-2,9.4640000000000004,360,5.0000000000000001E-3,1.8,11.264000000000001]
[null,"2014-09-27",155576710,672,"Abono Fijo",1.7000000000000001E-2,11.424000000000001,282,1.1999999999999999E-3,0.33839999999999998,11.762400000000001]
[null,"2014-10-01",154974869,671,"Factura",2.8799999999999999E-2,19.3248,95,1.4999999999999999E-2,1.425,20.7498]
[null,"2014-09-19",155430469,667,"Factura",2.8799999999999999E-2,19.209599999999998,391,5.0000000000000001E-3,1.9550000000000001,21.1646]
[null,"2014-12-13",156472196,657,"Abono Fijo",1.4E-2,9.1980000000000004,113,8.9999999999999993E-3,1.0169999999999999,10.215]
[null,"2014-09-07",155637384,646,"Tarjeta",2.8799999999999999E-2,18.604800000000001,177,1.4999999999999999E-2,2.6549999999999998,21.259800000000002]
[null,"2014-12-23",154389830,638,"Factura",2.8799999999999999E-2,18.374399999999998,407,5.0000000000000001E-3,2.0350000000000001,20.409399999999998]
[null,"2014-08-18",156633430,634,"Abono Fijo",2.8799999999999999E-2,18.2592,397,5.0000000000000001E-3,1.9850000000000001,20.244199999999999]
[null,"2014-10-19",154212953,632,"Factura",1.4E-2,8.8480000000000008,92,8.9999999999999993E-3,0.82799999999999996,9.6760000000000002]
[null,"2014-10-26",155073092,628,"Factura",1.4E-2,8.7919999999999998,100,8.9999999999999993E-3,0.89999999999999991,9.6920000000000002]
[null,"2014-12-18",154918343,628,"Tarjeta",1.4E-2,8.7919999999999998,218,8.9999999999999993E-3,1.9619999999999997,10.754]
[null,"2014-08-23",154565805,627,"Tarjeta",1.4E-2,8.7780000000000005,400,5.0000000000000001E-3,2,10.778]
[null,"2014-09-13",155689308,613,"Tarjeta",1.4E-2,8.5820000000000007,199,8.9999999999999993E-3,1.7909999999999999,10.373000000000001]
[null,"2014-09-30",154305381,613,"Abono Fijo",2.8799999999999999E-2,17.654399999999999,166,1.4999999999999999E-2,2.4899999999999998,20.144399999999997]
[null,"2014-11-06",155225027,612,"Abono Fijo",1.7000000000000001E-2,10.404,135,1.1999999999999999E-3,0.16199999999999998,10.566000000000001]
[null,"2014-12-21",156590882,612,"Factura",1.4E-2,8.5679999999999996,258,8.9999999999999993E-3,2.3219999999999996,10.889999999999999]
[null,"2014-12-09",155856450,611,"Factura",1.7000000000000001E-2,10.387,170,1.1999999999999999E-3,0.20399999999999999,10.591000000000001]
[null,"2014-10-09",155306526,601,"Tarjeta",2.8799999999999999E-2,17.308799999999998,285,5.0000000000000001E-3,1.425,18.733799999999999]
[null,"2014-08-07",154568058,600,"Abono Fijo",1.7000000000000001E-2,10.200000000000001,268,1.1999999999999999E-3,0.3216,10.521600000000001]
[null,"2014-09-23",154008386,599,"Factura",1.7000000000000001E-2,10.183000000000002,432,5.0000000000000001E-3,2.16,12.343000000000002]
[null,"2014-08-15",156601441,586,"Factura",1.7000000000000001E-2,9.9620000000000015,52,1.1999999999999999E-3,6.2399999999999997E-2,10.024400000000002]
[null,"2014-12-05",154242060,580,"Tarjeta",2.8799999999999999E-2,16.704000000000001,118,1.4999999999999999E-2,1.77,18.474]
[null,"2014-12-16",154547414,577,"Tarjeta",2.8799999999999999E-2,16.617599999999999,299,5.0000000000000001E-3,1.4950000000000001,18.1126]
[null,"2014-11-15",156121080,574,"Tarjeta",2.8799999999999999E-2,16.531199999999998,188,1.4999999999999999E-2,2.82,19.351199999999999]
[null,"2014-12-04",154729075,573,"Tarjeta",1.4E-2,8.0220000000000002,328,5.0000000000000001E-3,1.6400000000000001,9.6620000000000008]
[null,"2014-12-11",155371825,571,"Factura",2.8799999999999999E-2,16.444800000000001,61,1.4999999999999999E-2,0.91499999999999992,17.3598]
[null,"2014-10-27",154228952,564,"Factura",1.7000000000000001E-2,9.588000000000001,198,1.1999999999999999E-3,0.23759999999999998,9.8256000000000014]
[null,"2014-08-26",155189318,561,"Tarjeta",1.4E-2,7.8540000000000001,341,5.0000000000000001E-3,1.7050000000000001,9.5590000000000011]
[null,"2014-08-08",154407759,555,"Factura",1.7000000000000001E-2,9.4350000000000005,197,1.1999999999999999E-3,0.23639999999999997,9.6714000000000002]
[null,"2014-12-30",154034901,555,"Abono Fijo",1.7000000000000001E-2,9.4350000000000005,362,5.0000000000000001E-3,1.81,11.245000000000001]
[null,"2014-10-28",155371026,549,"Abono Fijo",1.4E-2,7.6859999999999999,145,8.9999999999999993E-3,1.3049999999999999,8.9909999999999997]
[null,"2014-12-20",154992218,540,"Factura",2.8799999999999999E-2,15.552,98,1.4999999999999999E-2,1.47,17.021999999999998]
[null,"2014-11-09",154228962,538,"Abono Fijo",1.7000000000000001E-2,9.1460000000000008,500,5.0000000000000001E-3,2.5,11.646000000000001]
[null,"2014-11-22",154753140,538,"Abono Fijo",2.8799999999999999E-2,15.494399999999999,392,5.0000000000000001E-3,1.96,17.4544]
[null,"2014-11-29",156652168,535,"Factura",2.8799999999999999E-2,15.407999999999999,465,5.0000000000000001E-3,2.3250000000000002,17.733000000000001]
[null,"2014-08-31",156662560,531,"Factura",1.7000000000000001E-2,9.027000000000001,97,1.1999999999999999E-3,0.11639999999999999,9.1434000000000015]
[null,"2014-10-12",155573643,531,"Tarjeta",2.8799999999999999E-2,15.2928,298,5.0000000000000001E-3,1.49,16.782799999999998]
[null,"2014-10-02",156196844,516,"Abono Fijo",1.7000000000000001E-2,8.7720000000000002,330,5.0000000000000001E-3,1.6500000000000001,10.422000000000001]
[null,"2014-11-18",156256581,516,"Tarjeta",2.8799999999999999E-2,14.860799999999999,119,1.4999999999999999E-2,1.7849999999999999,16.645799999999998]
[null,"2014-10-07",156995763,504,"Factura",2.8799999999999999E-2,14.5152,324,5.0000000000000001E-3,1.62,16.135200000000001]
[null,"2014-12-22",155936941,500,"Factura",1.7000000000000001E-2,8.5,95,1.1999999999999999E-3,0.11399999999999999,8.6140000000000008]
[null,"2014-08-30",154651053,494,"Factura",2.8799999999999999E-2,14.2272,288,5.0000000000000001E-3,1.44,15.667199999999999]
[null,"2014-09-17",156392623,487,"Tarjeta",1.7000000000000001E-2,8.2789999999999999,484,5.0000000000000001E-3,2.42,10.699]
[null,"2014-12-02",156880085,487,"Abono Fijo",2.8799999999999999E-2,14.025599999999999,173,1.4999999999999999E-2,2.5949999999999998,16.6206]
[null,"2014-08-01",155103732,477,"Abono Fijo",1.4E-2,6.6779999999999999,454,5.0000000000000001E-3,2.27,8.9480000000000004]
[null,"2014-10-25",156456807,473,"Abono Fijo",2.8799999999999999E-2,13.622399999999999,54,1.4999999999999999E-2,0.80999999999999994,14.432399999999999]
[null,"2014-11-04",155139987,466,"Factura",1.4E-2,6.524,409,5.0000000000000001E-3,2.0449999999999999,8.5689999999999991]
[null,"2014-08-24",154154639,463,"Tarjeta",1.7000000000000001E-2,7.8710000000000004,392,5.0000000000000001E-3,1.96,9.8309999999999995]
[null,"2014-12-10",155788026,458,"Abono Fijo",2.8799999999999999E-2,13.1904,316,5.0000000000000001E-3,1.58,14.7704]
[null,"2014-11-19",156623288,446,"Abono Fijo",1.7000000000000001E-2,7.5820000000000007,67,1.1999999999999999E-3,8.0399999999999999E-2,7.6624000000000008]
[null,"2014-09-11",154566483,441,"Abono Fijo",2.8799999999999999E-2,12.700799999999999,233,5.0000000000000001E-3,1.165,13.8658]
[null,"2014-08-16",156681533,437,"Abono Fijo",2.8799999999999999E-2,12.585599999999999,75,1.4999999999999999E-2,1.125,13.710599999999999]
[null,"2014-08-19",155296548,431,"Tarjeta",2.8799999999999999E-2,12.412799999999999,371,5.0000000000000001E-3,1.855,14.267799999999999]
[null,"2014-10-04",156912208,419,"Tarjeta",1.4E-2,5.8660000000000005,350,5.0000000000000001E-3,1.75,7.6160000000000005]
[null,"2014-10-13",156800410,418,"Tarjeta",1.4E-2,5.8520000000000003,112,8.9999999999999993E-3,1.008,6.86]
[null,"2014-12-19",155624585,407,"Tarjeta",1.4E-2,5.6980000000000004,274,8.9999999999999993E-3,2.4659999999999997,8.1639999999999997]
[null,"2014-08-28",154820320,404,"Abono Fijo",2.8799999999999999E-2,11.635199999999999,97,1.4999999999999999E-2,1.4549999999999998,13.090199999999999]
[null,"2014-10-08",154623175,403,"Abono Fijo",2.8799999999999999E-2,11.606399999999999,82,1.4999999999999999E-2,1.23,12.836399999999999]
[null,"2014-11-12",155812577,402,"Tarjeta",1.7000000000000001E-2,6.8340000000000005,399,5.0000000000000001E-3,1.9950000000000001,8.8290000000000006]
[null,"2014-12-31",154693917,398,"Factura",2.8799999999999999E-2,11.462399999999999,136,1.4999999999999999E-2,2.04,13.502399999999998]
[null,"2014-12-24",155691212,388,"Abono Fijo",1.7000000000000001E-2,6.5960000000000001,296,1.1999999999999999E-3,0.35519999999999996,6.9512]
[null,"2014-08-17",156959109,381,"Abono Fijo",1.7000000000000001E-2,6.4770000000000003,177,1.1999999999999999E-3,0.21239999999999998,6.6894]
[null,"2014-09-12",155660821,375,"Abono Fijo",1.4E-2,5.25,227,8.9999999999999993E-3,2.0429999999999997,7.2929999999999993]
[null,"2014-12-28",155683145,370,"Tarjeta",2.8799999999999999E-2,10.656000000000001,278,5.0000000000000001E-3,1.3900000000000001,12.046000000000001]
[null,"2014-08-25",156105128,365,"Tarjeta",2.8799999999999999E-2,10.512,212,5.0000000000000001E-3,1.06,11.572000000000001]
[null,"2014-10-21",154728626,356,"Factura",2.8799999999999999E-2,10.252800000000001,453,5.0000000000000001E-3,2.2650000000000001,12.517800000000001]
[null,"2014-12-14",156140487,347,"Factura",2.8799999999999999E-2,9.9935999999999989,291,5.0000000000000001E-3,1.4550000000000001,11.448599999999999]
[null,"2014-09-08",154832189,343,"Factura",2.8799999999999999E-2,9.8783999999999992,344,5.0000000000000001E-3,1.72,11.5984]
[null,"2014-12-26",155358867,343,"Abono Fijo",1.7000000000000001E-2,5.8310000000000004,160,1.1999999999999999E-3,0.19199999999999998,6.0230000000000006]
[null,"2014-09-29",156932835,332,"Abono Fijo",2.8799999999999999E-2,9.5616000000000003,219,5.0000000000000001E-3,1.095,10.656600000000001]
[null,"2014-08-10",156190624,328,"Abono Fijo",2.8799999999999999E-2,9.4464000000000006,306,5.0000000000000001E-3,1.53,10.9764]
[null,"2014-11-25",155157402,325,"Abono Fijo",1.7000000000000001E-2,5.5250000000000004,95,1.1999999999999999E-3,0.11399999999999999,5.6390000000000002]
[null,"2014-10-20",154370666,323,"Abono Fijo",1.7000000000000001E-2,5.4910000000000005,397,5.0000000000000001E-3,1.9850000000000001,7.4760000000000009]
[null,"2014-09-04",156644828,317,"Tarjeta",2.8799999999999999E-2,9.1295999999999999,445,5.0000000000000001E-3,2.2250000000000001,11.3546]
[null,"2014-10-23",154249377,314,"Tarjeta",1.4E-2,4.3959999999999999,404,5.0000000000000001E-3,2.02,6.4160000000000004]
[null,"2014-11-11",154557926,300,"Tarjeta",1.4E-2,4.2,93,8.9999999999999993E-3,0.83699999999999997,5.0369999999999999]
[null,"2014-10-24",155091993,299,"Tarjeta",2.8799999999999999E-2,8.6112000000000002,438,5.0000000000000001E-3,2.19,10.8012]
[null,"2014-09-22",155438349,273,"Tarjeta",1.4E-2,3.8220000000000001,131,8.9999999999999993E-3,1.1789999999999998,5.0009999999999994]
[null,"2014-11-02",154682550,272,"Abono Fijo",1.4E-2,3.8080000000000003,389,5.0000000000000001E-3,1.9450000000000001,5.7530000000000001]
[null,"2014-10-29",155233397,250,"Tarjeta",1.4E-2,3.5,215,8.9999999999999993E-3,1.9349999999999998,5.4349999999999996]
[null,"2014-09-16",155115739,248,"Factura",2.8799999999999999E-2,7.1423999999999994,399,5.0000000000000001E-3,1.9950000000000001,9.1373999999999995]
[null,"2014-12-08",155625390,248,"Tarjeta",2.8799999999999999E-2,7.1423999999999994,100,1.4999999999999999E-2,1.5,8.6423999999999985]
[null,"2014-09-28",156698423,236,"Factura",1.4E-2,3.3040000000000003,280,8.9999999999999993E-3,2.52,5.8239999999999998]
[null,"2014-12-03",155621192,236,"Tarjeta",2.8799999999999999E-2,6.7968000000000002,398,5.0000000000000001E-3,1.99,8.7867999999999995]
[null,"2014-08-14",155842761,229,"Abono Fijo",1.7000000000000001E-2,3.8930000000000002,198,1.1999999999999999E-3,0.23759999999999998,4.1306000000000003]
[null,"2014-09-15",154102267,228,"Factura",1.7000000000000001E-2,3.8760000000000003,235,1.1999999999999999E-3,0.28199999999999997,4.1580000000000004]
[null,"2014-08-11",154815195,222,"Abono Fijo",1.7000000000000001E-2,3.7740000000000005,418,5.0000000000000001E-3,2.09,5.8640000000000008]
[null,"2014-11-17",155389929,217,"Abono Fijo",1.4E-2,3.0380000000000003,241,8.9999999999999993E-3,2.169,5.2070000000000007]
[null,"2014-10-16",154248012,210,"Abono Fijo",2.8799999999999999E-2,6.048,471,5.0000000000000001E-3,2.355,8.4030000000000005]
[null,"2014-08-12",155995983,196,"Factura",1.4E-2,2.7440000000000002,485,5.0000000000000001E-3,2.4250000000000003,5.1690000000000005]
[null,"2014-11-13",156162878,192,"Tarjeta",1.7000000000000001E-2,3.2640000000000002,203,1.1999999999999999E-3,0.24359999999999998,3.5076000000000001]
[null,"2014-09-18",156120965,176,"Factura",1.4E-2,2.464,479,5.0000000000000001E-3,2.395,4.859]
[null,"2014-11-24",156156988,137,"Factura",2.8799999999999999E-2,3.9455999999999998,270,5.0000000000000001E-3,1.35,5.2956000000000003]
[null,"2014-08-09",155575828,134,"Factura",2.8799999999999999E-2,3.8592,89,1.4999999999999999E-2,1.335,5.1942000000000004]
[null,"2014-08-03",154557432,133,"Factura",1.7000000000000001E-2,2.2610000000000001,439,5.0000000000000001E-3,2.1949999999999998,4.4559999999999995]
[null,"2014-08-22",154910798,132,"Factura",1.4E-2,1.8480000000000001,266,8.9999999999999993E-3,2.3939999999999997,4.242]
[null,"2014-11-23",154124440,122,"Tarjeta",1.7000000000000001E-2,2.0740000000000003,379,5.0000000000000001E-3,1.895,3.9690000000000003]
[null,"2014-11-21",155070274,114,"Abono Fijo",2.8799999999999999E-2,3.2831999999999999,203,5.0000000000000001E-3,1.0150000000000001,4.2981999999999996]
[null,"2014-09-03",154181178,111,"Tarjeta",1.4E-2,1.554,443,5.0000000000000001E-3,2.2149999999999999,3.7690000000000001]
[null,"2014-11-26",154876620,111,"Abono Fijo",2.8799999999999999E-2,3.1968000000000001,174,1.4999999999999999E-2,2.61,5.8068]
[null,"2014-08-02",156278061,105,"Tarjeta",2.8799999999999999E-2,3.024,316,5.0000000000000001E-3,1.58,4.6040000000000001]
[]
[null,"Volver al Principio"]